{"text_format":"1","workbook":"xlsx","n_sheets":6,"sheets":["Imputations des activités","fBD","Generique","VIERGE","BILAN PC","Noms"],"not_rendered":{"charts":134,"images":0,"macros":1,"external_links":0,"defined_names":1,"comments":1,"pivot_tables":0},"unopened":[],"bounds":{"document_bytes":16777216,"sheet_cells":100000,"rows_first":2000,"rows_last":500,"rows_between":2000,"halvings":0,"cell_chars":16384,"cell_head_chars":4096},"cells_cut":0,"cells_raw":0,"read":"whole","date_system":"1900"}

{"sheet":"Imputations des activités","index":0,"n_rows":146,"n_cols":26,"rows_kept":146,"cut":false,"hidden":false,"merged":[]}
["Imputations des activités du CQ"]
[]
["JANVIER"]
[]
[null,"AC","MP","PSO","PFC","STA","ECH","ENV","NET","LIMS","PROJET","ESS","AQ","AQ BIL","AQ FORM","AQ INFO","AQ REDAC","AQ VERIF","AQ REACT","AQ LEAN","AQ MET","CAP REELLE","CONGE","ABSENCES","CAP. THEO.","HS"]
["PRELEV. AC",113,119.25,65.75,4,16,10,48.5,8,12,10,13,47,12,18,20,28,16,17,27.5,32.5,{"$f":"SUM(B6:M6)","v":466.5},147,110.5,{"$f":"SUM(V6:X6)-Z6","v":724}]
["PHYSICO-CHIMIE",11.75,480,488.5,0,205.5,0,0,2.75,55.25,110.75,181.75,992,33.75,33.75,278,40.75,231.5,100,39.5,234.75,{"$f":"SUM(B7:M7)","v":2528.25},133.5,10.75,{"$f":"SUM(V7:X7)-Z7","v":2672.5}]
["AGENT DE LAVERIE",0,0,0,0,0,0,0,47.75,0,0,0,95.75,2,12.5,10.75,0,0,49,2.75,18.75,143.5,16,0,159.5]
["MICROBIOLOGIE",0,55,197.55,0,7.5,16.75,142.25,38.25,17.75,0,99.8,477.9,64.5,96.25,44.75,21.75,73,102.65,19,56,1052.75,124,0,1176.75]
["CONT FINAL",0,0,0,118.5,0,0,0,0,0,0,0,26,7.25,0,1.75,0.25,0.75,0,14.5,1.5,144.5,11.5,0,156]
["TOTAL",{"$f":"SUM(B6:B10)","v":124.75},{"$f":"SUM(C6:C10)","v":654.25},751.8,122.5,229,26.75,190.75,96.75,85,120.75,294.55,1638.65,119.5,160.5,355.25,90.75,321.25,268.64999999999998,103.25,343.5,4335.5,432,121.25,4888.75,0]
["DISP. LABOS EN % :",{"$f":"100*B11/V11","v":2.8774074501210931},{"$f":"100*C11/V11","v":15.090531657248299},{"$f":"100*D11/V11","v":17.340560488986277},{"$f":"100*E11/V11","v":2.825510321762196},{"$f":"100*F11/V11","v":5.2819743974166764},{"$f":"100*G11/V11","v":0.61699919271133663},{"$f":"100*H11/V11","v":4.3997232153154195},{"$f":"100*I11/V11","v":2.2315765194325916},{"$f":"100*J11/V11","v":1.960558182447238},{"$f":"100*K11/V11","v":2.7851458885941645},{"$f":"100*L11/V11","v":6.7939107369392229},{"$f":"100*M11/V11","v":37.796101949025484},{"$f":"100*N11/V11","v":2.756314150616999},{"$f":"100*O11/V11","v":3.70199515626802},{"$f":"100*P11/V11","v":8.1939799331103682},{"$f":"100*Q11/V11","v":2.0931841771421982},{"$f":"100*R11/V11","v":7.4097566601314728},{"$f":"100*S11/V11","v":6.1965171260523579},{"$f":"100*T11/V11","v":2.3815015569138507},{"$f":"100*U11/V11","v":7.9229615961250142},{"$f":"100*V11/V11","v":100},{"$f":"100*W11/W11","v":100},{"$f":"100*X11/V11","v":2.7966785837850305},{"$f":"100*Y11/V11","v":112.76092722869335},{"$f":"100*Z11/V11","v":0}]
[]
["FEVRIER"]
[]
[null,"AC","MP","PSO","PFC","STA","ECH","ENV","NET","LIMS","PROJET","ESS","AQ","AQ BIL","AQ FORM","AQ INFO","AQ REDAC","AQ VERIF","AQ REACT","AQ LEAN","AQ MET","CAP REELLE","CONGE","ABSENCES","CAP. THEO.","HS"]
["PRELEV. AC",153.5,134.5,79.5,0,0,4,57,0,6,0,2,47.5,0,0,4.5,20.5,0,0,5,17.5,{"$f":"SUM(B17:M17)","v":484},0,8,{"$f":"SUM(V17:X17)-Z17","v":492}]
["PHYSICO-CHIMIE",9.75,350.75,668.5,0,129.25,0,0,0,13,39.5,199.75,1010.25,38.25,21.25,308,96,265.5,72.25,34.5,174.5,2420.75,296.5,23.75,2741]
["AGENT DE LAVERIE",0,0,0,0,0,0,0,41.5,0,0,0,122,24.5,4,2.25,1.75,0,69.75,1.75,18,163.5,0,0,163.5]
["MICROBIOLOGIE",0,79.25,258.25,0,4,10.5,209.5,45,34.75,3,55,522.75,55,130.25,64,77.5,81,45.25,10.5,59.25,1222,92,10.5,1324.5]
["CONT FINAL",0,0,0,133,0,0,0,0,4,0,0,19,2,0,0.5,0,0,0,15.25,1.25,156,8,0,164]
["TOTAL",{"$f":"SUM(B17:B21)","v":163.25},{"$f":"SUM(C17:C21)","v":564.5},1006.25,133,133.25,14.5,266.5,86.5,57.75,42.5,256.75,1721.5,119.75,155.5,379.25,195.75,346.5,187.25,67,270.5,4446.25,396.5,42.25,4885,0]
["DISP. LABOS EN % :",{"$f":"100*B22/V22","v":3.6716333989316841},{"$f":"100*C22/V22","v":12.696092212538657},{"$f":"100*D22/V22","v":22.631430981163902},{"$f":"100*E22/V22","v":2.9912847905538373},{"$f":"100*F22/V22","v":2.996907506325555},{"$f":"100*G22/V22","v":0.32611751475962891},{"$f":"100*H22/V22","v":5.9938150126511101},{"$f":"100*I22/V22","v":1.9454596570143379},{"$f":"100*J22/V22","v":1.298847343266798},{"$f":"100*K22/V22","v":0.95586168119201576},{"$f":"100*L22/V22","v":5.7745290975541188},{"$f":"100*M22/V22","v":38.718020804048358},{"$f":"100*N22/V22","v":2.6932808546527971},{"$f":"100*O22/V22","v":3.4973292100084339},{"$f":"100*P22/V22","v":8.5296598256958109},{"$f":"100*Q22/V22","v":4.40258644925499},{"$f":"100*R22/V22","v":7.7930840596007869},{"$f":"100*S22/V22","v":4.2114141130165867},{"$f":"100*T22/V22","v":1.5068878268203543},{"$f":"100*U22/V22","v":6.083778464998594},{"$f":"100*V22/V22","v":100},{"$f":"100*W22/W22","v":100},{"$f":"100*X22/V22","v":0.95023896542029795},{"$f":"100*Y22/V22","v":109.86786617936464},{"$f":"100*Z22/V22","v":0}]
[]
["MARS"]
[]
[null,"AC","MP","PSO","PFC","STA","ECH","ENV","NET","LIMS","PROJET","ESS","AQ","AQ BIL","AQ FORM","AQ INFO","AQ REDAC","AQ VERIF","AQ REACT","AQ LEAN","AQ MET","CAP REELLE","CONGE","ABSENCES","CAP. THEO.","HS"]
["PRELEV. AC",164,135,65,0,0,0,54.5,0,12.5,0,0,29,0,0,3.25,13,0,0,5.75,7,{"$f":"SUM(B28:M28)","v":460},48,8,{"$f":"SUM(V28:X28)-Z28","v":516}]
["PHYSICO-CHIMIE",11,389,85596.594004629616,0,230.5,0,0,0,68,41.5,268.25,954.25,23.25,24.5,286.75,37.5,255.5,103.5,27,196.25,87559.094004629616,316.25,9.5,87884.844004629616]
["AGENT DE LAVERIE",0,0,0,0,0,0,0,27.5,0,0,0,129,0,12,17,0,0,64.25,3.75,32,156.5,0,0,156.5]
["MICROBIOLOGIE",0,64.75,270.75,0,13.25,17.25,239,38,43.5,0,48,500.75,21.75,96,69.5,106.75,86,88.25,5,27.5,1235.25,151,0,1386.25]
["CONT FINAL",0,0,0,114,0,0,0,0,0,0,0,16.5,1.75,0,1.5,0,1.75,0,10.75,0.75,130.5,43,0,173.5]
["TOTAL",{"$f":"SUM(B28:B32)","v":175},{"$f":"SUM(C28:C32)","v":588.75},85932.344004629616,114,243.75,17.25,293.5,65.5,124,41.5,316.25,1629.5,46.75,132.5,378,157.25,343.25,256,52.25,263.5,89541.344004629616,558.25,17.5,90117.094004629616,0]
["DISP. LABOS EN % :",{"$f":"100*B33/V33","v":0.19544044368035379},{"$f":"100*C33/V33","v":0.65751749266747606},{"$f":"100*D33/V33","v":95.969459650043433},{"$f":"100*E33/V33","v":0.12731548902605905},{"$f":"100*F33/V33","v":0.27222061798334996},{"$f":"100*G33/V33","v":1.9264843734206304E-2},{"$f":"100*H33/V33","v":0.32778154411533622},{"$f":"100*I33/V33","v":7.3150566063218139E-2},{"$f":"100*J33/V33","v":0.13848351437922213},{"$f":"100*K33/V33","v":4.6347305215626758E-2},{"$f":"100*L33/V33","v":0.3531888017937822},{"$f":"100*M33/V33","v":1.819829731297923},{"$f":"100*N33/V33","v":5.2210518526037371E-2},{"$f":"100*O33/V33","v":0.14797633592941073},{"$f":"100*P33/V33","v":0.42215135834956419},{"$f":"100*Q33/V33","v":0.17561719867848935},{"$f":"100*R33/V33","v":0.38334247024732254},{"$f":"100*S33/V33","v":0.2859014490409747},{"$f":"100*T33/V33","v":5.8352932470277064E-2},{"$f":"100*U33/V33","v":0.29427746805584704},{"$f":"100*V33/V33","v":99.999999999999986},{"$f":"100*W33/W33","v":100},{"$f":"100*X33/V33","v":1.954404436803538E-2},{"$f":"100*Y33/V33","v":100.64299905970836},{"$f":"100*Z33/V33","v":0}]
[]
["AVRIL"]
[]
[null,"AC","MP","PSO","PFC","STA","ECH","ENV","NET","LIMS","PROJET","ESS","AQ","AQ BIL","AQ FORM","AQ INFO","AQ REDAC","AQ VERIF","AQ REACT","AQ LEAN","AQ MET","CAP REELLE","CONGE","ABSENCES","CAP. THEO.","HS"]
["PRELEV. AC",1,2,3,0,0,4,5,0,6,0,7,0,0,8,9,10,0,0,11,12,{"$f":"SUM(B39:M39)","v":28},1,2,{"$f":"SUM(V39:X39)-Z39","v":31}]
["PHYSICO-CHIMIE",2,4,6,0,8,0,0,10,12,14,16,200,18,20,22,24,26,28,30,32,272,18,20,310]
["AGENT DE LAVERIE",0,0,0,0,0,0,0,34,0,0,0,0,35,36,37,38,0,39,40,41,34,34,35,103]
["MICROBIOLOGIE",0,1,0,0,0,0,0,0,0,0,0,0,0,0,0,0,0,0,0,0,1,0,0,1]
["CONT FINAL",0,0,0,0,0,0,0,0,0,0,0,0,0,0,0,0,0,0,0,0,0,0,0,0]
["TOTAL",{"$f":"SUM(B39:B43)","v":3},{"$f":"SUM(C39:C43)","v":7},9,0,8,4,5,44,18,14,23,200,53,64,68,72,26,67,81,85,335,53,57,445,0]
["DISP. LABOS EN % :",{"$f":"100*B44/V44","v":0.89552238805970152},{"$f":"100*C44/V44","v":2.08955223880597},{"$f":"100*D44/V44","v":2.6865671641791047},{"$f":"100*E44/V44","v":0},{"$f":"100*F44/V44","v":2.3880597014925371},{"$f":"100*G44/V44","v":1.1940298507462686},{"$f":"100*H44/V44","v":1.4925373134328359},{"$f":"100*I44/V44","v":13.134328358208956},{"$f":"100*J44/V44","v":5.3731343283582094},{"$f":"100*K44/V44","v":4.1791044776119399},{"$f":"100*L44/V44","v":6.8656716417910451},{"$f":"100*M44/V44","v":59.701492537313435},{"$f":"100*N44/V44","v":15.82089552238806},{"$f":"100*O44/V44","v":19.104477611940297},{"$f":"100*P44/V44","v":20.298507462686569},{"$f":"100*Q44/V44","v":21.492537313432837},{"$f":"100*R44/V44","v":7.7611940298507465},{"$f":"100*S44/V44","v":20},{"$f":"100*T44/V44","v":24.17910447761194},{"$f":"100*U44/V44","v":25.373134328358208},{"$f":"100*V44/V44","v":100},{"$f":"100*W44/W44","v":100},{"$f":"100*X44/V44","v":17.014925373134329},{"$f":"100*Y44/V44","v":132.83582089552237},{"$f":"100*Z44/V44","v":0}]
[]
["MAI"]
[]
[null,"AC","MP","PSO","PFC","STA","ECH","ENV","NET","LIMS","PROJET","ESS","AQ","AQ BIL","AQ FORM","AQ INFO","AQ REDAC","AQ VERIF","AQ REACT","AQ LEAN","AQ MET","CAP REELLE","CONGE","ABSENCES","CAP. THEO.","HS"]
["PRELEV. AC",0,0,0,0,0,0,0,0,0,0,0,0,0,0,0,0,0,0,0,0,{"$f":"SUM(B50:M50)","v":0},0,0,{"$f":"SUM(V50:X50)-Z50","v":0}]
["PHYSICO-CHIMIE",0,0,0,0,0,0,0,0,0,0,0,0,0,0,0,0,0,0,0,0,0,0,0,0]
["AGENT DE LAVERIE",0,0,0,0,0,0,0,0,0,0,0,0,0,0,0,0,0,0,0,0,0,0,0,0]
["MICROBIOLOGIE",0,0,0,0,0,0,0,0,0,0,0,0,0,0,0,0,0,0,0,0,0,0,0,0]
["CONT FINAL",0,0,0,0,0,0,0,0,0,0,0,0,0,0,0,0,0,0,0,0,0,0,0,0]
["TOTAL",{"$f":"SUM(B50:B54)","v":0},{"$f":"SUM(C50:C54)","v":0},0,0,0,0,0,0,0,0,0,0,0,0,0,0,0,0,0,0,0,0,0,0,0]
["DISP. LABOS EN % :",{"$f":"100*B55/V55","v":{"$error":"#DIV/0!"}},{"$f":"100*C55/V55","v":{"$error":"#DIV/0!"}},{"$f":"100*D55/V55","v":{"$error":"#DIV/0!"}},{"$f":"100*E55/V55","v":{"$error":"#DIV/0!"}},{"$f":"100*F55/V55","v":{"$error":"#DIV/0!"}},{"$f":"100*G55/V55","v":{"$error":"#DIV/0!"}},{"$f":"100*H55/V55","v":{"$error":"#DIV/0!"}},{"$f":"100*I55/V55","v":{"$error":"#DIV/0!"}},{"$f":"100*J55/V55","v":{"$error":"#DIV/0!"}},{"$f":"100*K55/V55","v":{"$error":"#DIV/0!"}},{"$f":"100*L55/V55","v":{"$error":"#DIV/0!"}},{"$f":"100*M55/V55","v":{"$error":"#DIV/0!"}},{"$f":"100*N55/V55","v":{"$error":"#DIV/0!"}},{"$f":"100*O55/V55","v":{"$error":"#DIV/0!"}},{"$f":"100*P55/V55","v":{"$error":"#DIV/0!"}},{"$f":"100*Q55/V55","v":{"$error":"#DIV/0!"}},{"$f":"100*R55/V55","v":{"$error":"#DIV/0!"}},{"$f":"100*S55/V55","v":{"$error":"#DIV/0!"}},{"$f":"100*T55/V55","v":{"$error":"#DIV/0!"}},{"$f":"100*U55/V55","v":{"$error":"#DIV/0!"}},{"$f":"100*V55/V55","v":{"$error":"#DIV/0!"}},{"$f":"100*W55/W55","v":{"$error":"#DIV/0!"}},{"$f":"100*X55/V55","v":{"$error":"#DIV/0!"}},{"$f":"100*Y55/V55","v":{"$error":"#DIV/0!"}},{"$f":"100*Z55/V55","v":{"$error":"#DIV/0!"}}]
[]
["JUIN"]
[]
[null,"AC","MP","PSO","PFC","STA","ECH","ENV","NET","LIMS","PROJET","ESS","AQ","AQ BIL","AQ FORM","AQ INFO","AQ REDAC","AQ VERIF","AQ REACT","AQ LEAN","AQ MET","CAP REELLE","CONGE","ABSENCES","CAP. THEO.","HS"]
["PRELEV. AC",0,0,0,0,0,0,0,0,0,0,0,0,0,0,0,0,0,0,0,0,{"$f":"SUM(B61:M61)","v":0},0,0,{"$f":"SUM(V61:X61)-Z61","v":0}]
["PHYSICO-CHIMIE",0,0,0,0,0,0,0,0,0,0,0,0,0,0,0,0,0,0,0,0,0,0,0,0]
["AGENT DE LAVERIE",0,0,0,0,0,0,0,0,0,0,0,0,0,0,0,0,0,0,0,0,0,0,0,0]
["MICROBIOLOGIE",0,0,0,0,0,0,0,0,0,0,0,0,0,0,0,0,0,0,0,0,0,0,0,0]
["CONT FINAL",0,0,0,0,0,0,0,0,0,0,0,0,0,0,0,0,0,0,0,0,0,0,0,0]
["TOTAL",{"$f":"SUM(B61:B65)","v":0},{"$f":"SUM(C61:C65)","v":0},0,0,0,0,0,0,0,0,0,0,0,0,0,0,0,0,0,0,0,0,0,0,0]
["DISP. LABOS EN % :",{"$f":"100*B66/V66","v":{"$error":"#DIV/0!"}},{"$f":"100*C66/V66","v":{"$error":"#DIV/0!"}},{"$f":"100*D66/V66","v":{"$error":"#DIV/0!"}},{"$f":"100*E66/V66","v":{"$error":"#DIV/0!"}},{"$f":"100*F66/V66","v":{"$error":"#DIV/0!"}},{"$f":"100*G66/V66","v":{"$error":"#DIV/0!"}},{"$f":"100*H66/V66","v":{"$error":"#DIV/0!"}},{"$f":"100*I66/V66","v":{"$error":"#DIV/0!"}},{"$f":"100*J66/V66","v":{"$error":"#DIV/0!"}},{"$f":"100*K66/V66","v":{"$error":"#DIV/0!"}},{"$f":"100*L66/V66","v":{"$error":"#DIV/0!"}},{"$f":"100*M66/V66","v":{"$error":"#DIV/0!"}},{"$f":"100*N66/V66","v":{"$error":"#DIV/0!"}},{"$f":"100*O66/V66","v":{"$error":"#DIV/0!"}},{"$f":"100*P66/V66","v":{"$error":"#DIV/0!"}},{"$f":"100*Q66/V66","v":{"$error":"#DIV/0!"}},{"$f":"100*R66/V66","v":{"$error":"#DIV/0!"}},{"$f":"100*S66/V66","v":{"$error":"#DIV/0!"}},{"$f":"100*T66/V66","v":{"$error":"#DIV/0!"}},{"$f":"100*U66/V66","v":{"$error":"#DIV/0!"}},{"$f":"100*V66/V66","v":{"$error":"#DIV/0!"}},{"$f":"100*W66/W66","v":{"$error":"#DIV/0!"}},{"$f":"100*X66/V66","v":{"$error":"#DIV/0!"}},{"$f":"100*Y66/V66","v":{"$error":"#DIV/0!"}},{"$f":"100*Z66/V66","v":{"$error":"#DIV/0!"}}]
[]
["JUILLET"]
[]
[null,"AC","MP","PSO","PFC","STA","ECH","ENV","NET","LIMS","PROJET","ESS","AQ","AQ BIL","AQ FORM","AQ INFO","AQ REDAC","AQ VERIF","AQ REACT","AQ LEAN","AQ MET","CAP REELLE","CONGE","ABSENCES","CAP. THEO.","HS"]
["PRELEV. AC",0,0,0,0,0,0,0,0,0,0,0,0,0,0,0,0,0,0,0,0,{"$f":"SUM(B72:M72)","v":0},0,0,{"$f":"SUM(V72:X72)-Z72","v":0}]
["PHYSICO-CHIMIE",0,0,0,0,0,0,0,0,0,0,0,0,0,0,0,0,0,0,0,0,0,0,0,0]
["AGENT DE LAVERIE",0,0,0,0,0,0,0,0,0,0,0,0,0,0,0,0,0,0,0,0,0,0,0,0]
["MICROBIOLOGIE",0,0,0,0,0,0,0,0,0,0,0,0,0,0,0,0,0,0,0,0,0,0,0,0]
["CONT FINAL",0,0,0,0,0,0,0,0,0,0,0,0,0,0,0,0,0,0,0,0,0,0,0,0]
["TOTAL",{"$f":"SUM(B72:B76)","v":0},{"$f":"SUM(C72:C76)","v":0},0,0,0,0,0,0,0,0,0,0,0,0,0,0,0,0,0,0,0,0,0,0,0]
["DISP. LABOS EN % :",{"$f":"100*B77/V77","v":{"$error":"#DIV/0!"}},{"$f":"100*C77/V77","v":{"$error":"#DIV/0!"}},{"$f":"100*D77/V77","v":{"$error":"#DIV/0!"}},{"$f":"100*E77/V77","v":{"$error":"#DIV/0!"}},{"$f":"100*F77/V77","v":{"$error":"#DIV/0!"}},{"$f":"100*G77/V77","v":{"$error":"#DIV/0!"}},{"$f":"100*H77/V77","v":{"$error":"#DIV/0!"}},{"$f":"100*I77/V77","v":{"$error":"#DIV/0!"}},{"$f":"100*J77/V77","v":{"$error":"#DIV/0!"}},{"$f":"100*K77/V77","v":{"$error":"#DIV/0!"}},{"$f":"100*L77/V77","v":{"$error":"#DIV/0!"}},{"$f":"100*M77/V77","v":{"$error":"#DIV/0!"}},{"$f":"100*N77/V77","v":{"$error":"#DIV/0!"}},{"$f":"100*O77/V77","v":{"$error":"#DIV/0!"}},{"$f":"100*P77/V77","v":{"$error":"#DIV/0!"}},{"$f":"100*Q77/V77","v":{"$error":"#DIV/0!"}},{"$f":"100*R77/V77","v":{"$error":"#DIV/0!"}},{"$f":"100*S77/V77","v":{"$error":"#DIV/0!"}},{"$f":"100*T77/V77","v":{"$error":"#DIV/0!"}},{"$f":"100*U77/V77","v":{"$error":"#DIV/0!"}},{"$f":"100*V77/V77","v":{"$error":"#DIV/0!"}},{"$f":"100*W77/W77","v":{"$error":"#DIV/0!"}},{"$f":"100*X77/V77","v":{"$error":"#DIV/0!"}},{"$f":"100*Y77/V77","v":{"$error":"#DIV/0!"}},{"$f":"100*Z77/V77","v":{"$error":"#DIV/0!"}}]
[]
["AOUT"]
[]
[null,"AC","MP","PSO","PFC","STA","ECH","ENV","NET","LIMS","PROJET","ESS","AQ","AQ BIL","AQ FORM","AQ INFO","AQ REDAC","AQ VERIF","AQ REACT","AQ LEAN","AQ MET","CAP REELLE","CONGE","ABSENCES","CAP. THEO.","HS"]
["PRELEV. AC",0,0,0,0,0,0,0,0,0,0,0,0,0,0,0,0,0,0,0,0,{"$f":"SUM(B83:M83)","v":0},0,0,{"$f":"SUM(V83:X83)-Z83","v":0}]
["PHYSICO-CHIMIE",0,0,0,0,0,0,0,0,0,0,0,0,0,0,0,0,0,0,0,0,0,0,0,0]
["AGENT DE LAVERIE",0,0,0,0,0,0,0,0,0,0,0,0,0,0,0,0,0,0,0,0,0,0,0,0]
["MICROBIOLOGIE",0,0,0,0,0,0,0,0,0,0,0,0,0,0,0,0,0,0,0,0,0,0,0,0]
["CONT FINAL",0,0,0,0,0,0,0,0,0,0,0,0,0,0,0,0,0,0,0,0,0,0,0,0]
["TOTAL",{"$f":"SUM(B83:B87)","v":0},{"$f":"SUM(C83:C87)","v":0},0,0,0,0,0,0,0,0,0,0,0,0,0,0,0,0,0,0,0,0,0,0,0]
["DISP. LABOS EN % :",{"$f":"100*B88/V88","v":{"$error":"#DIV/0!"}},{"$f":"100*C88/V88","v":{"$error":"#DIV/0!"}},{"$f":"100*D88/V88","v":{"$error":"#DIV/0!"}},{"$f":"100*E88/V88","v":{"$error":"#DIV/0!"}},{"$f":"100*F88/V88","v":{"$error":"#DIV/0!"}},{"$f":"100*G88/V88","v":{"$error":"#DIV/0!"}},{"$f":"100*H88/V88","v":{"$error":"#DIV/0!"}},{"$f":"100*I88/V88","v":{"$error":"#DIV/0!"}},{"$f":"100*J88/V88","v":{"$error":"#DIV/0!"}},{"$f":"100*K88/V88","v":{"$error":"#DIV/0!"}},{"$f":"100*L88/V88","v":{"$error":"#DIV/0!"}},{"$f":"100*M88/V88","v":{"$error":"#DIV/0!"}},{"$f":"100*N88/V88","v":{"$error":"#DIV/0!"}},{"$f":"100*O88/V88","v":{"$error":"#DIV/0!"}},{"$f":"100*P88/V88","v":{"$error":"#DIV/0!"}},{"$f":"100*Q88/V88","v":{"$error":"#DIV/0!"}},{"$f":"100*R88/V88","v":{"$error":"#DIV/0!"}},{"$f":"100*S88/V88","v":{"$error":"#DIV/0!"}},{"$f":"100*T88/V88","v":{"$error":"#DIV/0!"}},{"$f":"100*U88/V88","v":{"$error":"#DIV/0!"}},{"$f":"100*V88/V88","v":{"$error":"#DIV/0!"}},{"$f":"100*W88/W88","v":{"$error":"#DIV/0!"}},{"$f":"100*X88/V88","v":{"$error":"#DIV/0!"}},{"$f":"100*Y88/V88","v":{"$error":"#DIV/0!"}},{"$f":"100*Z88/V88","v":{"$error":"#DIV/0!"}}]
[]
["SEPTEMBRE"]
[]
[null,"AC","MP","PSO","PFC","STA","ECH","ENV","NET","LIMS","PROJET","ESS","AQ","AQ BIL","AQ FORM","AQ INFO","AQ REDAC","AQ VERIF","AQ REACT","AQ LEAN","AQ MET","CAP REELLE","CONGE","ABSENCES","CAP. THEO.","HS"]
["PRELEV. AC",0,0,0,0,0,0,0,0,0,0,0,0,0,0,0,0,0,0,0,0,{"$f":"SUM(B94:M94)","v":0},0,0,{"$f":"SUM(V94:X94)-Z94","v":0}]
["PHYSICO-CHIMIE",0,0,0,0,0,0,0,0,0,0,0,0,0,0,0,0,0,0,0,0,0,0,0,0]
["AGENT DE LAVERIE",0,0,0,0,0,0,0,0,0,0,0,0,0,0,0,0,0,0,0,0,0,0,0,0]
["MICROBIOLOGIE",0,0,0,0,0,0,0,0,0,0,0,0,0,0,0,0,0,0,0,0,0,0,0,0]
["CONT FINAL",0,0,0,0,0,0,0,0,0,0,0,0,0,0,0,0,0,0,0,0,0,0,0,0]
["TOTAL",{"$f":"SUM(B94:B98)","v":0},{"$f":"SUM(C94:C98)","v":0},0,0,0,0,0,0,0,0,0,0,0,0,0,0,0,0,0,0,0,0,0,0,0]
["DISP. LABOS EN % :",{"$f":"100*B99/V99","v":{"$error":"#DIV/0!"}},{"$f":"100*C99/V99","v":{"$error":"#DIV/0!"}},{"$f":"100*D99/V99","v":{"$error":"#DIV/0!"}},{"$f":"100*E99/V99","v":{"$error":"#DIV/0!"}},{"$f":"100*F99/V99","v":{"$error":"#DIV/0!"}},{"$f":"100*G99/V99","v":{"$error":"#DIV/0!"}},{"$f":"100*H99/V99","v":{"$error":"#DIV/0!"}},{"$f":"100*I99/V99","v":{"$error":"#DIV/0!"}},{"$f":"100*J99/V99","v":{"$error":"#DIV/0!"}},{"$f":"100*K99/V99","v":{"$error":"#DIV/0!"}},{"$f":"100*L99/V99","v":{"$error":"#DIV/0!"}},{"$f":"100*M99/V99","v":{"$error":"#DIV/0!"}},{"$f":"100*N99/V99","v":{"$error":"#DIV/0!"}},{"$f":"100*O99/V99","v":{"$error":"#DIV/0!"}},{"$f":"100*P99/V99","v":{"$error":"#DIV/0!"}},{"$f":"100*Q99/V99","v":{"$error":"#DIV/0!"}},{"$f":"100*R99/V99","v":{"$error":"#DIV/0!"}},{"$f":"100*S99/V99","v":{"$error":"#DIV/0!"}},{"$f":"100*T99/V99","v":{"$error":"#DIV/0!"}},{"$f":"100*U99/V99","v":{"$error":"#DIV/0!"}},{"$f":"100*V99/V99","v":{"$error":"#DIV/0!"}},{"$f":"100*W99/W99","v":{"$error":"#DIV/0!"}},{"$f":"100*X99/V99","v":{"$error":"#DIV/0!"}},{"$f":"100*Y99/V99","v":{"$error":"#DIV/0!"}},{"$f":"100*Z99/V99","v":{"$error":"#DIV/0!"}}]
[]
["OCTOBRE"]
[]
[null,"AC","MP","PSO","PFC","STA","ECH","ENV","NET","LIMS","PROJET","ESS","AQ","AQ BIL","AQ FORM","AQ INFO","AQ REDAC","AQ VERIF","AQ REACT","AQ LEAN","AQ MET","CAP REELLE","CONGE","ABSENCES","CAP. THEO.","HS"]
["PRELEV. AC",0,0,0,0,0,0,0,0,0,0,0,0,0,0,0,0,0,0,0,0,{"$f":"SUM(B105:M105)","v":0},0,0,{"$f":"SUM(V105:X105)-Z105","v":0}]
["PHYSICO-CHIMIE",0,0,0,0,0,0,0,0,0,0,0,0,0,0,0,0,0,0,0,0,0,0,0,0]
["AGENT DE LAVERIE",0,0,0,0,0,0,0,0,0,0,0,0,0,0,0,0,0,0,0,0,0,0,0,0]
["MICROBIOLOGIE",0,0,0,0,0,0,0,0,0,0,0,0,0,0,0,0,0,0,0,0,0,0,0,0]
["CONT FINAL",0,0,0,0,0,0,0,0,0,0,0,0,0,0,0,0,0,0,0,0,0,0,0,0]
["TOTAL",{"$f":"SUM(B105:B109)","v":0},{"$f":"SUM(C105:C109)","v":0},0,0,0,0,0,0,0,0,0,0,0,0,0,0,0,0,0,0,0,0,0,0,0]
["DISP. LABOS EN % :",{"$f":"100*B110/V110","v":{"$error":"#DIV/0!"}},{"$f":"100*C110/V110","v":{"$error":"#DIV/0!"}},{"$f":"100*D110/V110","v":{"$error":"#DIV/0!"}},{"$f":"100*E110/V110","v":{"$error":"#DIV/0!"}},{"$f":"100*F110/V110","v":{"$error":"#DIV/0!"}},{"$f":"100*G110/V110","v":{"$error":"#DIV/0!"}},{"$f":"100*H110/V110","v":{"$error":"#DIV/0!"}},{"$f":"100*I110/V110","v":{"$error":"#DIV/0!"}},{"$f":"100*J110/V110","v":{"$error":"#DIV/0!"}},{"$f":"100*K110/V110","v":{"$error":"#DIV/0!"}},{"$f":"100*L110/V110","v":{"$error":"#DIV/0!"}},{"$f":"100*M110/V110","v":{"$error":"#DIV/0!"}},{"$f":"100*N110/V110","v":{"$error":"#DIV/0!"}},{"$f":"100*O110/V110","v":{"$error":"#DIV/0!"}},{"$f":"100*P110/V110","v":{"$error":"#DIV/0!"}},{"$f":"100*Q110/V110","v":{"$error":"#DIV/0!"}},{"$f":"100*R110/V110","v":{"$error":"#DIV/0!"}},{"$f":"100*S110/V110","v":{"$error":"#DIV/0!"}},{"$f":"100*T110/V110","v":{"$error":"#DIV/0!"}},{"$f":"100*U110/V110","v":{"$error":"#DIV/0!"}},{"$f":"100*V110/V110","v":{"$error":"#DIV/0!"}},{"$f":"100*W110/W110","v":{"$error":"#DIV/0!"}},{"$f":"100*X110/V110","v":{"$error":"#DIV/0!"}},{"$f":"100*Y110/V110","v":{"$error":"#DIV/0!"}},{"$f":"100*Z110/V110","v":{"$error":"#DIV/0!"}}]
[]
["NOVEMBRE"]
[]
[null,"AC","MP","PSO","PFC","STA","ECH","ENV","NET","LIMS","PROJET","ESS","AQ","AQ BIL","AQ FORM","AQ INFO","AQ REDAC","AQ VERIF","AQ REACT","AQ LEAN","AQ MET","CAP REELLE","CONGE","ABSENCES","CAP. THEO.","HS"]
["PRELEV. AC",0,0,0,0,0,0,0,0,0,0,0,0,0,0,0,0,0,0,0,0,{"$f":"SUM(B116:M116)","v":0},0,0,{"$f":"SUM(V116:X116)-Z116","v":0}]
["PHYSICO-CHIMIE",0,0,0,0,0,0,0,0,0,0,0,0,0,0,0,0,0,0,0,0,0,0,0,0]
["AGENT DE LAVERIE",0,0,0,0,0,0,0,0,0,0,0,0,0,0,0,0,0,0,0,0,0,0,0,0]
["MICROBIOLOGIE",0,0,0,0,0,0,0,0,0,0,0,0,0,0,0,0,0,0,0,0,0,0,0,0]
["CONT FINAL",0,0,0,0,0,0,0,0,0,0,0,0,0,0,0,0,0,0,0,0,0,0,0,0]
["TOTAL",{"$f":"SUM(B116:B120)","v":0},{"$f":"SUM(C116:C120)","v":0},0,0,0,0,0,0,0,0,0,0,0,0,0,0,0,0,0,0,0,0,0,0,0]
["DISP. LABOS EN % :",{"$f":"100*B121/V121","v":{"$error":"#DIV/0!"}},{"$f":"100*C121/V121","v":{"$error":"#DIV/0!"}},{"$f":"100*D121/V121","v":{"$error":"#DIV/0!"}},{"$f":"100*E121/V121","v":{"$error":"#DIV/0!"}},{"$f":"100*F121/V121","v":{"$error":"#DIV/0!"}},{"$f":"100*G121/V121","v":{"$error":"#DIV/0!"}},{"$f":"100*H121/V121","v":{"$error":"#DIV/0!"}},{"$f":"100*I121/V121","v":{"$error":"#DIV/0!"}},{"$f":"100*J121/V121","v":{"$error":"#DIV/0!"}},{"$f":"100*K121/V121","v":{"$error":"#DIV/0!"}},{"$f":"100*L121/V121","v":{"$error":"#DIV/0!"}},{"$f":"100*M121/V121","v":{"$error":"#DIV/0!"}},{"$f":"100*N121/V121","v":{"$error":"#DIV/0!"}},{"$f":"100*O121/V121","v":{"$error":"#DIV/0!"}},{"$f":"100*P121/V121","v":{"$error":"#DIV/0!"}},{"$f":"100*Q121/V121","v":{"$error":"#DIV/0!"}},{"$f":"100*R121/V121","v":{"$error":"#DIV/0!"}},{"$f":"100*S121/V121","v":{"$error":"#DIV/0!"}},{"$f":"100*T121/V121","v":{"$error":"#DIV/0!"}},{"$f":"100*U121/V121","v":{"$error":"#DIV/0!"}},{"$f":"100*V121/V121","v":{"$error":"#DIV/0!"}},{"$f":"100*W121/W121","v":{"$error":"#DIV/0!"}},{"$f":"100*X121/V121","v":{"$error":"#DIV/0!"}},{"$f":"100*Y121/V121","v":{"$error":"#DIV/0!"}},{"$f":"100*Z121/V121","v":{"$error":"#DIV/0!"}}]
[]
["DECEMBRE"]
[]
[null,"AC","MP","PSO","PFC","STA","ECH","ENV","NET","LIMS","PROJET","ESS","AQ","AQ BIL","AQ FORM","AQ INFO","AQ REDAC","AQ VERIF","AQ REACT","AQ LEAN","AQ MET","CAP REELLE","CONGE","ABSENCES","CAP. THEO.","HS"]
["PRELEV. AC",0,0,0,0,0,0,0,0,0,0,0,0,0,0,0,0,0,0,0,0,{"$f":"SUM(B127:M127)","v":0},0,0,{"$f":"SUM(V127:X127)-Z127","v":0}]
["PHYSICO-CHIMIE",0,0,0,0,0,0,0,0,0,0,0,0,0,0,0,0,0,0,0,0,0,0,0,0]
["AGENT DE LAVERIE",0,0,0,0,0,0,0,0,0,0,0,0,0,0,0,0,0,0,0,0,0,0,0,0]
["MICROBIOLOGIE",0,0,0,0,0,0,0,0,0,0,0,0,0,0,0,0,0,0,0,0,0,0,0,0]
["CONT FINAL",0,0,0,0,0,0,0,0,0,0,0,0,0,0,0,0,0,0,0,0,0,0,0,0]
["TOTAL",{"$f":"SUM(B127:B131)","v":0},{"$f":"SUM(C127:C131)","v":0},0,0,0,0,0,0,0,0,0,0,0,0,0,0,0,0,0,0,0,0,0,0,0]
["DISP. LABOS EN % :",{"$f":"100*B132/V132","v":{"$error":"#DIV/0!"}},{"$f":"100*C132/V132","v":{"$error":"#DIV/0!"}},{"$f":"100*D132/V132","v":{"$error":"#DIV/0!"}},{"$f":"100*E132/V132","v":{"$error":"#DIV/0!"}},{"$f":"100*F132/V132","v":{"$error":"#DIV/0!"}},{"$f":"100*G132/V132","v":{"$error":"#DIV/0!"}},{"$f":"100*H132/V132","v":{"$error":"#DIV/0!"}},{"$f":"100*I132/V132","v":{"$error":"#DIV/0!"}},{"$f":"100*J132/V132","v":{"$error":"#DIV/0!"}},{"$f":"100*K132/V132","v":{"$error":"#DIV/0!"}},{"$f":"100*L132/V132","v":{"$error":"#DIV/0!"}},{"$f":"100*M132/V132","v":{"$error":"#DIV/0!"}},{"$f":"100*N132/V132","v":{"$error":"#DIV/0!"}},{"$f":"100*O132/V132","v":{"$error":"#DIV/0!"}},{"$f":"100*P132/V132","v":{"$error":"#DIV/0!"}},{"$f":"100*Q132/V132","v":{"$error":"#DIV/0!"}},{"$f":"100*R132/V132","v":{"$error":"#DIV/0!"}},{"$f":"100*S132/V132","v":{"$error":"#DIV/0!"}},{"$f":"100*T132/V132","v":{"$error":"#DIV/0!"}},{"$f":"100*U132/V132","v":{"$error":"#DIV/0!"}},{"$f":"100*V132/V132","v":{"$error":"#DIV/0!"}},{"$f":"100*W132/W132","v":{"$error":"#DIV/0!"}},{"$f":"100*X132/V132","v":{"$error":"#DIV/0!"}},{"$f":"100*Y132/V132","v":{"$error":"#DIV/0!"}},{"$f":"100*Z132/V132","v":{"$error":"#DIV/0!"}}]
[]
[]
[]
[null,"AC","MP","PSO","PFC","STA","ECH","ENV","NET","LIMS","PROJET","ESS","AQ","AQ BIL","AQ FORM","AQ INFO","AQ REDAC","AQ VERIF","AQ REACT","AQ LEAN","AQ MET"]
["PRELEV. AC",{"$f":"SUM(B6+B17+B28+B39+B50+B61+B72+B83+B94+B105+B116+B127)","v":431.5},{"$f":"SUM(C6+C17+C28+C39+C50+C61+C72+C83+C94+C105+C116+C127)","v":390.75},213.25,4,16,18,165,8,36.5,10,22,123.5,12,26,36.75,71.5,16,17,49.25,69]
["PHYSICO-CHIMIE",{"$f":"SUM(B7+B18+B29+B40+B51+B62+B73+B84+B95+B106+B117+B128)","v":34.5},1223.75,86759.594004629616,0,573.25,0,0,12.75,148.25,205.75,665.75,3156.5,113.25,99.5,894.75,198.25,778.5,303.75,131,637.5]
["AGENT DE LAVERIE",0,0,0,0,0,0,0,150.75,0,0,0,346.75,61.5,64.5,67,39.75,0,222,48.25,109.75]
["MICROBIOLOGIE",0,200,726.55,0,24.75,44.5,590.75,121.25,96,3,202.8,1501.4,141.25,322.5,178.25,206,240,236.15,34.5,142.75]
["CONT FINAL",0,0,0,365.5,0,0,0,0,4,0,0,61.5,11,0,3.75,0.25,2.5,0,40.5,3.5]
["TOTAL",{"$f":"SUM(B138:B142)","v":466},{"$f":"SUM(C138:C142)","v":1814.5},87699.394004629619,369.5,614,62.5,755.75,292.75,284.75,218.75,890.55,5189.6499999999996,339,512.5,1180.5,515.75,1037,778.9,303.5,962.5]
[]
[]
[null,"Etat global 2016"]

{"sheet":"fBD","index":1,"n_rows":645,"n_cols":50,"rows_kept":645,"cut":false,"hidden":false,"merged":[[1,48,1,49]]}
["Base de données imputation"]
["NOM","MOIS","Semaine","AC","Commentaire","MP","Commentaire","PSO","Commentaire","PFC","Commentaire","STA","Commentaire","ECH","Commentaire","ENV","Commentaire","NET","Commentaire","LIMS","Commentaire","PROJET","Commentaire","ESS","Commentaire","AQ BIL","Commentaire","AQ FORM","Commentaire","AQ INFO","Commentaire","AQ REDAC","Commentaire","AQ VERIF","Commentaire","AQ REACT","Commentaire","AQ LEAN","Commentaire","AQ MET","Commentaire","CONGE","ABSENCES","DONT HS indicatif","VISA/VALIDATION","AQ","CAPACITE\nREELLE","CAPACITE\nTHEORIQUE","Date et heure de validation"]
["BONNEMORE","JANVIER","Semaine (04-08/01)","35","",0,"",0,null,0,null,0,null,0,null,0,null,0,null,1,null,0,null,0,null,0,null,2,null,0,null,0,null,0,null,0,null,1,null,0,null,0,0,0,"aaaaa",3,39,39,{"$f":"IF($AS3=\"\",\"\",IF(AW3<>\"\",AW3,TODAY()))","v":"2016-05-08"},{"$f":"IF($AS3=\"\",\"\",IF(AX3<>\"\",AX3,NOW()))","v":42498.689528587965}]
["BONNEMORE","JANVIER","Semaine (11-15/01)","38","",0,"","18","",0,"","11",null,0,null,0,null,0,null,1,null,0,null,0,null,0,null,0,null,0,null,0,null,0,null,0,null,0,null,0,null,0,0,0,null,0,39,39,"",{"$f":"IF($AS4=\"\",\"\",IF(AX4<>\"\",AX4,NOW()))","v":""}]
["BONNEMORE","JANVIER","Semaine (18-22/01)","1","A","2","B","3","C","4","D","5","BLABLA","6","F","7","G","8","H","9","I","10","J","11","K","12","L","13","M","14","N","15","O","16","P","17","Q","18","R","19","S","100","100","100",null,0,32,39,"",{"$f":"IF($AS5=\"\",\"\",IF(AX5<>\"\",AX5,NOW()))","v":""}]
["BONNEMORE","JANVIER","Semaine (25-29/01)",28,null,0,null,0,null,0,null,0,null,0,null,0,null,0,null,1,null,0,null,2,null,0,null,1,null,0,null,0,null,0,null,0,null,0,null,0,null,7,0,0,null,1,32,39,"",""]
["BONNEMORE","FEVRIER","Semaine (01-05/02)",38,null,0,null,0,null,0,null,0,null,0,null,0,null,0,null,1,null,0,null,0,null,0,null,0,null,0,null,0,null,0,null,0,null,0,null,0,null,0,0,0,null,0,39,39,"",""]
["BONNEMORE","FEVRIER","Semaine (81-12/02)",35.5,null,0,null,0,null,0,null,0,null,0,null,0,null,0,null,1,null,0,null,2,null,0,null,0,null,0.5,null,0,null,0,null,0,null,0,null,0,null,0,0,0,null,0.5,39,39,"",""]
["BONNEMORE","FEVRIER","Semaine (15-19/02)",38,null,0,null,0,null,0,null,0,null,0,null,0,null,0,null,1,null,0,null,0,null,0,null,0,null,0,null,0,null,0,null,0,null,0,null,0,null,0,0,0,null,0,39,39,"",""]
["BONNEMORE","FEVRIER","Semaine (22-26/02)",38,null,0,null,0,null,0,null,0,null,0,null,0,null,0,null,1,null,0,null,0,null,0,null,0,null,0,null,0,null,0,null,0,null,0,null,0,null,0,0,0,null,0,39,39,"",""]
["BONNEMORE","FEVRIER","Semaine (29/02)",4,null,0,null,0,null,0,null,0,null,0,null,0,null,0,null,1,null,0,null,0,null,0,null,0,null,0,null,1,null,0,null,0,null,0,null,2,null,0,0,0,null,3,8,8,"",""]
["BONNEMORE","MARS","Semaine (01-04/03)",30,null,0,null,0,null,0,null,0,null,0,null,0,null,0,null,1,null,0,null,0,null,0,null,0,null,0,null,0,null,0,null,0,null,0,null,0,null,0,0,0,null,0,31,31,"",""]
["BONNEMORE","MARS","Semaine (07-11/03)",38,null,0,null,0,null,0,null,0,null,0,null,0,null,0,null,1,null,0,null,0,null,0,null,0,null,0,null,0,null,0,null,0,null,0,null,0,null,0,0,0,null,0,39,39,"",""]
["BONNEMORE","MARS","Semaine (14-18/03)",38,null,0,null,0,null,0,null,0,null,0,null,0,null,0,null,1,null,0,null,0,null,0,null,0,null,0,null,0,null,0,null,0,null,0,null,0,null,0,0,0,null,0,39,39,"",""]
["BONNEMORE","MARS","Semaine (21-25/03)",38,null,0,null,0,null,0,null,0,null,0,null,0,null,0,null,1,null,0,null,0,null,0,null,0,null,0,null,0,null,0,null,0,null,0,null,0,null,0,0,0,null,0,39,39,"",""]
["BONNEMORE","MARS","Semaine (29-31/03)",0,null,0,null,0,null,0,null,0,null,0,null,0,null,0,null,0,null,0,null,0,null,0,null,0,null,0,null,0,null,0,null,0,null,0,null,0,null,24,0,0,null,0,0,24,"",""]
["EPRON","JANVIER","Semaine (04-08/01)",0,null,16,null,1,null,0,null,0,null,0,null,5.5,null,0,null,0,null,0,null,0,null,0,null,2,null,1,null,2,null,0,null,0,null,1,null,2.5,null,8,0,0,null,8.5,31,39,"",""]
["EPRON","JANVIER","Semaine (11-15/01)",2,null,20.5,null,5.75,null,0,null,0,null,0,null,5.75,null,0,null,0,null,0,null,0,null,0,null,0,null,0,null,2,null,0,null,0,null,0.5,null,2.5,null,0,0,0,null,5,39,39,"",""]
["EPRON","JANVIER","Semaine (18-22/01)",2,null,18.5,null,3.5,null,0,null,0,null,0,null,8,null,0,null,0,null,0,null,0,null,0,null,0,null,1,null,2,null,0,null,0,null,1.5,null,2.5,null,0,0,0,null,7,39,39,"",""]
["EPRON","JANVIER","Semaine (25-29/01)",7,null,8.25,null,2,null,0,null,0,null,0,null,8.25,null,0,null,0,null,0,null,0,null,0,null,0,null,0,null,3,null,0,null,0,null,0.5,null,2,null,8,0,0,null,5.5,31,39,"",""]
["EPRON","FEVRIER","Semaine (01-05/02)",0,null,16,null,12,null,0,null,0,null,0,null,5,null,0,null,0,null,0,null,0,null,0,null,0,null,0,null,3,null,0,null,0,null,0.5,null,2.5,null,0,0,0,null,6,39,39,"",""]
["EPRON","FEVRIER","Semaine (81-12/02)",0,null,16.5,null,6,null,0,null,0,null,0,null,9,null,0,null,0,null,0,null,0,null,0,null,0,null,2,null,3,null,0,null,0,null,0.5,null,2,null,0,0,0,null,7.5,39,39,"",""]
["EPRON","FEVRIER","Semaine (15-19/02)",0,null,18,null,5,null,0,null,0,null,0,null,9.5,null,0,null,0,null,0,null,0,null,0,null,0,null,0,null,3,null,0,null,0,null,1,null,2.5,null,0,0,0,null,6.5,39,39,"",""]
["EPRON","FEVRIER","Semaine (22-26/02)",0,null,11,null,11,null,0,null,0,null,0,null,11.5,null,0,null,0,null,0,null,0,null,0,null,0,null,0,null,2,null,0,null,0,null,0,null,3.5,null,0,0,0,null,5.5,39,39,"",""]
["EPRON","FEVRIER","Semaine (29/02)",0,null,2,null,3,null,0,null,0,null,0,null,0.5,null,0,null,0,null,0,null,0,null,0,null,0,null,0,null,2.5,null,0,null,0,null,0,null,0,null,0,0,0,null,2.5,8,8,"",""]
["EPRON","MARS","Semaine (01-04/03)",0,null,6,null,5,null,0,null,0,null,0,null,12.5,null,0,null,2,null,0,null,0,null,0,null,0,null,0,null,3,null,0,null,0,null,0.5,null,2,null,0,0,0,null,5.5,31,31,"",""]
["EPRON","MARS","Semaine (07-11/03)",3,null,16.5,null,8,null,0,null,0,null,0,null,6.5,null,0,null,0,null,0,null,0,null,0,null,0,null,0.75,null,0,null,0,null,0,null,0.25,null,0,null,4,0,0,"",1,35,39,"",""]
["EPRON","MARS","Semaine (14-18/03)",0,null,23.25,null,6,null,0,null,0,null,0,null,5.25,null,0,null,2.5,null,0,null,0,null,0,null,0,null,0,null,2,null,0,null,0,null,0,null,0,null,0,0,0,null,2,39,39,"",""]
["EPRON","MARS","Semaine (21-25/03)",0,null,20.25,null,3,null,0,null,0,null,0,null,5.25,null,0,null,2.5,null,0,null,0,null,0,null,0,null,1,null,2,null,0,null,0,null,1,null,0,null,4,0,0,null,4,35,39,"",""]
["EPRON","MARS","Semaine (29-31/03)",15,null,4,null,0,null,0,null,0,null,0,null,3,null,0,null,1.5,null,0,null,0,null,0,null,0,null,0.5,null,0,null,0,null,0,null,0,null,0,null,0,0,0,null,0.5,24,24,"",""]
["VEYSSIERE","JANVIER","Semaine (04-08/01)",0,null,18,null,3.5,null,0,null,0,null,4,null,5,null,0,null,0,null,0,null,0,null,0,null,0,null,3,null,1,null,0,null,0,null,1,null,1,null,0,2.5,0,null,6,36.5,39,"",""]
["VEYSSIERE","JANVIER","Semaine (11-15/01)",0,null,13,null,12,null,0,null,0,null,0,null,2,null,0,null,0,null,0,null,0,null,0,null,0,null,1,null,1,null,0,null,0,null,1,null,1,null,0,8,0,null,4,31,39,"",""]
["VEYSSIERE","JANVIER","Semaine (18-22/01)",0,null,10,null,8,null,0,null,0,null,0,null,1,null,0,null,0,null,0,null,0,null,0,null,0,null,0,null,1,null,0,null,0,null,2,null,1,null,16,0,0,null,4,23,39,"",""]
["VEYSSIERE","JANVIER","Semaine (25-29/01)",0,null,13,null,9,null,0,null,0,null,0,null,6,null,0,null,0,null,0,null,0,null,0,null,0,null,0,null,1,null,0,null,0,null,1,null,1,null,8,0,0,null,3,31,39,"",""]
["VEYSSIERE","FEVRIER","Semaine (01-05/02)",0,null,16,null,14,null,0,null,0,null,0,null,4,null,0,null,0,null,0,null,0,null,0,null,0,null,2,null,1,null,0,null,0,null,1,null,1,null,0,0,0,null,5,39,39,"",""]
["VEYSSIERE","FEVRIER","Semaine (81-12/02)",0,null,16,null,8,null,0,null,0,null,4,null,0,null,0,null,0,null,0,null,0,null,0,null,0,null,0,null,1,null,0,null,0,null,1,null,1,null,0,8,0,null,3,31,39,"",""]
["VEYSSIERE","FEVRIER","Semaine (15-19/02)",0,null,20,null,11,null,0,null,0,null,0,null,4,null,0,null,1,null,0,null,0,null,0,null,0,null,0,null,1,null,0,null,0,null,1,null,1,null,0,0,0,null,3,39,39,"",""]
["VEYSSIERE","FEVRIER","Semaine (22-26/02)",0,null,19,null,7.5,null,0,null,0,null,0,null,10.5,null,0,null,0,null,0,null,0,null,0,null,0,null,0,null,1,null,0,null,0,null,0,null,1,null,0,0,0,null,2,39,39,"",""]
["VEYSSIERE","FEVRIER","Semaine (29/02)",0,null,0,null,2,null,0,null,0,null,0,null,3,null,0,null,0,null,0,null,0,null,0,null,0,null,0,null,2,null,0,null,0,null,0,null,1,null,0,0,0,null,3,8,8,"",""]
["VEYSSIERE","MARS","Semaine (01-04/03)",0,null,4,null,7,null,0,null,0,null,0,null,7,null,0,null,0,null,0,null,0,null,0,null,0,null,0,null,2,null,0,null,0,null,2,null,1,null,0,8,0,null,5,23,31,"",""]
["VEYSSIERE","MARS","Semaine (07-11/03)",2,null,7,null,18,null,0,null,0,null,0,null,9,null,0,null,0,null,0,null,0,null,0,null,0,null,0,null,1,null,0,null,0,null,1,null,1,null,0,0,0,null,3,39,39,"",""]
["VEYSSIERE","MARS","Semaine (14-18/03)",0,null,20,null,9,null,0,null,0,null,0,null,0,null,0,null,0,null,0,null,0,null,0,null,0,null,0,null,1,null,0,null,0,null,0,null,1,null,8,0,0,null,2,31,39,"",""]
["VEYSSIERE","MARS","Semaine (21-25/03)",0,null,20,null,9,null,0,null,0,null,0,null,6,null,0,null,0,null,0,null,0,null,0,null,0,null,1,null,1,null,0,null,0,null,1,null,1,null,0,0,0,null,4,39,39,"",""]
["VEYSSIERE","MARS","Semaine (29-31/03)",0,null,14,null,0,null,0,null,0,null,0,null,0,null,0,null,0,null,0,null,0,null,0,null,0,null,0,null,1,null,0,null,0,null,0,null,1,null,8,0,0,null,2,16,24,"",""]
["ABAD","JANVIER","Semaine (04-08/01)",1.5,null,2,null,27,null,0,null,0,null,0,null,0,null,0,null,0,null,0,null,2.5,null,0,null,2,null,1,null,0,null,0,null,3,null,0,null,0,null,0,0,0,null,6,39,39,"",""]
["ABAD","JANVIER","Semaine (11-15/01)",0.5,null,2,null,27.5,null,0,null,0,null,0,null,0,null,0,null,0,null,0,null,2,null,0,null,0,null,1,null,0,null,0,null,3.5,null,0,null,1.5,null,0,1,0,null,6,38,39,"",""]
["ABAD","JANVIER","Semaine (18-22/01)",0,null,1.5,null,31,null,0,null,0,null,0,null,0,null,0,null,0,null,0,null,0,null,0,null,3,null,2,null,0,null,0,null,0.5,null,0,null,1,null,0,0,0,null,6.5,39,39,"",""]
["ABAD","JANVIER","Semaine (25-29/01)",0,null,1.5,null,34.5,null,0,null,0,null,0,null,0,null,0,null,0,null,0,null,0,null,0,null,0,null,1,null,0,null,0,null,0,null,1,null,1,null,0,0,0,null,3,39,39,"",""]
["ABAD","FEVRIER","Semaine (01-05/02)",0,null,2,null,31.75,null,0,null,0,null,0,null,0,null,0,null,0,null,0,null,0,null,0,null,1,null,1.25,null,0,null,0,null,0,null,0,null,3,null,0,0,0,null,5.25,39,39,"",""]
["ABAD","FEVRIER","Semaine (81-12/02)",0,null,3,null,28.5,null,0,null,0,null,0,null,0,null,0,null,0,null,0,null,0,null,0,null,0,null,1.5,null,0,null,0,null,4,null,0,null,2,null,0,0,0,null,7.5,39,39,"",""]
["ABAD","FEVRIER","Semaine (15-19/02)",0,null,2,null,24.75,null,0,null,0,null,0,null,0,null,0,null,0,null,0,null,0,null,0,null,0,null,1,null,0,null,0,null,0,null,1,null,3,null,0,7.25,0,null,5,31.75,39,"",""]
["ABAD","FEVRIER","Semaine (22-26/02)",0,null,0,null,14.75,null,0,null,0,null,0,null,0,null,0,null,0,null,0,null,0,null,0,null,0,null,0.25,null,0,null,0,null,0,null,0,null,0,null,0,0,0,null,0.25,15,15,"",""]
["ABAD","FEVRIER","Semaine (29/02)",0,null,0,null,7.75,null,0,null,0,null,0,null,0,null,0,null,0,null,0,null,0,null,0,null,0,null,0.25,null,0,null,0,null,0,null,0,null,0,null,0,0,0,null,0.25,8,8,"",""]
["ABAD","MARS","Semaine (01-04/03)",0,null,0,null,29,null,0,null,0,null,0,null,0,null,0,null,0,null,0,null,0,null,0,null,0,null,1,null,0,null,0,null,0,null,0,null,1,null,0,0,0,null,2,31,31,"",""]
["ABAD","MARS","Semaine (07-11/03)",0,null,0.5,null,33.5,null,0,null,0.5,null,0,null,0,null,0,null,0,null,0,null,2,null,0,null,0.5,null,1,null,0,null,0,null,0,null,0,null,1,null,0,0,0,null,2.5,39,39,"",""]
["ABAD","MARS","Semaine (14-18/03)",0,null,0,null,33.5,null,0,null,0,null,0,null,0,null,0,null,0,null,0,null,1,null,0,null,0,null,1,null,0,null,0,null,2.5,null,0,null,1,null,0,0,0,null,4.5,39,39,"",""]
["ABAD","MARS","Semaine (21-25/03)",0,null,0,null,33.5,null,0,null,0,null,0,null,0,null,0,null,0,null,0,null,0,null,0,null,0,null,1.5,null,0,null,0,null,2,null,1,null,1,null,0,0,0,null,5.5,39,39,"",""]
["ABAD","MARS","Semaine (29-31/03)",0,null,0,null,23,null,0,null,0,null,0,null,0,null,0,null,0,null,0,null,0,null,0,null,0,null,0.5,null,0,null,0,null,0.5,null,0,null,0,null,0,0,0,null,1,24,24,"",""]
["BAH","JANVIER","Semaine (04-08/01)",0,null,25.5,null,0,null,0,null,0,null,0,null,0,null,0,null,0,null,0,null,1,null,0,null,2.5,null,2.25,null,0,null,0,null,1,null,0,null,6.75,null,0,0,0,null,12.5,39,39,"",""]
["BAH","JANVIER","Semaine (11-15/01)",0,null,24.5,null,0,null,0,null,0,null,0,null,0,null,0,null,0,null,0,null,1.5,null,0,null,0,null,1.25,null,0,null,0,null,0.75,null,0,null,11,null,0,0,0,null,13,39,39,"",""]
["BAH","JANVIER","Semaine (18-22/01)",0,null,25,null,0.25,null,0,null,0,null,0,null,0,null,0,null,0,null,0,null,4.25,null,0.5,null,0,null,3.75,null,0,null,0,null,2.25,null,0,null,3,null,0,0,0,null,9.5,39,39,"",""]
["BAH","JANVIER","Semaine (25-29/01)",0,null,21.75,null,2,null,0,null,0,null,0,null,0,null,0,null,0,null,0,null,9.75,null,0,null,0,null,2,null,0,null,0,null,0.75,null,1,null,2.5,null,0,1.25,2,null,6.25,39.75,39,"",""]
["BAH","FEVRIER","Semaine (01-05/02)",0,null,9.75,null,0,null,0,null,0,null,0,null,0,null,0,null,0,null,0,null,7.75,null,0,null,0,null,1,null,7,null,0,null,0.75,null,0,null,4.75,null,8,0,0,null,13.5,31,39,"",""]
["BAH","FEVRIER","Semaine (81-12/02)",0,null,29.25,null,0,null,0,null,0,null,0,null,0,null,0,null,0,null,0,null,4,null,0,null,0.5,null,1.75,null,0.5,null,0,null,0.75,null,0,null,2.25,null,0,0,0,null,5.75,39,39,"",""]
["BAH","FEVRIER","Semaine (15-19/02)",0,null,25.75,null,0.5,null,0,null,0,null,0,null,0,null,0,null,0,null,0,null,0,null,3,null,0,null,1.5,null,0.25,null,4,null,0,null,0,null,4,null,0,0,0,null,12.75,39,39,"",""]
["BAH","FEVRIER","Semaine (22-26/02)",0,null,31,null,0.5,null,0,null,0,null,0,null,0,null,0,null,0,null,0,null,0.5,null,1.25,null,0,null,0.75,null,0,null,0,null,2.25,null,0,null,2.75,null,0,0,0,"",7,39,39,"",""]
["BAH","FEVRIER","Semaine (29/02)",0,null,0,null,0,null,0,null,0,null,0,null,0,null,0,null,0,null,0,null,0,null,0,null,0,null,0,null,0,null,0,null,0,null,0,null,0,null,8,0,0,null,0,0,8,"",""]
["BAH","MARS","Semaine (01-04/03)",0,null,18.75,null,0,null,0,null,0,null,0,null,0,null,0,null,0,null,0,null,0,null,0,null,0,null,1,null,0,null,0,null,0.5,null,0,null,2.75,null,8,0,0,null,4.25,23,31,{"$f":"IF($AS68=\"\",\"\",IF(AW68<>\"\",AW68,TODAY()))","v":""},""]
["BAH","MARS","Semaine (07-11/03)",0,null,9.25,null,2.5,null,0,null,0,null,0,null,0,null,0,null,0,null,2.25,null,13.25,null,1,null,0.75,null,1,null,0,null,0,null,0.75,null,0,null,8.25,null,0,0,0,null,11.75,39,39,"",{"$f":"IF($AS69=\"\",\"\",IF(AX69<>\"\",AX69,NOW()))","v":""}]
["BAH","MARS","Semaine (14-18/03)",0,null,27.75,null,3.75,null,0,null,0,null,0,null,0,null,0,null,0,null,0,null,0.75,null,0.25,null,0.5,null,0.75,null,0,null,0,null,0.75,null,0,null,4.5,null,0,0,0,null,6.75,39,39,"",""]
["BAH","MARS","Semaine (21-25/03)",0,"","29,5","1",42497.368356481478,null,0,null,0,null,0,null,0,null,0,null,0,null,0,null,1.5,null,0,null,0,null,2,null,0,null,0,null,1.5,null,1,null,0.5,null,0,0,1,null,5,37,36,"",""]
["BAH","MARS","Semaine (29-31/03)",0,"","24","0,5",42496.725648148145,null,0,null,0,null,0,null,0,null,0,null,0,null,0,null,0,null,0,null,0,null,0,null,0,null,0,null,0.75,null,0,null,1,null,0,0,2.25,null,1.75,26.25,24,"",""]
["BERNADOU","JANVIER","Semaine (04-08/01)",0.5,null,0,null,0.5,null,0,null,0,null,0,null,0,null,0,null,0,null,10.25,null,0,null,0,null,0,null,1.75,null,0,null,1,null,17.5,null,0.5,null,7,null,0,0,0,null,27.75,39,39,"",""]
["BERNADOU","JANVIER","Semaine (11-15/01)",0,null,0,null,0.25,null,0,null,0,null,0,null,0,null,0,null,0,null,2,null,2,null,0,null,0,null,3,null,0,null,12.25,null,17.5,null,0,null,2,null,0,0,0,null,34.75,39,39,"",""]
["BERNADOU","JANVIER","Semaine (18-22/01)",0,null,0,null,0,null,0,null,0,null,0,null,0,null,0,null,0,null,8,null,0,null,0,null,0,null,0.5,null,0,null,1,null,20.25,null,0,null,1.25,null,8,0,0,null,23,31,39,"",""]
["BERNADOU","JANVIER","Semaine (25-29/01)",0,null,0,null,0,null,0,null,0,null,0,null,0,null,0,null,0,null,1.5,null,0,null,0,null,0.25,null,2.5,null,0,null,13.25,null,10.75,null,1,null,2.75,null,7,0,0,null,30.5,32,39,"",""]
["BERNADOU","FEVRIER","Semaine (01-05/02)",0,null,0,null,1,null,0,null,0,null,0,null,0,null,0,null,0,null,3,null,0,null,0,null,0.5,null,1.75,null,0,null,13.5,null,16.25,null,0,null,4,null,0,0,1,null,36,40,39,"",""]
["BERNADOU","FEVRIER","Semaine (81-12/02)",0,null,0,null,0,null,0,null,0,null,0,null,0,null,0,null,0,null,0,null,0,null,0,null,0,null,1.5,null,0,null,26.75,null,11.5,null,0,null,0,null,0,0,0.75,null,39.75,39.75,39,"",""]
["BERNADOU","FEVRIER","Semaine (15-19/02)",0,null,0,null,1,null,0,null,0,null,0,null,0,null,0,null,0,null,7,null,0,null,0,null,0.5,null,0.25,null,0,null,12.75,null,9.5,null,1,null,1,null,7,0,1,null,25,33,39,"",""]
["BERNADOU","FEVRIER","Semaine (22-26/02)",0,null,0,null,0.25,null,0,null,0,null,0,null,0,null,0,null,0,null,5,null,0,null,0,null,0,null,0.5,null,0,null,0,null,9,null,0,null,1.25,null,23,0,0,null,10.75,16,39,"",""]
["BERNADOU","FEVRIER","Semaine (29/02)",0,null,0,null,0,null,0,null,0,null,0,null,0,null,0,null,0,null,0,null,0,null,0,null,0,null,0,null,0,null,0,null,7.5,null,0,null,0.5,null,0,0,0,null,8,8,8,"",""]
["BERNADOU","MARS","Semaine (01-04/03)",0,null,0,null,0.25,null,0,null,0,null,0,null,0,null,0,null,0,null,8,null,0,null,0,null,0,null,1.75,null,0,null,0.5,null,8.5,null,0,null,4,null,8,0,0,null,14.75,23,31,"",""]
["BERNADOU","MARS","Semaine (07-11/03)",0,null,0,null,0.25,null,0,null,0,null,0,null,0,null,0,null,0,null,5.5,null,0,null,0,null,0,null,1.25,null,0,null,9.5,null,13,null,0,null,9.5,null,0,0,0,null,33.25,39,39,"",""]
["BERNADOU","MARS","Semaine (14-18/03)",0,null,0,null,0.75,null,0,null,0,null,0,null,0,null,0,null,0,null,2.75,null,0,null,0,null,0,null,1,null,0,null,8.75,null,23,null,0,null,2.75,null,0,0,0,null,35.5,39,39,"",""]
["BERNADOU","MARS","Semaine (21-25/03)",0,null,0,null,0.5,null,0,null,0,null,0,null,0,null,0,null,0,null,3.75,null,2.5,null,0,null,0,null,0,null,0.5,null,7.75,null,18.5,null,1,null,4.5,null,0,0,0,null,32.25,39,39,"",""]
["BERNADOU","MARS","Semaine (29-31/03)",0,null,0,null,3.25,null,0,null,0,null,0,null,0,null,0,null,0,null,0.5,null,0,null,0,null,0,null,0,null,1,null,7,null,13,null,0,null,1,null,0,0,2.75,null,22,25.75,23,"",""]
["BOULESTIN","JANVIER","Semaine (04-08/01)",0,null,13.5,null,7,null,0,null,0,null,0,null,0,null,0,null,0,null,8.25,null,1,null,0,null,0,null,2.75,null,1.5,null,0,null,0,null,0,null,5,null,0,0,0,null,9.25,39,39,"",""]
["BOULESTIN","JANVIER","Semaine (11-15/01)",0,null,27.75,null,2.25,null,0,null,0,null,0,null,0,null,0,null,0,null,0,null,2.25,null,0,null,0,null,1.25,null,0,null,0,null,2.5,null,0,null,3,null,0,0,0,null,6.75,39,39,"",""]
["BOULESTIN","JANVIER","Semaine (18-22/01)",0,null,23.75,null,0,null,0,null,0,null,0,null,0,null,0,null,0,null,0,null,0,null,0,null,0,null,4,null,2.25,null,0,null,0,null,0,null,9,null,0,0,0,null,15.25,39,39,"",""]
["BOULESTIN","JANVIER","Semaine (25-29/01)",0,null,12.25,null,6.25,null,0,null,0,null,0,null,0,null,0,null,0,null,0,null,6,null,0,null,0,null,2,null,0,null,0,null,0,null,1.25,null,3.25,null,8,0,0,null,6.5,31,39,"",""]
["BOULESTIN","FEVRIER","Semaine (01-05/02)",0,null,4,null,17.75,null,0,null,0,null,0,null,0,null,0,null,0,null,0,null,5.25,null,0,null,0,null,3,null,4,null,0,null,0,null,0,null,5,null,0,0,0,null,12,39,39,"",""]
["BOULESTIN","FEVRIER","Semaine (81-12/02)",0,null,26.5,null,0.5,null,0,null,0,null,0,null,0,null,0,null,0,null,0,null,4,null,0,null,1,null,3.5,null,0,null,0,null,0,null,0,null,3.5,null,0,0,0,null,8,39,39,"",""]
["BOULESTIN","FEVRIER","Semaine (15-19/02)",0,null,0,null,0,null,0,null,0,null,0,null,0,null,0,null,0,null,0,null,0,null,0,null,0,null,0,null,0,null,0,null,0,null,0,null,0,null,0,0,0,null,0,0,0,"",""]
["BOULESTIN","FEVRIER","Semaine (22-26/02)",0,null,19,null,0,null,0,null,0,null,0,null,0,null,0,null,0,null,0,null,8.5,null,0,null,0.5,null,3.5,null,0,null,0,null,0,null,0,null,7.5,null,0,0,0,null,11.5,39,39,"",""]
["BOULESTIN","FEVRIER","Semaine (29/02)",0,null,3.75,null,0,null,0,null,0,null,0,null,0,null,0,null,0,null,0,null,1,null,0,null,0.5,null,0.75,null,0,null,0,null,0.5,null,0,null,1.5,null,0,0,0,null,3.25,8,8,"",""]
["BOULESTIN","MARS","Semaine (01-04/03)",0,null,19,null,0,null,0,null,0,null,0,null,0,null,0,null,0,null,0,null,0.75,null,0,null,0,null,8.5,null,0,null,0,null,0,null,0,null,3.75,null,0,0,1,null,12.25,32,31,"",""]
["BOULESTIN","MARS","Semaine (07-11/03)",0,null,1,null,0.75,null,0,null,10.25,null,0,null,0,null,0,null,0,null,0,null,3,null,0,null,5,null,1.5,null,0.25,null,0,null,0,null,0,null,1.25,null,16,0,0,null,8,23,39,"",""]
["BOULESTIN","MARS","Semaine (14-18/03)",0,null,1,null,0,null,0,null,26,null,0,null,0,null,0,null,0,null,0,null,6,null,0,null,1,null,1.75,null,0,null,0,null,0,null,0,null,2.5,null,0,0.75,0,null,5.25,38.25,39,"",""]
["BOULESTIN","MARS","Semaine (21-25/03)",0,null,0,null,15.75,null,0,null,15.5,null,0,null,0,null,0,null,0,null,0,null,0,null,0,null,0,null,1.75,null,0,null,0,null,0,null,1.5,null,4.5,null,0,0,0,null,7.75,39,39,"",""]
["BOULESTIN","MARS","Semaine (29-31/03)",0,null,0,null,7.5,null,0,null,7,null,0,null,0,null,0,null,0,null,0,null,6,null,0,null,0,null,3.5,null,0,null,0,null,0,null,0,null,0,null,0,0,0,null,3.5,24,24,"",""]
["CAVAILLE","JANVIER","Semaine (04-08/01)",0,null,32,null,0,null,0,null,0,null,0,null,0,null,0,null,0,null,0,null,0,null,0,null,2,null,1.5,null,0,null,0,null,3,null,0,null,0.5,null,0,0,0,null,7,39,39,"",""]
["CAVAILLE","JANVIER","Semaine (11-15/01)",0,null,36,null,0,null,0,null,0,null,0,null,0,null,0,null,0,null,0,null,0,null,0,null,0,null,1.25,null,0.25,null,0,null,1.5,null,0,null,0,null,0,0,0,null,3,39,39,"",""]
["CAVAILLE","JANVIER","Semaine (18-22/01)",0,null,34,null,0,null,0,null,0,null,0,null,0,null,0,null,0,null,0,null,0,null,0,null,0,null,3.5,null,0.25,null,0,null,1.25,null,0,null,0,null,0,0,0,null,5,39,39,"",""]
["CAVAILLE","JANVIER","Semaine (25-29/01)",0,null,34,null,0,null,0,null,0,null,0,null,0,null,0,null,0,null,0,null,0,null,0,null,0,null,1.25,null,0,null,0,null,1,null,1,null,1.75,null,0,0,0,null,5,39,39,"",""]
["CAVAILLE","FEVRIER","Semaine (01-05/02)",0.5,null,25.75,null,4.25,null,0,null,0,null,0,null,0,null,0,null,0,null,0,null,0,null,0,null,0,null,2.25,null,0.25,null,0,null,1.5,null,0,null,4.5,null,0,0,0,null,8.5,39,39,"",""]
["CAVAILLE","FEVRIER","Semaine (81-12/02)",2.75,null,0,null,32,null,0,null,0,null,0,null,0,null,0,null,0,null,0,null,0,null,0,null,0,null,1.75,null,0.5,null,0,null,0,null,0,null,2,null,0,0,0,null,4.25,39,39,"",""]
["CAVAILLE","FEVRIER","Semaine (15-19/02)",2.5,null,0,null,32.75,null,0,null,0,null,0,null,0,null,0,null,0,null,0,null,0,null,0,null,0,null,1.5,null,0.25,null,0,null,0,null,1,null,1,null,0,0,0,null,3.75,39,39,"",""]
["CAVAILLE","FEVRIER","Semaine (22-26/02)",0,null,33.75,null,0,null,0,null,0,null,0,null,0,null,0,null,0,null,0,null,0,null,0,null,0,null,0.75,null,0.5,null,0,null,2.25,null,0,null,1.75,null,0,0,0,null,5.25,39,39,"",""]
["CAVAILLE","FEVRIER","Semaine (29/02)",0,null,7.25,null,0,null,0,null,0,null,0,null,0,null,0,null,0,null,0,null,0,null,0,null,0,null,0.25,null,0,null,0,null,0.25,null,0,null,0.25,null,0,0,0,null,0.75,8,8,"",""]
["CAVAILLE","MARS","Semaine (01-04/03)",0,null,19.75,null,0,null,0,null,0,null,0,null,0,null,0,null,0,null,0,null,7,null,0,null,0,null,1.75,null,0,null,0,null,0.5,null,0,null,2,null,0,0,0,null,4.25,31,31,"",""]
["CAVAILLE","MARS","Semaine (07-11/03)",0,null,28.75,null,0,null,0,null,0,null,0,null,0,null,0,null,0,null,0,null,7.25,null,0,null,0,null,1.5,null,0.75,null,0,null,0.75,null,0,null,0,null,0,0,0,null,3,39,39,"",""]
["CAVAILLE","MARS","Semaine (14-18/03)",0.75,null,10,null,0,null,0,null,8,null,0,null,0,null,0,null,0,null,0,null,8,null,0,null,0,null,1,null,0.25,null,0,null,1.5,null,0,null,1.5,null,8,0,0,null,4.25,31,39,"",""]
["CAVAILLE","MARS","Semaine (21-25/03)",0,null,26.5,null,0,null,0,null,0,null,0,null,0,null,0,null,0,null,0,null,6.5,null,0,null,0,null,1.75,null,0,null,0,null,1.25,null,1,null,2,null,0,0,0,null,6,39,39,"",""]
["CAVAILLE","MARS","Semaine (29-31/03)",0,null,13.5,null,0,null,0,null,0,null,0,null,0,null,0,null,0,null,0,null,6,null,0,null,0,null,0.5,null,0.25,null,0,null,2,null,0,null,1.75,null,0,0,0,null,4.5,24,24,"",""]
["CERVEAUX ","JANVIER","Semaine (04-08/01)",0,null,0,null,0,null,0,null,0,null,0,null,0,null,0,null,0,null,0,null,0,null,0.5,null,0,null,2.25,null,0,null,36.25,null,0,null,0,null,0,null,0,0,0,null,39,39,39,"",""]
["CERVEAUX ","JANVIER","Semaine (11-15/01)",0,null,0,null,0.5,null,0,null,0,null,0,null,0,null,0,null,0,null,20,null,0,null,1.75,null,0,null,0,null,0,null,15.5,null,0,null,0,null,1.25,null,0,0,0,null,18.5,39,39,"",""]
["CERVEAUX ","JANVIER","Semaine (18-22/01)",0,null,0,null,0,null,0,null,0,null,0,null,0,null,0,null,0,null,11.5,null,0,null,1.5,null,0,null,3.25,null,0,null,22,null,0,null,0.75,null,0,null,0,0,0,null,27.5,39,39,"",""]
["CERVEAUX ","JANVIER","Semaine (25-29/01)",0,null,0,null,0,null,0,null,0,null,0,null,0,null,0,null,0,null,17.5,null,0,null,0.5,null,0,null,1.25,null,0,null,11.75,null,0,null,0,null,0,null,8,0,0,null,13.5,31,39,"",""]
["CERVEAUX ","FEVRIER","Semaine (01-05/02)",0,null,0,null,0,null,0,null,0,null,0,null,0,null,0,null,0,null,10.5,null,0,null,0,null,0,null,2.5,null,22,null,0,null,0,null,0,null,0,null,4,0,0,null,24.5,35,39,"",""]
["CERVEAUX ","FEVRIER","Semaine (81-12/02)",0,null,0,null,0,null,0,null,0,null,0,null,0,null,0,null,0,null,0,null,0,null,1,null,0,null,0,null,18.75,null,18,null,0,null,0,null,1.25,null,0,0,0,null,39,39,39,"",""]
["CERVEAUX ","FEVRIER","Semaine (15-19/02)",0,null,0,null,0.5,null,0,null,0,null,0,null,0,null,0,null,0,null,0,null,4.25,null,0.75,null,0,null,1.75,null,1.25,null,25.75,null,0,null,2,null,2.75,null,0,0,0,null,34.25,39,39,"",""]
["CERVEAUX ","FEVRIER","Semaine (22-26/02)",0,null,0,null,0.25,null,0,null,0,null,0,null,0,null,0,null,0,null,1,null,0.25,null,0.75,null,0,null,1,null,0,null,34.5,null,0,null,0,null,1.25,null,0,0,0,null,37.5,39,39,"",""]
["CERVEAUX ","FEVRIER","Semaine (29/02)",0,null,0,null,0,null,0,null,0,null,0,null,0,null,0,null,0,null,0,null,0,null,0.75,null,0,null,0.25,null,0,null,7,null,0,null,0,null,0,null,0,0,0,null,8,8,8,"",""]
["CERVEAUX ","MARS","Semaine (01-04/03)",0,null,0,null,0,null,0,null,0,null,0,null,0,null,0,null,0.5,null,2.75,null,0,null,0.75,null,0,null,1.75,null,2,null,21.75,null,0,null,0,null,1.5,null,0,0,0,null,27.75,31,31,"",""]
["CERVEAUX ","MARS","Semaine (07-11/03)",0,null,0,null,0,null,0,null,0,null,0,null,0,null,0,null,11,null,0,null,0,null,0,null,0,null,1,null,0,null,19,null,0,null,0,null,0,null,8,0,0,null,20,31,39,"",""]
["CERVEAUX ","MARS","Semaine (14-18/03)",0,null,0,null,1,null,0,null,0,null,0,null,0,null,0,null,0,null,2.5,null,0,null,0,null,1.5,null,2.75,null,0,null,31.25,null,0.75,null,0,null,0.25,null,0,0,1,null,36.5,40,39,"",""]
["CERVEAUX ","MARS","Semaine (21-25/03)",0,null,0,null,0,null,0,null,0,null,0,null,0,null,0,null,8.25,null,13,null,0,null,1,null,0.5,null,2,null,0.5,null,12.25,null,0,null,1,null,0.5,null,0,0,0,null,17.75,39,39,"",""]
["CERVEAUX ","MARS","Semaine (29-31/03)",0,null,0,null,0,null,0,null,0,null,0,null,0,null,0,null,0,null,0.5,null,0,null,0.75,null,0,null,0.25,null,0,null,21.5,null,0,null,0.5,null,0.5,null,0,0,0,null,23.5,24,24,"",""]
["CRON","JANVIER","Semaine (04-08/01)",0,null,0,null,7,null,0,null,27.5,null,0,null,0,null,0,null,0,null,1,null,0,null,0,null,1,null,1.5,null,0,null,0,null,0,null,0,null,1,null,0,0,0,null,3.5,39,39,"",""]
["CRON","JANVIER","Semaine (11-15/01)",0,null,0,null,9,null,0,null,21,null,0,null,0,null,0,null,0,null,0,null,0,null,0,null,0,null,1,null,0,null,0,null,0,null,0,null,0,null,8,0,0,null,1,31,39,"",""]
["CRON","JANVIER","Semaine (18-22/01)",0,null,0,null,28,null,0,null,0,null,0,null,0,null,2,null,0,null,0,null,2.25,null,0,null,1,null,2.25,null,0,null,0,null,0,null,0.5,null,3,null,0,0,0,null,6.75,39,39,"",""]
["CRON","JANVIER","Semaine (25-29/01)",0,null,1.25,null,12.5,null,0,null,1.5,null,0,null,0,null,0,null,0,null,0,null,18,null,0.25,null,0,null,1.25,null,0,null,0,null,0,null,1,null,3.25,null,0,0,0,null,5.75,39,39,{"$f":"IF($AS132=\"\",\"\",IF(AW132<>\"\",AW132,TODAY()))","v":""},""]
["CRON","FEVRIER","Semaine (01-05/02)",0,null,0,null,13,null,0,null,16,null,0,null,0,null,0,null,0,null,0,null,1,null,0,null,3.5,null,1.5,null,0,null,0,null,0,null,0,null,4,null,0,0,0,null,9,39,39,"",{"$f":"IF($AS133=\"\",\"\",IF(AX133<>\"\",AX133,NOW()))","v":""}]
["CRON","FEVRIER","Semaine (81-12/02)",0,null,0,null,15.25,null,0,null,6.25,null,0,null,0,null,0,null,0,null,0,null,7,null,0,null,1.5,null,1,null,0,null,0,null,0,null,0,null,1.5,null,0,7,0.5,null,4,32.5,39,"",""]
["CRON","FEVRIER","Semaine (15-19/02)",0,null,0,null,23.75,null,0,null,0,null,0,null,0,null,0,null,0,null,0,null,10.5,null,0,null,0,null,1.5,null,0,null,0,null,0,null,1,null,2.25,null,0,0,0,null,4.75,39,39,"",""]
["CRON","FEVRIER","Semaine (22-26/02)",0,null,0,null,28.25,null,0,null,0,null,0,null,0,null,0,null,0,null,0,null,3.5,null,1,null,0,null,0.75,null,0,null,0,null,0,null,0,null,6.25,null,0,0,0.75,null,8,39.75,39,"",""]
["CRON","FEVRIER","Semaine (29/02)",0,null,0,null,4.5,null,0,null,0,null,0,null,0,null,0,null,0,null,0,null,2.5,null,0,null,0.25,null,0,null,0,null,0,null,0,null,0,null,1.25,null,0,0,0.5,null,1.5,8.5,8,"",""]
["CRON","MARS","Semaine (01-04/03)",0,null,0,null,5.5,null,0,null,0,null,0,null,0,null,0,null,0,null,0,null,16,null,0,null,0,null,1.5,null,0,null,0,null,0,null,0,null,8,null,0,0,0,null,9.5,31,31,"",""]
["CRON","MARS","Semaine (07-11/03)",0,null,0,null,17.75,null,0,null,6.5,null,0,null,0,null,0,null,0,null,0,null,7,null,0,null,1.5,null,1.5,null,0,null,0,null,0,null,0,null,4.75,null,0,0,0,null,7.75,39,39,"",""]
["CRON","MARS","Semaine (14-18/03)",0,null,0,null,6,null,0,null,0,null,0,null,0,null,0,null,0,null,0,null,27.25,null,0,null,1.75,null,1.25,null,0,null,0,null,0,null,0,null,2.75,null,0,0,0,null,5.75,39,39,"",""]
["CRON","MARS","Semaine (21-25/03)",0,null,3,null,1.25,null,0,null,13.5,null,0,null,0,null,0,null,0,null,0,null,18,null,0,null,0,null,1.75,null,0,null,0,null,0,null,1,null,0.5,null,0,0,0,null,3.25,39,39,"",""]
["CRON","MARS","Semaine (29-31/03)",0,null,0,null,0,null,0,null,0,null,0,null,0,null,0,null,0,null,0,null,0,null,0,null,0,null,0,null,0,null,0,null,0,null,0,null,0,null,24,0,0,null,0,0,24,"",""]
["GUEGUEN","JANVIER","Semaine (04-08/01)",0,null,0,null,0,null,0,null,0,null,0,null,0,null,0,null,0,null,0,null,0.5,null,2,null,0,null,2.25,null,9,null,10.75,null,0,null,6.5,null,0,null,8,0,0,null,30.5,31,39,"",""]
["GUEGUEN","JANVIER","Semaine (11-15/01)",0,null,0,null,0,null,0,null,0,null,0,null,0,null,0,null,0,null,0,null,0,null,1,null,0,null,4,null,6.5,null,13.25,null,0,null,6.25,null,0,null,8,0,0,null,31,31,39,"",""]
["GUEGUEN","JANVIER","Semaine (18-22/01)",0,null,0,null,0,null,0,null,0,null,0,null,0,null,0,null,0,null,0,null,0.75,null,0,null,0.25,null,5.25,null,7.75,null,13.75,null,0.5,null,4.25,null,0,null,8,0,1.5,null,31.75,32.5,39,"",""]
["GUEGUEN","JANVIER","Semaine (25-29/01)",0,null,0,null,0,null,0,null,0,null,0,null,0,null,0,null,0,null,0,null,1.5,null,0,null,0.5,null,2.5,null,3.5,null,15.75,null,0,null,6.75,null,0.5,null,8,0,0,null,29.5,31,39,"",""]
["GUEGUEN","FEVRIER","Semaine (01-05/02)",0,null,0,null,0,null,0,null,0,null,0,null,0,null,0,null,0,null,0,null,0,null,0.75,null,1,null,6.25,null,7.25,null,23,null,0,null,0,null,0,null,0,2.25,1.5,null,38.25,38.25,39,"",""]
["GUEGUEN","FEVRIER","Semaine (81-12/02)",0,null,0,null,0,null,0,null,0,null,0,null,0,null,0,null,0,null,0,null,0,null,0,null,0,null,1.75,null,10.5,null,21.25,null,0,null,4,null,1.5,null,0,0,0,null,39,39,39,"",""]
["GUEGUEN","FEVRIER","Semaine (15-19/02)",0,null,0,null,0,null,0,null,0,null,0,null,0,null,0,null,0,null,0,null,0,null,2.5,null,0,null,2,null,10.5,null,11.75,null,0,null,12.25,null,0,null,0,0,0,null,39,39,39,"",""]
["GUEGUEN","FEVRIER","Semaine (22-26/02)",0,null,0,null,0,null,0,null,0,null,0,null,0,null,0,null,0,null,0,null,0.5,null,0,null,0.25,null,0,null,8.5,null,14.75,null,0,null,2.25,null,8.75,null,4,0,0,null,34.5,35,39,"",""]
["GUEGUEN","FEVRIER","Semaine (29/02)",0,null,0,null,0,null,0,null,0,null,0,null,0,null,0,null,0,null,0,null,0,null,0,null,1.25,null,0,null,1,null,4.75,null,0,null,1,null,0,null,0,0,0,null,8,8,8,"",""]
["GUEGUEN","MARS","Semaine (01-04/03)",0,null,0,null,0,null,0,null,0,null,0,null,0,null,0,null,0,null,0,null,1.75,null,1.5,null,0,null,0.75,null,6.5,null,17.75,null,0,null,2,null,0.75,null,0,0,0,null,29.25,31,31,"",""]
["GUEGUEN","MARS","Semaine (07-11/03)",0,null,0,null,0,null,0,null,0,null,0,null,0,null,0,null,0,null,0,null,0,null,0,null,0,null,0,null,0,null,0,null,0,null,0,null,0,null,39,0,0,null,0,0,39,"",""]
["GUEGUEN","MARS","Semaine (14-18/03)",0,null,0,null,0,null,0,null,0,null,0,null,0,null,0,null,0,null,0,null,0,null,0,null,3.75,null,3,null,10.5,null,18.75,null,0,null,1.5,null,0,null,0,0,0,null,37.5,39,39,"",""]
["GUEGUEN","MARS","Semaine (21-25/03)",0,null,0,null,0,null,0,null,0,null,0,null,0,null,0,null,0,null,0,null,0.5,null,0,null,0,null,4,null,5,null,22,null,0,null,8,null,0.5,null,0,0.5,1.5,null,39.5,40,39,"",""]
["GUEGUEN","MARS","Semaine (28-31/03)",0,null,0,null,0,null,0,null,0,null,0,null,0,null,0,null,0,null,0,null,0,null,1,null,0,null,1,null,8,null,13.5,null,0,null,0,null,0.5,null,0,0,0,null,24,24,24,"",""]
["GASNIER","JANVIER","Semaine (04-08/01)",0,null,0,null,0,null,0,null,0,null,0,null,0,null,0,null,0,null,0,null,0.5,null,4.5,null,4,null,4.75,null,0,null,17.25,null,0,null,0,null,0,null,8,0,0,null,30.5,31,39,"",""]
["GASNIER","JANVIER","Semaine (11-15/01)",0,null,0,null,0,null,0,null,0.5,null,0,null,0,null,0,null,0,null,0,null,3,null,0,null,3,null,11.5,null,0,null,13,null,0,null,0.5,null,0,null,8,0,0.5,null,28,31.5,39,"",""]
["GASNIER","JANVIER","Semaine (18-22/01)",0,null,0,null,0,null,0,null,0,null,0,null,0,null,0,null,0,null,0,null,0,null,0,null,3,null,23,null,0,null,12,null,0,null,0,null,1,null,0,0,0,null,39,39,39,"",""]
["GASNIER","JANVIER","Semaine (25-29/01)",0,null,0,null,0,null,0,null,0,null,0,null,0,null,0,null,0,null,0,null,1.5,null,0,null,4.5,null,13.75,null,0,null,17.75,null,0,null,0,null,2,null,0,0,0.5,null,38,39.5,39,"",""]
["GASNIER","FEVRIER","Semaine (01-05/02)",0,null,0,null,0,null,0,null,0,null,0,null,0,null,0,null,0,null,0,null,0.5,null,7,null,0,null,23.25,null,0,null,7,null,0,null,0.25,null,1,null,0,0,0,null,38.5,39,39,"",""]
["GASNIER","FEVRIER","Semaine (81-12/02)",0,null,0,null,0,null,0,null,0,null,0,null,0,null,0,null,0,null,0,null,2.75,null,0,null,1.25,null,20.5,null,0,null,15.5,null,0,null,0,null,0,null,0,0,1,null,37.25,40,39,"",""]
["GASNIER","FEVRIER","Semaine (15-19/02)",0,null,0,null,0,null,0,null,0,null,0,null,0,null,0,null,0,null,0,null,0.75,null,0,null,0,null,25,null,0,null,9.25,null,0,null,0,null,4,null,0,0,0,null,38.25,39,39,"",""]
["GASNIER","FEVRIER","Semaine (22-26/02)",0,null,0,null,0,null,0,null,0,null,0,null,0,null,0,null,0,null,0,null,0,null,0,null,1.75,null,30.5,null,0,null,5,null,0,null,0,null,3.5,null,0,0,1.75,null,40.75,40.75,39,"",""]
["GASNIER","FEVRIER","Semaine (29/02)",0,null,0,null,0,null,0,null,0,null,0,null,0,null,0,null,0,null,0,null,4.5,null,0,null,0,null,0.75,null,0,null,2,null,0,null,0,null,0.75,null,0,0,0,null,3.5,8,8,"",""]
["GASNIER","MARS","Semaine (01-04/03)",0,null,0,null,0,null,0,null,0,null,0,null,0,null,0,null,0,null,0,null,2.5,null,5.25,null,2,null,20.25,null,0,null,2,null,0,null,0,null,0,null,0,0,1,null,29.5,32,31,"",""]
["GASNIER","MARS","Semaine (07-11/03)",0,null,0,null,0,null,0,null,0,null,0,null,0,null,0,null,0,null,0,null,5,null,0,null,0,null,19.75,null,0,null,10,null,0,null,0,null,5,null,0,0,0.75,null,34.75,39.75,39,"",""]
["GASNIER","MARS","Semaine (14-18/03)",0,null,0,null,0,null,0,null,0,null,0,null,0,null,0,null,0,null,0,null,0.75,null,0,null,0,null,27.25,null,0,null,12,null,0,null,0,null,0,null,0,0,1,null,39.25,40,39,"",""]
["GASNIER","MARS","Semaine (21-25/03)",0,null,0,null,0,null,0,null,0,null,0,null,0,null,0,null,0,null,0,null,16.5,null,0,null,0,null,18,null,0,null,5,null,0,null,0,null,0,null,0,0,0.5,null,23,39.5,39,"",""]
["GASNIER","MARS","Semaine (29-31/03)",0,null,0,null,0,null,0,null,0,null,0,null,0,null,0,null,0,null,0,null,4,null,0,null,0,null,6.5,null,0,null,7,null,0,null,0,null,0,null,8,0,1.5,null,13.5,17.5,24,"",""]
["HERVE","JANVIER","Semaine (04-08/01)",0,null,0,null,1,null,0,null,0,null,0,null,0,null,0,null,0,null,0,null,0,null,7,null,1,null,28.75,null,0,null,2,null,0.5,null,1,null,0,null,0,0,2.25,null,40.25,41.25,39,"",""]
["HERVE","JANVIER","Semaine (11-15/01)",0,null,2,null,0,null,0,null,0,null,0,null,0,null,0,null,0,null,2,null,1,null,2,null,0,null,25.75,null,0,null,0,null,0,null,0,null,2.5,null,7,0,3.25,null,30.25,35.25,39,"",""]
["HERVE","JANVIER","Semaine (18-22/01)",0,null,2,null,0,null,0,null,0,null,0,null,0,null,0,null,0,null,1,null,6,null,9,null,0,null,19.25,null,0,null,3,null,0,null,0,null,1,null,0,0,2.25,null,32.25,41.25,39,"",""]
["HERVE","JANVIER","Semaine (25-29/01)",0,null,0,null,0.5,null,0,null,0,null,0,null,0,null,0,null,0,null,0,null,13,null,0,null,0.5,null,28.5,null,0,null,0,null,1,null,0,null,1.5,null,0,0,6,null,31.5,45,39,"",""]
["HERVE","FEVRIER","Semaine (01-05/02)",0,null,0,null,0,null,0,null,0,null,0,null,0,null,0,null,0,null,0,null,4.5,null,12,null,0,null,23.75,null,0,null,1,null,0,null,0,null,3.25,null,0,0,5.5,null,40,44.5,39,"",""]
["HERVE","FEVRIER","Semaine (81-12/02)",0,null,0,null,0,null,0,null,0,null,0,null,0,null,0,null,0,null,0,null,2,null,2,null,0,null,31.5,null,0,null,1,null,0,null,0,null,1,null,4,0,2.5,null,35.5,37.5,39,"",""]
["HERVE","FEVRIER","Semaine (15-19/02)",0,null,0,null,0,null,0,null,0,null,0,null,0,null,0,null,0,null,0,null,0,null,0,null,0,null,37.5,null,0,null,2,null,0,null,0,null,0.5,null,0,0,1,null,40,40,39,"",""]
["HERVE","FEVRIER","Semaine (22-26/02)",0,null,0,null,0,null,0,null,0,null,0,null,0,null,0,null,0,null,0,null,3,null,0,null,0,null,26,null,0,null,5,null,0,null,2,null,0,null,8,0,5,null,33,36,39,"",""]
["HERVE","FEVRIER","Semaine (29/02)",0,null,0,null,0,null,0,null,0,null,0,null,0,null,0,null,0,null,0,null,3.5,null,0,null,0,null,4.5,null,0,null,0,null,0,null,0,null,0,null,0,0,0,null,4.5,8,8,"",""]
["HERVE","MARS","Semaine (01-04/03)",0,null,0,null,0,null,0,null,0,null,0,null,0,null,0,null,0,null,0,null,7.5,null,8,null,0,null,12,null,0,null,2,null,0,null,0,null,3,null,0,0,1.5,null,25,32.5,31,"",""]
["HERVE","MARS","Semaine (07-11/03)",0,null,0,null,0,null,0,null,0,null,0,null,0,null,0,null,0,null,0,null,0,null,0,null,0,null,0,null,0,null,0,null,0,null,0,null,0,null,39,0,0,null,0,0,39,"",""]
["HERVE","MARS","Semaine (14-18/03)",0,null,0.5,null,0,null,0,null,0,null,0,null,0,null,0,null,0,null,0,null,11,null,0,null,0,null,26,null,0,null,0,null,0,null,1,null,2.5,null,0,0,2,null,29.5,41,39,"",""]
["HERVE","MARS","Semaine (21-25/03)",0,null,0,null,0,null,0,null,0,null,0,null,0,null,0,null,0,null,0,null,3,null,0,null,0,null,37,null,0,null,3,null,0,null,0,null,0,null,0,0,4,null,40,43,39,"",""]
["HERVE","MARS","Semaine (29-31/03)",0,null,0,null,0,null,0,null,0,null,0,null,0,null,0,null,0,null,0,null,0,null,0,null,0,null,0,null,0,null,0,null,0,null,0,null,0,null,24,0,0,null,0,0,24,"",""]
["LABEQUE","JANVIER","Semaine (04-08/01)",0,null,27,null,0,null,0,null,0,null,0,null,0,null,0,null,0,null,0,null,0,null,0,null,0,null,2,null,0,null,0,null,3.5,null,0,null,2,null,0,4.5,0,null,7.5,34.5,39,"",""]
["LABEQUE","JANVIER","Semaine (11-15/01)",0,null,32.5,null,0,null,0,null,0,null,0,null,0,null,0,null,0,null,0,null,0,null,0,null,0,null,1,null,0,null,0,null,2,null,0,null,2.5,null,0,1,0,null,5.5,38,39,"",""]
["LABEQUE","JANVIER","Semaine (18-22/01)",0,null,18.25,null,14.75,null,0,null,0,null,0,null,0,null,0,null,0,null,0,null,0,null,0,null,0,null,2.25,null,0,null,0,null,0.75,null,0,null,2.25,null,0,0.75,0,null,5.25,38.25,39,"",""]
["LABEQUE","JANVIER","Semaine (25-29/01)",0,null,14.25,null,18.5,null,0,null,0,null,0,null,0,null,0,null,0,null,0,null,0,null,0,null,0.5,null,2.75,null,0,null,0,null,0,null,0,null,2.25,null,0,0.75,0,null,5.5,38.25,39,"",""]
["LABEQUE","FEVRIER","Semaine (01-05/02)",0,null,0,null,19,null,0,null,0,null,0,null,0,null,0,null,0,null,0,null,12.25,null,0,null,0,null,1.5,null,0,null,0,null,0,null,0,null,3.25,null,0,3,0,null,4.75,36,39,"",""]
["LABEQUE","FEVRIER","Semaine (81-12/02)",0,null,9.25,null,0,null,0,null,0,null,0,null,0,null,0,null,0,null,0,null,0,null,0,null,0,null,0.75,null,0,null,0,null,0.5,null,0,null,3.75,null,24,0.75,0,null,5,14.25,39,"",""]
["LABEQUE","FEVRIER","Semaine (15-19/02)",0,null,20.25,null,1.25,null,0,null,0,null,0,null,0,null,0,null,0,null,0,null,8,null,0,null,1,null,2,null,1.5,null,0,null,0.5,null,1,null,2.75,null,0,0.75,0,null,8.75,38.25,39,"",""]
["LABEQUE","FEVRIER","Semaine (22-26/02)",0,null,24.75,null,0,null,0,null,0,null,0,null,0,null,0,null,0,null,0,null,8.25,null,0,null,0,null,1,null,0,null,0,null,0.75,null,0,null,2.5,null,0,1.75,0,null,4.25,37.25,39,"",""]
["LABEQUE","FEVRIER","Semaine (29/02)",0,null,0,null,0,null,0,null,0,null,0,null,0,null,0,null,0,null,0,null,0,null,0,null,0,null,0,null,0,null,0,null,0,null,0,null,0,null,0,0,0,null,0,0,0,"",""]
["LABEQUE","MARS","Semaine (01-04/03)",0,null,24,null,0,null,0,null,0,null,0,null,0,null,0,null,0,null,0,null,0,null,0,null,0,null,1.75,null,0,null,0,null,1.25,null,0,null,4,null,0,0,0,null,7,31,31,"",""]
["LABEQUE","MARS","Semaine (07-11/03)",0,null,11.75,null,17.75,null,0,null,0,null,0,null,0,null,0,null,0,null,0,null,0,null,0,null,0,null,1.5,null,0,null,0,null,0,null,0,null,1.25,null,0,6.75,0,null,2.75,32.25,39,"",""]
["LABEQUE","MARS","Semaine (14-18/03)",0,null,0,null,0,null,0,null,0,null,0,null,0,null,0,null,0,null,0,null,0,null,0,null,0,null,0,null,0,null,0,null,0,null,0,null,0,null,0,0,0,null,0,0,0,{"$f":"IF($AS196=\"\",\"\",IF(AW196<>\"\",AW196,TODAY()))","v":""},""]
["LABEQUE","MARS","Semaine (21-25/03)",0,null,0,null,0,null,0,null,0,null,0,null,0,null,0,null,0,null,0,null,0,null,0,null,0,null,0,null,0,null,0,null,0,null,0,null,0,null,0,0,0,null,0,0,0,"",{"$f":"IF($AS197=\"\",\"\",IF(AX197<>\"\",AX197,NOW()))","v":""}]
["LABEQUE","MARS","Semaine (29-31/03)",0,null,0,null,0,null,0,null,0,null,0,null,0,null,0,null,0,null,0,null,0,null,0,null,0,null,0,null,0,null,0,null,0,null,0,null,0,null,24,0,0,null,0,0,24,"",""]
["LAFAYE","JANVIER","Semaine (04-08/01)",0,null,0,null,25.25,null,0,null,3.5,null,0,null,0,null,0,null,7,null,0,null,0,null,0,null,0,null,1.25,null,0,null,0,null,0,null,0,null,2,null,0,0,0,null,3.25,39,39,"",""]
["LAFAYE","JANVIER","Semaine (11-15/01)",0,null,0,null,3,null,0,null,1,null,0,null,0,null,0,null,20.5,null,0,null,0,null,0,null,0,null,1,null,0,null,0,null,0,null,0,null,10,null,3.5,0,0,null,11,35.5,39,"",""]
["LAFAYE","JANVIER","Semaine (18-22/01)",0,null,0,null,12.5,null,0,null,0,null,0,null,0,null,0,null,20.25,null,0,null,0,null,0,null,0,null,1.25,null,0,null,0,null,0,null,0,null,5,null,0,0,0,null,6.25,39,39,"",""]
["LAFAYE","JANVIER","Semaine (25-29/01)",0,null,0,null,12,null,0,null,0,null,0,null,0,null,0,null,7.5,null,8,null,0,null,0,null,0,null,1.5,null,0,null,0,null,0,null,1,null,1,null,8,0,0,null,3.5,31,39,"",""]
["LAFAYE","FEVRIER","Semaine (01-05/02)",0,null,0,null,26.25,null,0,null,0,null,0,null,0,null,0,null,9,null,0,null,0,null,0,null,1,null,1.75,null,0,null,0,null,0,null,0,null,1,null,0,0,0,null,3.75,39,39,"",""]
["LAFAYE","FEVRIER","Semaine (81-12/02)",0,null,0,null,33.25,null,0,null,0,null,0,null,0,null,0,null,2,null,0,null,0,null,0,null,0,null,1.75,null,0,null,0,null,0,null,0,null,2,null,0,0,0,null,3.75,39,39,"",""]
["LAFAYE","FEVRIER","Semaine (15-19/02)",0,null,0,null,34,null,0,null,0,null,0,null,0,null,0,null,2,null,0,null,0,null,0,null,0,null,2.25,null,0,null,0,null,0,null,1,null,1,null,0,0,1.25,null,4.25,40.25,39,"",""]
["LAFAYE","FEVRIER","Semaine (22-26/02)",0,null,0,null,0,null,0,null,0,null,0,null,0,null,0,null,0,null,0,null,0,null,0,null,0,null,0,null,0,null,0,null,0,null,0,null,0,null,39,0,0,null,0,0,39,"",""]
["LAFAYE","FEVRIER","Semaine (29/02)",0,null,0,null,0,null,0,null,0,null,0,null,0,null,0,null,0,null,0,null,0,null,0,null,0,null,0,null,0,null,0,null,0,null,0,null,8,null,0,0,0,null,8,8,8,"",""]
["LAFAYE","MARS","Semaine (01-04/03)",0,null,0,null,8.5,null,0,null,0,null,0,null,0,null,0,null,14.5,null,0,null,0,null,0,null,0,null,0,null,0,null,0,null,0,null,0,null,8,null,0,0,0,null,8,31,31,"",""]
["LAFAYE","MARS","Semaine (07-11/03)",0,null,0,null,25.75,null,0,null,0,null,0,null,0,null,0,null,8,null,0,null,1,null,0,null,0,null,1.25,null,0,null,0,null,0,null,0,null,4,null,0,0,1,null,5.25,40,39,"",""]
["LAFAYE","MARS","Semaine (14-18/03)",0,null,0,null,25.75,null,0,null,0,null,0,null,0,null,0,null,7.75,null,0,null,0,null,0,null,0,null,1.5,null,0,null,0,null,0,null,0,null,1,null,3.5,0,0.5,null,2.5,36,39,"",""]
["LAFAYE","MARS","Semaine (21-25/03)",0,null,7,null,11,null,0,null,0,null,0,null,0,null,0,null,17,null,0,null,0,null,0,null,0,null,2,null,0,null,0,null,0,null,1,null,1,null,0,0,0,null,4,39,39,"",""]
["LAFAYE","MARS","Semaine (29-31/03)",0,null,0,null,8,null,0,null,0,null,0,null,0,null,0,null,1,null,0,null,0,null,0,null,0,null,0,null,0,null,0,null,0,null,0,null,7,null,8,0,0,null,7,16,24,"",""]
["MICHELET","MARS","Semaine (01-04/03)",0,null,0,null,0,null,0,null,0,null,0,null,0,null,0,null,0,null,0,null,0,null,0,null,0,null,0,null,0,null,0,null,0,null,0,null,0,null,0,0,0,null,0,0,0,"",""]
["MICHELET","MARS","Semaine (07-11/03)",0,null,0,null,0,null,0,null,0,null,0,null,0,null,0,null,0,null,0,null,0,null,0,null,0,null,0,null,0,null,0,null,0,null,0,null,0,null,0,0,0,null,0,0,0,"",""]
["MICHELET","MARS","Semaine (14-18/03)",0,null,0,null,0,null,0,null,0,null,0,null,0,null,0,null,0,null,0,null,0,null,0,null,0,null,0,null,0,null,0,null,0,null,0,null,0,null,0,0,0,null,0,0,0,"",""]
["MICHELET","MARS","Semaine (21-25/03)",0,null,0,null,0,null,0,null,0,null,0,null,0,null,0,null,0,null,0,null,0,null,0,null,0,null,0,null,0,null,0,null,0,null,0,null,0,null,0,0,0,null,0,0,0,"",""]
["MICHELET","MARS","Semaine (28-31/03)",0,null,0,null,0,null,0,null,0,null,0,null,0,null,0,null,0,null,0,null,0.75,null,0,null,0,null,20,null,1,null,0,null,1,null,0,null,0,null,1.25,0,0,null,22,22.75,24,"",""]
["MERCIER","JANVIER","Semaine (04-08/01)",0,null,0,null,0,null,0,null,34.5,null,0,null,0,null,0,null,0,null,0,null,1,null,0,null,0,null,2,null,1,null,0,null,0,null,0,null,0.5,null,0,0,0,null,3.5,39,39,"",""]
["MERCIER","JANVIER","Semaine (11-15/01)",0,null,0,null,0,null,0,null,35.5,null,0,null,0,null,0,null,0,null,0,null,0,null,0,null,0,null,2,null,1.5,null,0,null,0,null,0,null,0,null,0,0,0,null,3.5,39,39,"",""]
["MERCIER","JANVIER","Semaine (18-22/01)",0,null,0,null,0,null,0,null,26.5,null,0,null,0,null,0,null,0,null,0,null,3,null,0,null,0,null,8.5,null,0,null,0,null,0,null,0,null,1,null,0,0,0,null,9.5,39,39,"",""]
["MERCIER","JANVIER","Semaine (25-29/01)",0,null,0,null,0,null,0,null,29,null,0,null,0,null,0,null,0,null,0,null,0.5,null,0,null,0,null,1.5,null,0,null,0,null,0,null,0,null,0,null,8,0,0,null,1.5,31,39,"",""]
["MERCIER","FEVRIER","Semaine (01-05/02)",0,null,0,null,0,null,0,null,37.5,null,0,null,0,null,0,null,0,null,0,null,0,null,0,null,0,null,1.5,null,0,null,0,null,0,null,0,null,0,null,0,0,0,null,1.5,39,39,"",""]
["MERCIER","FEVRIER","Semaine (81-12/02)",0,null,0,null,0,null,0,null,26.5,null,0,null,0,null,0,null,0,null,0,null,9,null,0,null,0,null,3.5,null,0,null,0,null,0,null,0,null,0,null,0,0,0,null,3.5,39,39,"",""]
["MERCIER","FEVRIER","Semaine (15-19/02)",0,null,0,null,0,null,0,null,0,null,0,null,0,null,0,null,0,null,0,null,0,null,0,null,0,null,0,null,0,null,0,null,0,null,0,null,0,null,39,0,0,null,0,0,39,"",""]
["MERCIER","FEVRIER","Semaine (22-26/02)",0,null,0,null,0,null,0,null,34,null,0,null,0,null,0,null,0,null,0,null,0,null,0,null,0,null,0,null,1,null,0,null,0,null,0,null,0,null,4,0,0,null,1,35,39,"",""]
["MERCIER","FEVRIER","Semaine (29/02)",0,null,0,null,0,null,0,null,7,null,0,null,0,null,0,null,0,null,0,null,0,null,0,null,0,null,0,null,0,null,0,null,0,null,0,null,1,null,0,0,0,null,1,8,8,"",""]
["MERCIER","MARS","Semaine (01-04/03)",0,null,0,null,0,null,0,null,22,null,0,null,0,null,0,null,0,null,0,null,0,null,0,null,0,null,2,null,0,null,1,null,0,null,0,null,2,null,4,0,0,null,5,27,31,"",""]
["MERCIER","MARS","Semaine (07-11/03)",0,null,0,null,0.5,null,0,null,37.5,null,0,null,0,null,0,null,0,null,0,null,0,null,0,null,0,null,1,null,0,null,0,null,0,null,0,null,0,null,0,0,0,null,1,39,39,"",""]
["MERCIER","MARS","Semaine (14-18/03)",0,null,0,null,0,null,0,null,21.75,null,0,null,0,null,0,null,0,null,0,null,13,null,0,null,0,null,3.25,null,0,null,1,null,0,null,0,null,0,null,0,0,0,null,4.25,39,39,"",""]
["MERCIER","MARS","Semaine (21-25/03)",0,null,0,null,0,null,0,null,29.75,null,0,null,0,null,0,null,0,null,0,null,4.5,null,0,null,0,null,4.75,null,0,null,0,null,0,null,0,null,0,null,0,0,0,null,4.75,39,39,"",""]
["MERCIER","MARS","Semaine (28-31/03)",0,null,0,null,0,null,0,null,20.25,null,0,null,0,null,0,null,0,null,0,null,0.75,null,0,null,0,null,2,null,1,null,0,null,0,null,0,null,0,null,0,0,0,null,3,24,24,"",""]
["MARRON ","JANVIER","Semaine (04-08/01)",0,null,10,null,3,null,0,null,2.5,null,0,null,0,null,0,null,0,null,0,null,10.5,null,0,null,1.75,null,0.75,null,0,null,0,null,0,null,0,null,9,null,0,1.5,0,null,11.5,37.5,39,"",""]
["MARRON ","JANVIER","Semaine (11-15/01)",0,null,0,null,3,null,0,null,0,null,0,null,0,null,0,null,0,null,0,null,13.75,null,0,null,0,null,2.25,null,4.75,null,0,null,0,null,0,null,15.25,null,0,0,0,null,22.25,39,39,"",""]
["MARRON ","JANVIER","Semaine (18-22/01)",0,null,0,null,0,null,0,null,0,null,0,null,0,null,0,null,0,null,0,null,17,null,0,null,0,null,2,null,0,null,0,null,0,null,0,null,21,null,0,0,1,null,23,40,39,"",""]
["MARRON ","JANVIER","Semaine (25-29/01)",0,null,0,null,8,null,0,null,0,null,0,null,0,null,0,null,0,null,0,null,19,null,0,null,0,null,0.5,null,0,null,0,null,0,null,1,null,2.5,null,8,0,0,null,4,31,39,"",""]
["MARRON ","FEVRIER","Semaine (01-05/02)",0,null,0,null,17.75,null,0,null,0,null,0,null,0,null,0,null,0,null,0,null,17,null,0,null,0,null,1.25,null,0,null,0,null,0,null,0,null,2,null,0,1,0,null,3.25,38,39,"",""]
["MARRON ","FEVRIER","Semaine (81-12/02)",0,null,0,null,19,null,0,null,0,null,0,null,0,null,0,null,0,null,0,null,17.25,null,0,null,0,null,1.25,null,0.5,null,0,null,0,null,0,null,1,null,0,0,0,null,2.75,39,39,"",""]
["MARRON ","FEVRIER","Semaine (15-19/02)",0,null,27.75,null,1.75,null,0,null,0,null,0,null,0,null,0,null,0,null,0,null,3.5,null,0,null,0,null,1,null,0,null,0,null,0,null,1,null,4,null,0,0,0,null,6,39,39,"",""]
["MARRON ","FEVRIER","Semaine (22-26/02)",0,null,0,null,0,null,0,null,0,null,0,null,0,null,0,null,0,null,0,null,0,null,0,null,0,null,0,null,0,null,0,null,0,null,0,null,0,null,39,0,0,null,0,0,39,"",""]
["MARRON ","FEVRIER","Semaine (29/02)",0,null,0.5,null,6,null,0,null,0,null,0,null,0,null,0,null,0,null,0,null,0,null,0,null,0,null,0,null,0,null,0,null,0,null,0,null,1.5,null,0,0,0,null,1.5,8,8,"",""]
["MARRON ","MARS","Semaine (01-04/03)",0,null,10.5,null,13.5,null,0,null,0,null,0,null,0,null,0,null,0,null,0,null,0,null,0,null,0,null,1,null,0,null,0,null,0,null,0,null,2,null,4,0,0,null,3,27,31,"",""]
["MARRON ","MARS","Semaine (07-11/03)",0,null,6.5,null,21,null,0,null,0,null,0,null,0,null,0,null,0,null,0,null,0,null,0,null,0,null,0,null,0,null,0,null,0,null,0,null,7.5,null,0,1.5,1,null,7.5,35,35.5,"",""]
["MARRON ","MARS","Semaine (14-18/03)",0,null,0,null,17.25,null,0,null,0,null,0,null,0,null,0,null,0,null,0,null,0,null,0,null,0,null,1,null,0,null,0,null,5,null,0,null,17.75,null,0,0,2,null,23.75,41,39,"",""]
["MARRON ","MARS","Semaine (21-25/03)",0,null,17.5,null,15.75,null,0,null,0,null,0,null,0,null,0,null,0,null,0,null,0,null,0,null,0,null,1.75,null,0,null,0,null,0,null,1,null,3,null,0,0,0,null,5.75,39,39,"",""]
["MARRON ","MARS","Semaine (29-31/03)",0,null,4,null,16,null,0,null,0,null,0,null,0,null,0,null,0,null,0,null,0,null,0,null,0,null,0,null,0,null,0,null,0,null,0,null,1,null,4,0,1,null,1,21,24,"",""]
["MONGIE ","JANVIER","Semaine (04-08/01)",0,null,0.25,null,24,null,0,null,0,null,0,null,0,null,0,null,0,null,0,null,0,null,0,null,0,null,1.75,null,0,null,0,null,0,null,0.25,null,12.75,null,0,0,0,null,14.75,39,39,"",""]
["MONGIE ","JANVIER","Semaine (11-15/01)",0,null,0,null,1,null,0,null,22,null,0,null,0,null,0,null,0,null,0,null,6.75,null,0,null,0,null,1.25,null,0,null,0,null,0.5,null,0.25,null,7.25,null,0,0,0,null,9.25,39,39,"",""]
["MONGIE ","JANVIER","Semaine (18-22/01)",0,null,0,null,32.75,null,0,null,0,null,0,null,0,null,0,null,0,null,0,null,0.5,null,0,null,0,null,3.25,null,0,null,0,null,0,null,0.5,null,2,null,0,0,0,null,5.75,39,39,"",""]
["MONGIE ","JANVIER","Semaine (25-29/01)",0,null,0,null,16,null,0,null,0,null,0,null,0,null,0,null,0,null,0,null,0,null,0,null,0,null,2.5,null,0,null,0,null,0,null,1.25,null,20.25,null,0,0,1,null,24,40,39,"",""]
["MONGIE ","FEVRIER","Semaine (01-05/02)",0,null,20.75,null,0,null,0,null,0,null,0,null,0,null,0,null,0,null,0,null,0,null,1,null,1,null,1.75,null,0,null,0,null,0,null,0.25,null,14.25,null,0,0,0,null,18.25,39,39,"",""]
["MONGIE ","FEVRIER","Semaine (81-12/02)",0,null,7,null,14.25,null,0,null,0,null,0,null,0,null,0,null,0,null,0,null,15.25,null,0,null,0,null,1.25,null,0,null,0,null,0,null,0.5,null,0.75,null,0,0,0,null,2.5,39,39,"",""]
["MONGIE ","FEVRIER","Semaine (15-19/02)",0,null,6.75,null,26.25,null,0,null,0,null,0,null,0,null,0,null,0,null,0,null,1.5,null,0,null,0,null,1.75,null,0,null,0,null,0,null,0.25,null,2.5,null,0,0,0,null,4.5,39,39,"",""]
["MONGIE ","FEVRIER","Semaine (22-26/02)",0,null,0,null,34,null,0,null,0,null,0,null,0,null,0,null,0,null,0,null,0.5,null,0,null,0,null,0.75,null,0,null,0,null,0,null,0.5,null,3.25,null,0,0,0,null,4.5,39,39,"",""]
["MONGIE ","FEVRIER","Semaine (29/02)",0,null,0,null,4.5,null,0,null,0,null,0,null,0,null,0,null,0,null,0,null,0,null,0,null,0,null,0.25,null,0,null,0,null,0,null,0.25,null,3,null,0,0,0,null,3.5,8,8,"",""]
["MONGIE ","MARS","Semaine (01-04/03)",0,null,0,null,23.75,null,0,null,0,null,0,null,0,null,0,null,0,null,0,null,0,null,0,null,0,null,0.75,null,0,null,0,null,0,null,0,null,2.5,null,4,0,0,null,3.25,27,31,"",""]
["MONGIE ","MARS","Semaine (07-11/03)",0,null,0,null,20.5,null,0,null,11,null,0,null,0,null,0,null,0,null,0,null,0,null,0,null,2,null,1.5,null,0,null,0,null,0,null,0.75,null,3.25,null,0,0,0,null,7.5,39,39,"",""]
["MONGIE ","MARS","Semaine (14-18/03)",0,null,0,null,0,null,0,null,0,null,0,null,0,null,0,null,0,null,0,null,0,null,0,null,0,null,0,null,0,null,0,null,0,null,0,null,0,null,39,0,0,null,0,0,39,"",""]
["MONGIE ","MARS","Semaine (21-25/03)",0,null,33,null,0.25,null,0,null,0,null,0,null,0,null,0,null,0,null,0,null,0,null,0,null,0,null,1.5,null,0,null,0,null,0,null,1.5,null,2.75,null,0,0,0,null,5.75,39,39,"",""]
["MONGIE ","MARS","Semaine (29-31/03)",0,null,18.75,null,0,null,0,null,0,null,0,null,0,null,0,null,0,null,0,null,0,null,0,null,0,null,0,null,0,null,0,null,3.75,null,0.25,null,1.25,null,0,0,0,null,5.25,24,24,"",""]
["MASSY","JANVIER","Semaine (04-08/01)",1.75,null,1,null,5.5,null,0,null,0,null,0,null,0,null,0,null,0,null,11.5,null,4.75,null,1.25,null,1.75,null,1.75,null,0,null,0,null,0,null,0,null,1.75,null,8,0,0,null,6.5,31,39,{"$f":"IF($AS260=\"\",\"\",IF(AW260<>\"\",AW260,TODAY()))","v":""},""]
["MASSY","JANVIER","Semaine (11-15/01)",1.25,null,0,null,24,null,0,null,0,null,0,null,0,null,0,null,0,null,7.75,null,1.25,null,0.5,null,0.75,null,1.25,null,0,null,0,null,0.5,null,0,null,1.75,null,0,0,0,null,4.75,39,39,"",{"$f":"IF($AS261=\"\",\"\",IF(AX261<>\"\",AX261,NOW()))","v":""}]
["MASSY","JANVIER","Semaine (18-22/01)",4.25,null,2,null,19.75,null,0,null,0,null,0,null,0,null,0.75,null,0,null,0.5,null,0.25,null,0.5,null,0.25,null,1.75,null,0,null,0,null,0,null,0,null,5,null,4,0,0,null,7.5,35,39,"",""]
["MASSY","JANVIER","Semaine (25-29/01)",1,null,0,null,22.5,null,0,null,0,null,0,null,0,null,0,null,0,null,0,null,1.25,null,1,null,0.25,null,1.25,null,0,null,0,null,3,null,1,null,7.75,null,0,0,0,null,14.25,39,39,"",""]
["MASSY","FEVRIER","Semaine (01-05/02)",2,null,0,null,27.5,null,0,null,0,null,0,null,0,null,0,null,0,null,0,null,0,null,1.75,null,0,null,1.25,null,0,null,0,null,1.75,null,0,null,0.75,null,4,0,0,null,5.5,35,39,"",""]
["MASSY","FEVRIER","Semaine (81-12/02)",0,null,0,null,14.5,null,0,null,0,null,0,null,0,null,0,null,0,null,0,null,17.5,null,1,null,1.75,null,1.75,null,0,null,0,null,0.25,null,0,null,2.25,null,0,0,0,null,7,39,39,"",""]
["MASSY","FEVRIER","Semaine (15-19/02)",0,null,0,null,6.25,null,0,null,0,null,0,null,0,null,0,null,0,null,0,null,0.75,null,0.75,null,0,null,1,null,0,null,0,null,0.75,null,2,null,3.5,null,24,0,0,null,8,15,39,"",""]
["MASSY","FEVRIER","Semaine (22-26/02)",0,null,0,null,16.25,null,0,null,0,null,0,null,0,null,0,null,0,null,13,null,0,null,0.5,null,0,null,0.75,null,0,null,0,null,1,null,0,null,3.5,null,4,0,0,null,5.75,35,39,"",""]
["MASSY","FEVRIER","Semaine (29/02)",0,null,0,null,2.75,null,0,null,0,null,0,null,0,null,0,null,0,null,0,null,0.25,null,0.5,null,0,null,0.25,null,0,null,0,null,0,null,0,null,0.25,null,4,0,0,null,1,4,8,"",""]
["MASSY","MARS","Semaine (01-04/03)",0,null,0,null,0,null,0,null,0,null,0,null,0,null,0,null,0,null,0,null,23,null,0,null,0.25,null,1.5,null,0,null,0,null,0,null,0,null,6.25,null,0,0,0,null,8,31,31,"",""]
["MASSY","MARS","Semaine (07-11/03)",0,null,0,null,0,null,0,null,0,null,0,null,0,null,0,null,0,null,0,null,0,null,0,null,0,null,0,null,0,null,0,null,0,null,0,null,0,null,39,0,0,null,0,0,39,"",""]
["MASSY","MARS","Semaine (14-18/03)",0,null,7.75,null,0.25,null,0,null,0,null,0,null,0,null,0,null,0,null,0,null,18.5,null,1.75,null,1,null,1.5,null,0,null,0,null,0,null,0,null,8.25,null,0,0,0,null,12.5,39,39,"",""]
["MASSY","MARS","Semaine (21-25/03)",0,null,0,null,26.5,null,0,null,0,null,0,null,0,null,0,null,0,null,0,null,5.25,null,0.75,null,0,null,1.75,null,0,null,1.25,null,0,null,1,null,2.5,null,0,0,0,null,7.25,39,39,"",""]
["MASSY","MARS","Semaine (29-31/03)",0,null,0.5,null,11.25,null,0,null,1,null,0,null,0,null,0,null,0,null,0,null,7.5,null,1.25,null,0,null,0.25,null,0,null,0,null,0,null,0,null,2.25,null,0,0,0,null,3.75,24,24,"",""]
["QUESADA","JANVIER","Semaine (04-08/01)",0,null,31,null,0,null,0,null,0,null,0,null,0,null,0,null,0,null,0,null,0,null,0,null,0,null,2,null,0,null,0,null,0,null,0,null,6,null,0,0,0,null,8,39,39,"",""]
["QUESADA","JANVIER","Semaine (11-15/01)",0,null,0,null,35,null,0,null,0,null,0,null,0,null,0,null,0,null,0,null,0,null,0,null,0,null,1.75,null,0,null,0,null,0,null,0,null,2.25,null,0,0,0,null,4,39,39,"",""]
["QUESADA","JANVIER","Semaine (18-22/01)",0,null,4,null,10.75,null,0,null,0,null,0,null,0,null,0,null,0,null,0,null,11.5,null,0,null,0,null,2.5,null,0,null,0,null,0,null,0,null,10.5,null,0,0,0.25,null,13,39.25,39,"",""]
["QUESADA","JANVIER","Semaine (25-29/01)",1,null,17.5,null,0.25,null,0,null,0.5,null,0,null,0,null,0,null,0,null,0,null,10.5,null,0,null,0,null,3,null,2.5,null,0,null,0.75,null,1,null,2,null,0,0,0,null,9.25,39,39,"",""]
["QUESADA","FEVRIER","Semaine (01-05/02)",0,null,5.5,null,21.5,null,0,null,0,null,0,null,0,null,0,null,0,null,0,null,4,null,0,null,0,null,1.75,null,0,null,0,null,0.75,null,0,null,2,null,3.5,0,0,null,4.5,35.5,39,"",""]
["QUESADA","FEVRIER","Semaine (81-12/02)",0,null,0,null,25.25,null,0,null,0,null,0,null,0,null,0,null,0,null,0,null,1.5,null,0,null,1,null,1,null,0,null,0,null,0,null,0,null,3.25,null,7,0,0,null,5.25,32,39,"",""]
["QUESADA","FEVRIER","Semaine (15-19/02)",0,null,0,null,0,null,0,null,0,null,0,null,0,null,0,null,0,null,0,null,0,null,0,null,0,null,0,null,0,null,0,null,0,null,0,null,0,null,39,0,0,null,0,0,39,"",""]
["QUESADA","FEVRIER","Semaine (22-26/02)",1.5,null,3.5,null,30.25,null,0,null,1,null,0,null,0,null,0,null,0,null,0,null,0.5,null,0,null,0,null,1,null,0,null,0,null,0,null,0,null,1.25,null,0,0,0,null,2.25,39,39,"",""]
["QUESADA","FEVRIER","Semaine (29/02)",0.5,null,2,null,3.5,null,0,null,1,null,0,null,0,null,0,null,0,null,0,null,0.75,null,0,null,0.25,null,0,null,0,null,0,null,0,null,0,null,0,null,0,0,0,null,0.25,8,8,"",""]
["QUESADA","MARS","Semaine (01-04/03)",1.5,null,3,null,19.25,null,0,null,0,null,0,null,0,null,0,null,0,null,0,null,1,null,0,null,1.5,null,1.5,null,0,null,0,null,0.5,null,0,null,3.25,null,0,0,0.5,null,6.75,31.5,31,"",""]
["QUESADA","MARS","Semaine (07-11/03)",2.25,null,3,null,24.5,null,0,null,0,null,0,null,0,null,0,null,0,null,0,null,0,null,0,null,0.5,null,1.25,null,0,null,0,null,0,null,0,null,4.75,null,3.5,0,0.75,null,6.5,36.25,39,"",""]
["QUESADA","MARS","Semaine (14-18/03)",2.5,null,3,null,31.75,null,0,null,0,null,0,null,0,null,0,null,0,null,0,null,0,null,0,null,0,null,1.75,null,0,null,0,null,0,null,0,null,2.25,null,0,0,2.25,null,4,41.25,39,"",""]
["QUESADA","MARS","Semaine (21-25/03)",3.5,null,3.5,null,26.5,null,0,null,0,null,0,null,0,null,0,null,0,null,0,null,0.75,null,0,null,0,null,2,null,0,null,0,null,0,null,1,null,2.25,null,0,0,0.5,null,5.25,39.5,39,"",""]
["QUESADA","MARS","Semaine (29-31/03)",0.5,null,2.5,null,18,null,0,null,0,null,0,null,0,null,0,null,0,null,0,null,0,null,0,null,0.5,null,0.25,null,0,null,0,null,0,null,0,null,2.25,null,0,0,0,null,3,24,24,"",""]
["BARSACQ","JANVIER","Semaine (04-08/01)",0,null,0,null,0,null,0,null,0,null,4.75,null,0,null,0,null,5,null,0,null,0,null,10,null,0,null,7.25,null,0,null,5,null,5,null,4,null,0,null,0,0,2,null,31.25,41,39,"",""]
["BARSACQ","JANVIER","Semaine (11-15/01)",0,null,0,null,0,null,0,null,0,null,5,null,0,null,0,null,5,null,0,null,0,null,6.75,null,0,null,9.25,null,5,null,10,null,0,null,0,null,0,null,0,0,2,null,31,41,39,"",""]
["BARSACQ","JANVIER","Semaine (18-22/01)",0,null,0,null,0,null,0,null,0,null,5,null,0,null,0,null,5,null,0,null,0,null,4.75,null,0,null,9,null,0,null,18,null,0,null,0,null,0,null,0,0,2.75,null,31.75,41.75,39,"",""]
["BARSACQ","JANVIER","Semaine (25-29/01)",0,null,0,null,0,null,0,null,0,null,0,null,0,null,0,null,0,null,0,null,0,null,0,null,0,null,0,null,0,null,0,null,0,null,0,null,0,null,39,0,0,null,0,0,39,"",""]
["BARSACQ","FEVRIER","Semaine (01-05/02)",0,null,0,null,0,null,0,null,0,null,0,null,0,null,0,null,5,null,0,null,0,null,8,null,0,null,6,null,10,null,10,null,0,null,2,null,0,null,0,0,2,null,36,41,39,"",""]
["BARSACQ","FEVRIER","Semaine (81-12/02)",0,null,0,null,0,null,0,null,0,null,0,null,0,null,0,null,10,null,0,null,0,null,0,null,0,null,9,null,13.5,null,10,null,0,null,0,null,0,null,0,0,3.5,null,32.5,42.5,39,"",""]
["BARSACQ","FEVRIER","Semaine (15-19/02)",0,null,0,null,0,null,0,null,0,null,5,null,0,null,0,null,5,null,0,null,0,null,0,null,0,null,10,null,8.75,null,14,null,0,null,0,null,0,null,0,0,3.75,null,32.75,42.75,39,"",""]
["BARSACQ","FEVRIER","Semaine (22-26/02)",0,null,0,null,0,null,0,null,0,null,2,null,0,null,0,null,9,null,0,null,0,null,10,null,0,null,7,null,4,null,10,null,0,null,0,null,0,null,0,0,3,null,31,42,39,"",""]
["BARSACQ","FEVRIER","Semaine (29/02)",0,null,0,null,0,null,0,null,0,null,0,null,0,null,0,null,2,null,0,null,0,null,1,null,0,null,1,null,1.25,null,2,null,1,null,0,null,0,null,0,0,0.25,null,6.25,8.25,8,"",""]
["BARSACQ","MARS","Semaine (01-04/03)",0,null,0,null,0,null,0,null,0,null,2,null,0,null,0,null,3.5,null,0,null,0,null,10,null,0,null,7,null,0,null,10,null,0,null,0,null,0,null,0,0,1.5,null,27,32.5,31,"",""]
["BARSACQ","MARS","Semaine (07-11/03)",0,null,0,null,0,null,0,null,0,null,2,null,0,null,0,null,10,null,0,null,0,null,0,null,0,null,11,null,8.5,null,10,null,0,null,0,null,0,null,0,0,2.5,null,29.5,41.5,39,"",""]
["BARSACQ","MARS","Semaine (14-18/03)",0,null,0,null,0,null,0,null,0,null,2,null,0,null,0,null,10,null,0,null,0,null,6.25,null,0,null,7,null,5,null,10,null,2,null,0,null,0,null,0,0,3.25,null,30.25,42.25,39,"",""]
["BARSACQ","MARS","Semaine (21-25/03)",0,null,0,null,0,null,0,null,0,null,2.75,null,0,null,0,null,10,null,0,null,0,null,0,null,0,null,10,null,10,null,10,null,0,null,0,null,0,null,0,0,3.75,null,30,42.75,39,"",""]
["BARSACQ","MARS","Semaine (28-31/03)",0,null,0,null,0,null,0,null,0,null,4,null,0,null,0,null,2.5,null,0,null,0,null,2,null,0,null,4,null,0,null,10,null,0,null,0,null,0,null,0,0,1,null,16,22.5,21.5,"",""]
["BOUGHIDAH","JANVIER","Semaine (04-08/01)",0,null,0,null,0,null,0,null,0,null,0,null,0,null,0,null,0,null,0,null,0,null,12,null,0,null,0,null,0,null,10,null,10,null,0,null,7,null,0,0,0,null,39,39,39,"",""]
["BOUGHIDAH","JANVIER","Semaine (11-15/01)",0,null,0,null,0,null,0,null,0,null,0,null,0,null,0,null,0,null,0,null,0,null,0,null,0,null,0,null,0,null,4,null,0,null,0,null,12,null,23,0,0,null,16,16,39,"",""]
["BOUGHIDAH","JANVIER","Semaine (18-22/01)",0,null,0,null,0,null,0,null,0,null,0,null,0,null,0,null,0,null,0,null,0,null,0,null,2,null,2.5,null,7,null,10,null,0,null,0.5,null,9,null,8,0,0,null,31,31,39,"",""]
["BOUGHIDAH","JANVIER","Semaine (25-29/01)",0,null,0,null,0,null,0,null,0,null,2,null,0,null,0,null,0,null,0,null,0,null,0,null,6,null,0,null,9,null,16,null,0,null,0,null,6,null,0,0,0,null,37,39,39,"",""]
["BOUGHIDAH","FEVRIER","Semaine (01-05/02)",0,null,0,null,0,null,0,null,0,null,0,null,0,null,0,null,0,null,0,null,0,null,0,null,5,null,0,null,14,null,10,null,0,null,0,null,10,null,0,0,0,null,39,39,39,"",""]
["BOUGHIDAH","FEVRIER","Semaine (81-12/02)",0,null,0,null,0,null,0,null,0,null,0,null,0,null,0,null,0,null,0,null,0,null,0,null,0,null,1,null,9,null,13,null,0,null,0,null,16,null,0,0,0,null,39,39,39,"",""]
["BOUGHIDAH","FEVRIER","Semaine (15-19/02)",0,null,0,null,0,null,0,null,0,null,0,null,0,null,0,null,0,null,0,null,0,null,0,null,0,null,0,null,0,null,0,null,0,null,0,null,0,null,39,0,0,null,0,0,39,"",""]
["BOUGHIDAH","FEVRIER","Semaine (22-26/02)",0,null,0,null,0,null,0,null,0,null,3,null,0,null,0,null,0,null,0,null,0,null,0,null,0,null,0,null,13.5,null,10,null,0,null,0,null,10,null,0,2.5,0,null,33.5,36.5,39,"",""]
["BOUGHIDAH","FEVRIER","Semaine (29/02)",0,null,0,null,0,null,0,null,0,null,0.5,null,0,null,0,null,0,null,0,null,0,null,0,null,0,null,0,null,3.5,null,2,null,0,null,2,null,0,null,0,0,0,null,7.5,8,8,"",""]
["BOUGHIDAH","MARS","Semaine (01-04/03)",0,null,0,null,0,null,0,null,0,null,2,null,0,null,0,null,0,null,0,null,2,null,0,null,1,null,0,null,14,null,8,null,0,null,0,null,4,null,0,0,0,null,27,31,31,"",""]
["BOUGHIDAH","MARS","Semaine (07-11/03)",0,null,0,null,0,null,0,null,0,null,0.5,null,0,null,0,null,0,null,0,null,0,null,0,null,0,null,1.5,null,21,null,10,null,0,null,0,null,6,null,0,0,0,null,38.5,39,39,"",""]
["BOUGHIDAH","MARS","Semaine (14-18/03)",0,null,0,null,0,null,0,null,0,null,2,null,0,null,0,null,0,null,0,null,11,null,0,null,0,null,1.5,null,10,null,8,null,0.5,null,0,null,6,null,0,0,0,null,26,39,39,"",""]
["BOUGHIDAH","MARS","Semaine (21-25/03)",0,null,0,null,0,null,0,null,0,null,0,null,0,null,0,null,0,null,0,null,7,null,0,null,0,null,1,null,21,null,7,null,0,null,1,null,2,null,0,0,0,null,32,39,39,"",""]
["BOUGHIDAH","MARS","Semaine (28-31/03)",0,null,0,null,0,null,0,null,0,null,0,null,0,null,0,null,0,null,0,null,2,null,0,null,0,null,0,null,1.5,null,3,null,0,null,0,null,1.5,null,16,0,0,null,6,8,24,"",""]
["GROUT","JANVIER","Semaine (04-08/01)",0,null,5,null,10.55,null,0,null,2,null,0,null,0,null,4.5,null,0,null,0,null,1.55,null,0,null,0,null,0.5,null,0,null,0,null,14.9,null,0,null,0,null,0,0,0,null,15.4,39,39,"",""]
["GROUT","JANVIER","Semaine (11-15/01)",0,null,2.5,null,26.5,null,0,null,1.5,null,0,null,0,null,3,null,0,null,0,null,0,null,0,null,0,null,1.25,null,0,null,0,null,4.25,null,0,null,0,null,0,0,0,null,5.5,39,39,"",""]
["GROUT","JANVIER","Semaine (18-22/01)",0,null,1.5,null,8.75,null,0,null,0,null,0,null,0,null,2.5,null,0,null,0,null,21.75,null,0,null,1.5,null,2.25,null,0,null,0,null,0,null,0.75,null,0,null,0,0,0,null,4.5,39,39,"",""]
["GROUT","JANVIER","Semaine (25-29/01)",0,null,3,null,3.5,null,0,null,0,null,0,null,0,null,2.5,null,0,null,0,null,8.5,null,0,null,2.5,null,0,null,0,null,0,null,19,null,0,null,0,null,0,0,0,null,21.5,39,39,"",""]
["GROUT","FEVRIER","Semaine (01-05/02)",0,null,2,null,26,null,0,null,0,null,0,null,0,null,2.5,null,0,null,0,null,5.75,null,0,null,1.5,null,1.25,null,0,null,0,null,0,null,0,null,0,null,0,0,0,null,2.75,39,39,"",""]
["GROUT","FEVRIER","Semaine (81-12/02)",0,null,6,null,25.75,null,0,null,0,null,0,null,0,null,3.5,null,0,null,0,null,0,null,0,null,2,null,1.5,null,0,null,0,null,0.25,null,0,null,0,null,0,0,0,null,3.75,39,39,"",""]
["GROUT","FEVRIER","Semaine (15-19/02)",0,null,13.25,null,18.25,null,0,null,0,null,0,null,0,null,4.75,null,0,null,0,null,0,null,0,null,1,null,1.75,null,0,null,0,null,0,null,0,null,0,null,0,0,0,null,2.75,39,39,"",""]
["GROUT","FEVRIER","Semaine (22-26/02)",0,null,2,null,30,null,0,null,0,null,0,null,0,null,2.5,null,0,null,0,null,2,null,0,null,1.5,null,1,null,0,null,0,null,0,null,0,null,0,null,0,0,0,null,2.5,39,39,"",""]
["GROUT","FEVRIER","Semaine (29/02)",0,null,6,null,0,null,0,null,0,null,0,null,0,null,0.5,null,0,null,0,null,0,null,0,null,1.5,null,0,null,0,null,0,null,0,null,0,null,0,null,0,0,0,null,1.5,8,8,{"$f":"IF($AS324=\"\",\"\",IF(AW324<>\"\",AW324,TODAY()))","v":""},""]
["GROUT","MARS","Semaine (01-04/03)",0,null,1.25,null,12.75,null,0,null,0,null,0,null,0,null,2,null,0,null,0,null,1,null,0,null,13,null,1,null,0,null,0,null,0,null,0,null,0,null,0,0,0,null,14,31,31,"",{"$f":"IF($AS325=\"\",\"\",IF(AX325<>\"\",AX325,NOW()))","v":""}]
["GROUT","MARS","Semaine (07-11/03)",0,null,2.5,null,16.25,null,0,null,0,null,0,null,0,null,2.5,null,0,null,0,null,0,null,0,null,12.5,null,1.25,null,0,null,0,null,4,null,0,null,0,null,0,0,0,null,17.75,39,39,"",""]
["GROUT","MARS","Semaine (14-18/03)",0,null,0,null,18,null,0,null,0,null,0,null,0,null,2.5,null,0,null,0,null,3,null,0,null,4,null,0,null,11.5,null,0,null,0,null,0,null,0,null,0,0,0,null,15.5,39,39,"",""]
["GROUT","MARS","Semaine (21-25/03)",0,null,6,null,22.5,null,0,null,0,null,0,null,0,null,2.5,null,0,null,0,null,1.25,null,0,null,0,null,2.25,null,0,null,0,null,4.5,null,0,null,0,null,0,0,0,null,6.75,39,39,"",""]
["GROUT","MARS","Semaine (28-31/03)",0,null,7,null,10.5,null,0,null,0,null,0,null,0,null,1.5,null,0,null,0,null,0,null,0,null,0,null,0.75,null,4.25,null,0,null,0,null,0,null,0,null,0,0,0,null,5,24,24,"",""]
["MARCHETTI","JANVIER","Semaine (04-08/01)",0,null,0,null,0,null,0,null,0,null,0,null,0,null,0,null,0,null,0,null,0,null,0,null,0,null,0,null,0,null,0,null,0,null,0,null,0,null,39,0,0,null,0,0,39,"",""]
["MARCHETTI","JANVIER","Semaine (11-15/01)",0,null,0,null,20,null,0,null,0,null,0,null,0,null,3,null,0,null,0,null,10,null,0,null,0,null,1,null,0,null,0,null,5,null,0,null,0,null,0,0,0,null,6,39,39,"",""]
["MARCHETTI","JANVIER","Semaine (18-22/01)",0,null,0,null,25,null,0,null,0,null,0,null,0,null,3,null,0,null,0,null,2,null,0,null,0,null,2,null,0,null,0,null,6,null,1,null,0,null,0,0,0,null,9,39,39,"",""]
["MARCHETTI","JANVIER","Semaine (25-29/01)",0,null,0,null,29,null,0,null,4,null,0,null,0,null,3,null,0,null,0,null,0,null,0,null,0,null,0,null,0,null,0,null,3,null,0,null,0,null,0,0,0,null,3,39,39,"",""]
["MARCHETTI","FEVRIER","Semaine (01-05/02)",0,null,12,null,1,null,0,null,0,null,0,null,16,null,3,null,0,null,0,null,0,null,0,null,0,null,1,null,0,null,0,null,3,null,0,null,3,null,0,0,0,null,7,39,39,"",""]
["MARCHETTI","FEVRIER","Semaine (81-12/02)",0,null,12,null,2,null,0,null,0,null,0,null,15,null,3,null,0,null,0,null,0,null,0,null,0,null,3,null,0,null,0,null,1,null,0,null,3,null,0,0,0,null,7,39,39,"",""]
["MARCHETTI","FEVRIER","Semaine (15-19/02)",0,null,5,null,4,null,0,null,0,null,0,null,14,null,0,null,0,null,0,null,0,null,0,null,0,null,2,null,0,null,0,null,2,null,0,null,4,null,0,8,0,null,8,31,39,"",""]
["MARCHETTI","FEVRIER","Semaine (22-26/02)",0,null,10,null,0,null,0,null,0,null,0,null,18,null,0,null,0,null,0,null,6,null,0,null,0,null,1,null,0,null,0,null,2,null,0,null,2,null,0,0,0,null,5,39,39,"",""]
["MARCHETTI","FEVRIER","Semaine (29/02)",0,null,0,null,0,null,0,null,0,null,0,null,8,null,0,null,0,null,0,null,0,null,0,null,0,null,0,null,0,null,0,null,0,null,0,null,0,null,0,0,0,null,0,8,8,"",""]
["MARCHETTI","MARS","Semaine (01-04/03)",0,null,0,null,0,null,0,null,0,null,0,null,0,null,2,null,0,null,0,null,0,null,0,null,26,null,1,null,0,null,0,null,2,null,0,null,0,null,0,0,0,null,29,31,31,"",""]
["MARCHETTI","MARS","Semaine (07-11/03)",0,null,0,null,1,null,0,null,0,null,0,null,0,null,2,null,0,null,0,null,3,null,0,null,30,null,1,null,0,null,0,null,2,null,0,null,0,null,0,0,0,null,33,39,39,"",""]
["MARCHETTI","MARS","Semaine (14-18/03)",0,null,0,null,1,null,0,null,0,null,0,null,30,null,2,null,0,null,0,null,3,null,0,null,0,null,1,null,0,null,0,null,2,null,0,null,0,null,0,0,0,null,3,39,39,"",""]
["MARCHETTI","MARS","Semaine (21-25/03)",0,null,0,null,0,null,0,null,0,null,0,null,25,null,2,null,0,null,0,null,0,null,0,null,0,null,2,null,0,null,0,null,2,null,1,null,0,null,7,0,0,null,5,32,39,"",""]
["MARCHETTI","MARS","Semaine (28-31/03)",0,null,0,null,0,null,0,null,0,null,0,null,20,null,1,null,0,null,0,null,0,null,0,null,0,null,1,null,0,null,0,null,2,null,0,null,0,null,0,0,0,null,3,24,24,"",""]
["MAUPEU","JANVIER","Semaine (04-08/01)",0,null,0,null,0,null,0,null,0,null,0,null,27,null,0,null,0,null,0,null,0,null,0,null,0,null,0,null,0,null,0,null,4,null,0,null,0,null,8,0,0,null,4,31,39,"",""]
["MAUPEU","JANVIER","Semaine (11-15/01)",0,null,0,null,0,null,0,null,0,null,0,null,27,null,0,null,0,null,0,null,0,null,0,null,0,null,0,null,0,null,0,null,11.5,null,0,null,0.5,null,0,0,0,null,12,39,39,"",""]
["MAUPEU","JANVIER","Semaine (18-22/01)",0,null,2,null,0,null,0,null,0,null,0,null,25,null,0,null,0,null,0,null,0,null,0,null,0,null,2,null,0,null,0,null,9.5,null,0,null,0.5,null,0,0,0,null,12,39,39,"",""]
["MAUPEU","JANVIER","Semaine (25-29/01)",0,null,0,null,0,null,0,null,0,null,0,null,24,null,1,null,0,null,0,null,0,null,0,null,0,null,0,null,0,null,0,null,7,null,0,null,7,null,0,0,0,null,14,39,39,"",""]
["MAUPEU","FEVRIER","Semaine (01-05/02)",0,null,0,null,0,null,0,null,0,null,0,null,24.75,null,0,null,0,null,0,null,0,null,0,null,0,null,1.25,null,0,null,0,null,13,null,0,null,0,null,0,0,0,null,14.25,39,39,"",""]
["MAUPEU","FEVRIER","Semaine (81-12/02)",0,null,0,null,0.5,null,0,null,0,null,0,null,23,null,0,null,0,null,0,null,3.25,null,0,null,2.25,null,0,null,0,null,0,null,10,null,0,null,0,null,0,0,0,null,12.25,39,39,"",""]
["MAUPEU","FEVRIER","Semaine (15-19/02)",0,null,5,null,3,null,0,null,0,null,0,null,18,null,0,null,0,null,0,null,0,null,0,null,0,null,4,null,0,null,0,null,0,null,0,null,9,null,0,0,0,null,13,39,39,"",""]
["MAUPEU","FEVRIER","Semaine (22-26/02)",0,null,3.25,null,0.5,null,0,null,0,null,0,null,24.25,null,0,null,0,null,0,null,0.5,null,0,null,0,null,1,null,0,null,0,null,9,null,0,null,0.5,null,0,0,0,null,10.5,39,39,"",""]
["MAUPEU","FEVRIER","Semaine (29/02)",0,null,0,null,0,null,0,null,0,null,0,null,5,null,0,null,0,null,0,null,0,null,0,null,0,null,0.25,null,0,null,0,null,2.5,null,0,null,0.25,null,0,0,0,null,3,8,8,"",""]
["MAUPEU","MARS","Semaine (01-04/03)",0,null,0,null,8,null,0,null,0,null,0,null,11,null,2,null,0,null,0,null,0,null,0,null,0,null,1,null,0,null,0,null,9,null,0,null,0,null,0,0,0,null,10,31,31,"",""]
["MAUPEU","MARS","Semaine (07-11/03)",0,null,0,null,21.5,null,0,null,0,null,0,null,4,null,0,null,0,null,0,null,0,null,0,null,0,null,1.5,null,0,null,0,null,12,null,0,null,0,null,0,0,0,null,13.5,39,39,"",""]
["MAUPEU","MARS","Semaine (14-18/03)",0,null,16,null,6.25,null,0,null,2.25,null,0,null,0.5,null,0,null,0,null,0,null,2,null,0,null,0,null,1,null,0,null,0,null,9,null,0,null,2,null,0,0,0,null,12,39,39,"",""]
["MAUPEU","MARS","Semaine (21-25/03)",0,null,10,null,4.75,null,0,null,6,null,0,null,0,null,0,null,0,null,0,null,0,null,0,null,0,null,2.25,null,0,null,0,null,13.5,null,0,null,2.5,null,0,0,0,null,18.25,39,39,"",""]
["MAUPEU","MARS","Semaine (28-31/03)",0,null,0,null,7,null,0,null,0,null,0,null,2,null,1.25,null,0,null,0,null,0,null,0,null,0,null,0.75,null,0,null,0,null,9,null,0,null,0,null,4,0,0,null,9.75,20,24,"",""]
["MORNET","JANVIER","Semaine (18-22/01)",0,null,0,null,0,null,0,null,0,null,0,null,0,null,0,null,0,null,0,null,0,null,0,null,35.75,null,2.25,null,0,null,0,null,0,null,1,null,0,null,0,0,0,null,39,39,39,"",""]
["MORNET","JANVIER","Semaine (25-29/01)",0,null,0,null,0,null,0,null,0,null,0,null,0,null,0,null,0,null,0,null,0,null,0,null,39,null,0,null,0,null,0,null,0,null,0,null,0,null,0,0,0,null,39,39,39,"",""]
["MORNET","FEVRIER","Semaine (01-05/02)",0,null,0,null,0,null,0,null,0,null,0,null,0,null,1,null,0,null,0,null,0,null,0,null,37,null,1,null,0,null,0,null,0,null,0,null,0,null,0,0,0,null,38,39,39,"",""]
["MORNET","FEVRIER","Semaine (81-12/02)",0,null,0,null,0,null,0,null,0,null,0,null,0,null,1,null,0,null,0,null,0,null,0,null,37,null,1,null,0,null,0,null,0,null,0,null,0,null,0,0,0,null,38,39,39,"",""]
["MORNET","FEVRIER","Semaine (15-19/02)",0,null,0,null,0,null,0,null,0,null,0,null,0,null,1,null,0,null,0,null,0,null,0,null,36.5,null,1.5,null,0,null,0,null,0,null,0,null,0,null,0,0,0,null,38,39,39,"",""]
["MORNET","FEVRIER","Semaine (22-26/02)",0,null,0,null,0,null,0,null,0,null,0,null,36,null,1,null,0,null,0,null,0,null,0,null,0,null,1,null,0,null,0,null,1,null,0,null,0,null,0,0,0,null,2,39,39,"",""]
["MORNET","FEVRIER","Semaine (29/02)",0,null,0,null,0,null,0,null,0,null,0,null,7.5,null,0.25,null,0,null,0,null,0,null,0,null,0,null,0.25,null,0,null,0,null,0,null,0,null,0,null,0,0,0,null,0.25,8,8,"",""]
["MORNET","MARS","Semaine (01-04/03)",0,null,0,null,0,null,0,null,0,null,0,null,21,null,1,null,0,null,0,null,0,null,0,null,8,null,1,null,0,null,0,null,0,null,0,null,0,null,0,0,0,null,9,31,31,"",""]
["MORNET","MARS","Semaine (07-11/03)",0,null,0,null,0,null,0,null,0,null,0,null,30,null,1,null,0,null,0,null,0,null,0,null,0,null,1,null,0,null,0,null,0,null,0,null,0,null,7,0,0,null,1,32,39,"",""]
["MORNET","MARS","Semaine (14-18/03)",0,null,0,null,0,null,0,null,0,null,0,null,37,null,1,null,0,null,0,null,0,null,0,null,0,null,1,null,0,null,0,null,0,null,0,null,0,null,0,0,0,null,1,39,39,"",""]
["MORNET","MARS","Semaine (21-25/03)",0,null,0,null,0,null,0,null,0,null,0,null,36,null,1,null,0,null,0,null,0,null,0.5,null,0,null,1.5,null,0,null,0,null,0,null,0,null,0,null,0,0,0,null,2,39,39,"",""]
["MORNET","MARS","Semaine (28-31/03)",0,null,0,null,0,null,0,null,0,null,0,null,22.5,null,0.5,null,0,null,0,null,0,null,0,null,0.5,null,0.5,null,0,null,0,null,0,null,0,null,0,null,0,0,0,null,1,24,24,"",""]
["PANATIER","JANVIER","Semaine (04-08/01)",0,null,0,null,27,null,0,null,0,null,0,null,0,null,0,null,0,null,0,null,0,null,3,null,0,null,0,null,0,null,0,null,1,null,8,null,0,null,0,0,0,null,12,39,39,"",""]
["PANATIER","JANVIER","Semaine (11-15/01)",0,null,0,null,10,null,0,null,0,null,0,null,0,null,0,null,0,null,0,null,22,null,6,null,0,null,0,null,0,null,0,null,1,null,0,null,0,null,0,0,0,null,7,39,39,"",""]
["PANATIER","JANVIER","Semaine (18-22/01)",0,null,0,null,10,null,0,null,0,null,0,null,0,null,3,null,0,null,0,null,13,null,10,null,0,null,0,null,0,null,0,null,0,null,3,null,0,null,0,0,0,null,13,39,39,"",""]
["PANATIER","JANVIER","Semaine (25-29/01)",0,null,0,null,13,null,0,null,0,null,0,null,0,null,0,null,0,null,0,null,13,null,12,null,0,null,0,null,0,null,0,null,1,null,0,null,0,null,0,0,0,null,13,39,39,"",""]
["PANATIER","FEVRIER","Semaine (01-05/02)",0,null,0,null,14,null,0,null,0,null,0,null,0,null,0,null,0,null,0,null,10,null,15,null,0,null,0,null,0,null,0,null,0,null,0,null,0,null,0,0,0,null,15,39,39,"",""]
["PANATIER","FEVRIER","Semaine (81-12/02)",0,null,0,null,14.25,null,0,null,4,null,0,null,0,null,0,null,0,null,0,null,0,null,19,null,1.75,null,0,null,0,null,0,null,0,null,0,null,0,null,0,0,0,null,20.75,39,39,"",""]
["PANATIER","FEVRIER","Semaine (15-19/02)",0,null,0,null,0,null,0,null,0,null,0,null,0,null,0,null,0,null,0,null,0,null,0,null,0,null,0,null,0,null,0,null,0,null,0,null,0,null,39,0,0,null,0,0,39,"",""]
["PANATIER","FEVRIER","Semaine (22-26/02)",0,null,0,null,14,null,0,null,0,null,0,null,0,null,2,null,0,null,0,null,15,null,2,null,0,null,0,null,0,null,0,null,0,null,6,null,0,null,0,0,0,null,8,39,39,"",""]
["PANATIER","FEVRIER","Semaine (29/02)",0,null,0,null,4,null,0,null,0,null,0,null,0,null,0,null,0,null,0,null,4,null,0,null,0,null,0,null,0,null,0,null,0,null,0,null,0,null,0,0,0,null,0,8,8,"",""]
["PANATIER","MARS","Semaine (01-04/03)",0,null,0,null,26,null,0,null,0,null,0,null,0,null,0,null,0,null,0,null,5,null,0,null,0,null,0,null,0,null,0,null,0,null,0,null,0,null,0,0,0,null,0,31,31,"",""]
["PANATIER","MARS","Semaine (07-11/03)",0,null,0,null,0,null,0,null,0,null,0,null,0,null,0,null,0,null,0,null,0,null,0,null,0,null,0,null,0,null,0,null,0,null,0,null,0,null,39,0,0,null,0,0,39,"",""]
["PANATIER","MARS","Semaine (14-18/03)",0,null,0,null,33,null,0,null,0,null,0,null,0,null,0,null,0,null,0,null,3.75,null,0,null,0,null,0,null,0,null,0,null,0,null,3,null,0,null,0,0,0.75,null,3,39.75,39,"",""]
["PANATIER","MARS","Semaine (21-25/03)",0,null,0,null,33,null,0,null,3,null,0,null,0,null,0,null,0,null,0,null,0,null,0,null,0,null,1,null,0,null,0,null,2,null,0,null,0,null,0,0,0,null,3,39,39,"",""]
["PANATIER","MARS","Semaine (28-31/03)",0,null,0,null,19,null,0,null,0,null,0,null,0,null,0,null,0,null,0,null,2,null,3,null,0,null,0,null,0,null,0,null,0,null,0,null,0,null,0,0,0,null,3,24,24,"",""]
["SAVINOT","JANVIER","Semaine (04-08/01)",0,null,7.5,null,4.5,null,0,null,0,null,0,null,14.5,null,5.5,null,0,null,0,null,3.5,null,0,null,0,null,0,null,0.75,null,0,null,0,null,0,null,2.75,null,0,0,0,null,3.5,39,39,"",""]
["SAVINOT","JANVIER","Semaine (11-15/01)",0,null,8.5,null,8,null,0,null,0,null,0,null,9.5,null,2.75,null,0,null,0,null,2.5,null,0,null,0,null,1.25,null,0,null,0,null,0,null,0,null,6.5,null,0,0,0,null,7.75,39,39,"",""]
["SAVINOT","JANVIER","Semaine (18-22/01)",0,null,11.5,null,0,null,0,null,0,null,0,null,7.75,null,2,null,0,null,0,null,0,null,0,null,5.75,null,1.75,null,0,null,0,null,0.5,null,0.75,null,2,null,7,0,0,null,10.75,32,39,"",""]
["SAVINOT","JANVIER","Semaine (25-29/01)",0,null,13.5,null,1.75,null,0,null,0,null,0,null,7.5,null,2.5,null,2.75,null,0,null,2,null,0,null,3.75,null,2.5,null,0,null,0,null,0,null,0,null,2.75,null,0,0,0,null,9,39,39,"",""]
["SAVINOT","FEVRIER","Semaine (01-05/02)",0,null,0,null,29.75,null,0,null,0,null,0,null,0,null,3.5,null,0,null,0,null,4.5,null,0,null,0,null,1.25,null,0,null,0,null,0,null,0,null,0,null,0,0,0,null,1.25,39,39,{"$f":"IF($AS388=\"\",\"\",IF(AW388<>\"\",AW388,TODAY()))","v":""},""]
["SAVINOT","FEVRIER","Semaine (81-12/02)",0,null,0,null,20.75,null,0,null,0,null,0,null,0,null,6.75,null,0,null,0,null,0.5,null,0,null,2.25,null,1.25,null,0,null,0,null,0.5,null,0,null,0,null,7,0,0,null,4,32,39,"",{"$f":"IF($AS389=\"\",\"\",IF(AX389<>\"\",AX389,NOW()))","v":""}]
["SAVINOT","FEVRIER","Semaine (15-19/02)",0,null,1.25,null,21.5,null,0,null,0,null,0,null,0,null,4.25,null,0,null,0,null,0,null,0,null,1,null,2.5,null,0,null,0,null,0,null,0.5,null,1,null,7,0,0,null,5,32,39,"",""]
["SAVINOT","FEVRIER","Semaine (22-26/02)",0,null,0,null,27.5,null,0,null,0,null,0,null,0,null,4,null,0,null,3,null,3.5,null,0,null,0,null,1,null,0,null,0,null,0,null,0,null,0,null,0,0,0,null,1,39,39,"",""]
["SAVINOT","FEVRIER","Semaine (29/02)",0,null,1.5,null,1.5,null,0,null,0,null,0,null,0,null,0.5,null,3.75,null,0,null,0,null,0,null,0,null,0.25,null,0,null,0,null,0,null,0,null,0.5,null,0,0,0,null,0.75,8,8,"",""]
["SAVINOT","MARS","Semaine (01-04/03)",0,null,7.5,null,9.25,null,0,null,0,null,0,null,0,null,5.5,null,3,null,0,null,0,null,0,null,1,null,1,null,0,null,0,null,3.75,null,0,null,0,null,0,0,0,null,5.75,31,31,"",""]
["SAVINOT","MARS","Semaine (07-11/03)",0,null,7.5,null,14.75,null,0,null,2,null,0,null,0,null,2.5,null,3,null,0,null,2,null,0,null,0,null,1,null,0,null,0,null,4.25,null,0,null,2,null,0,0,0,null,7.25,39,39,"",""]
["SAVINOT","MARS","Semaine (14-18/03)",0,null,0,null,0,null,0,null,0,null,0,null,0,null,0,null,0,null,0,null,0,null,0,null,0,null,0,null,0,null,0,null,0,null,0,null,0,null,39,0,0,null,0,0,39,"",""]
["SAVINOT","MARS","Semaine (21-25/03)",0,null,0,null,0,null,0,null,0,null,0,null,0,null,0,null,0,null,0,null,0,null,0,null,0,null,0,null,0,null,0,null,0,null,0,null,0,null,39,0,0,null,0,0,39,"",""]
["SAVINOT","MARS","Semaine (28-31/03)",0,null,7,null,6.25,null,0,null,0,null,0,null,0,null,2.25,null,1.5,null,0,null,0,null,0,null,0,null,0.75,null,0,null,0,null,4.75,null,0,null,1.5,null,0,0,0,null,7,24,24,"",""]
["PIQUET","JANVIER","Semaine (04-08/01)",0,null,0,null,0,null,30.75,null,0,null,0,null,0,null,0,null,0,null,0,null,0,null,1,null,0,null,0,null,0,null,0,null,0,null,3,null,0.75,null,3.5,0,0,null,4.75,35.5,39,"",""]
["PIQUET","JANVIER","Semaine (11-15/01)",0,null,0,null,0,null,28.75,null,0,null,0,null,0,null,0,null,0,null,0,null,0,null,0,null,0,null,0,null,0,null,0,null,0,null,2,null,0.25,null,8,0,0,null,2.25,31,39,"",""]
["PIQUET","JANVIER","Semaine (18-22/01)",0,null,0,null,0,null,28.75,null,0,null,0,null,0,null,0,null,0,null,0,null,0,null,1.75,null,0,null,1.75,null,0.25,null,0.5,null,0,null,5.75,null,0.25,null,0,0,0,null,10.25,39,39,"",""]
["PIQUET","JANVIER","Semaine (25-29/01)",0,null,0,null,0,null,30.25,null,0,null,0,null,0,null,0,null,0,null,0,null,0,null,4.5,null,0,null,0,null,0,null,0.25,null,0,null,3.75,null,0.25,null,0,0,0,null,8.75,39,39,"",""]
["PIQUET","FEVRIER","Semaine (01-05/02)",0,null,0,null,0,null,35.5,null,0,null,0,null,0,null,0,null,0,null,0,null,0,null,2,null,0,null,0,null,0,null,0,null,0,null,1.25,null,0.25,null,0,0,0,null,3.5,39,39,"",""]
["PIQUET","FEVRIER","Semaine (81-12/02)",0,null,0,null,0,null,34.75,null,0,null,0,null,0,null,0,null,0,null,0,null,0,null,0,null,0,null,0.5,null,0,null,0,null,0,null,3.5,null,0.25,null,0,0,0,null,4.25,39,39,"",""]
["PIQUET","FEVRIER","Semaine (15-19/02)",0,null,0,null,0,null,24.25,null,0,null,0,null,0,null,0,null,0,null,0,null,0,null,0,null,0,null,0,null,0,null,0,null,0,null,6.5,null,0.25,null,8,0,0,null,6.75,31,39,"",""]
["PIQUET","FEVRIER","Semaine (22-26/02)",0,null,0,null,0,null,33.25,null,0,null,0,null,0,null,0,null,4,null,0,null,0,null,0,null,0,null,0,null,0,null,0,null,0,null,1.5,null,0.25,null,0,0,0,null,1.75,39,39,"",""]
["PIQUET","FEVRIER","Semaine (29/02)",0,null,0,null,0,null,5.25,null,0,null,0,null,0,null,0,null,0,null,0,null,0,null,0,null,0,null,0,null,0,null,0,null,0,null,2.5,null,0.25,null,0,0,0,null,2.75,8,8,"",""]
["PIQUET","MARS","Semaine (01-04/03)",0,null,0,null,0,null,26.25,null,0,null,0,null,0,null,0,null,0,null,0,null,0,null,1.75,null,0,null,0,null,0,null,0.5,null,0,null,2.5,null,0,null,0,0,0,null,4.75,31,31,"",""]
["PIQUET","MARS","Semaine (07-11/03)",0,null,0,null,0,null,33.25,null,0,null,0,null,0,null,0,null,0,null,0,null,0,null,0,null,0,null,0.5,null,0,null,0.5,null,0,null,4.5,null,0.25,null,0,0,0,null,5.75,39,39,"",""]
["PIQUET","MARS","Semaine (14-18/03)",0,null,0,null,0,null,0,null,0,null,0,null,0,null,0,null,0,null,0,null,0,null,0,null,0,null,0,null,0,null,0,null,0,null,0,null,0,null,39,0,0,null,0,0,39,"",""]
["PIQUET","MARS","Semaine (21-25/03)",0,null,0,null,0,null,35.25,null,0,null,0,null,0,null,0,null,0,null,0,null,0,null,0,null,0,null,1,null,0,null,0.75,null,0,null,3.25,null,0.25,null,0,0,1.5,null,5.25,40.5,39,"",""]
["PIQUET","MARS","Semaine (28-31/03)",0,null,0,null,0,null,19.25,null,0,null,0,null,0,null,0,null,0,null,0,null,0,null,0,null,0,null,0,null,0,null,0,null,0,null,0.5,null,0.25,null,4,0,0,null,0.75,20,24,"",""]
["RODRIGUES","JANVIER","Semaine (04-08/01)",0,null,0,null,0,null,0,null,0,null,0,null,0,null,16,null,0,null,0,null,0,null,0,null,0,null,0.5,null,0,null,0,null,12.5,null,0,null,2,null,8,0,0,null,15,31,39,"",""]
["RODRIGUES","JANVIER","Semaine (11-15/01)",0,null,0,null,0,null,0,null,0,null,0,null,0,null,14.75,null,0,null,0,null,0,null,0.25,null,0,null,6.25,null,0,null,0,null,14.75,null,1,null,2,null,0,0,0,null,24.25,39,39,"",""]
["RODRIGUES","JANVIER","Semaine (18-22/01)",0,null,0,null,0,null,0,null,0,null,0,null,0,null,9.5,null,0,null,0,null,0,null,0,null,0,null,3.25,null,0,null,0,null,12.25,null,1.5,null,4.5,null,8,0,0,null,21.5,31,39,"",""]
["RODRIGUES","JANVIER","Semaine (25-29/01)",0,null,0,null,0,null,0,null,0,null,0,null,0,null,7.5,null,0,null,0,null,0,null,1.75,null,12.5,null,0.75,null,0,null,0,null,9.5,null,0.25,null,10.25,null,0,0,3.5,null,35,42.5,39,"",""]
["RODRIGUES","FEVRIER","Semaine (01-05/02)",0,null,0,null,0,null,0,null,0,null,0,null,0,null,13,null,0,null,0,null,0,null,1,null,0,null,1,null,0,null,0,null,17.75,null,0,null,6.25,null,0,0,0,null,26,39,39,"",""]
["RODRIGUES","FEVRIER","Semaine (81-12/02)",0,null,0,null,0,null,0,null,0,null,0,null,0,null,10,null,0,null,0,null,0,null,2.5,null,0,null,1.25,null,0,null,0,null,22,null,0,null,3.25,null,0,0,0,null,29,39,39,"",""]
["RODRIGUES","FEVRIER","Semaine (15-19/02)",0,null,0,null,0,null,0,null,0,null,0,null,0,null,10,null,0,null,0,null,0,null,5,null,0,null,0,null,1.75,null,0,null,18.5,null,1.75,null,2,null,0,0,0,null,29,39,39,"",""]
["RODRIGUES","FEVRIER","Semaine (22-26/02)",0,null,0,null,0,null,0,null,0,null,0,null,0,null,8,null,0,null,0,null,0,null,13.5,null,0,null,0,null,0,null,0,null,11,null,0,null,6.5,null,0,0,1.5,null,31,39,37.5,"",""]
["RODRIGUES","FEVRIER","Semaine (29/02)",0,null,0,null,0,null,0,null,0,null,0,null,0,null,0.5,null,0,null,0,null,0,null,2.5,null,4,null,0,null,0,null,0,null,0.5,null,0,null,0,null,0,0,0.5,null,7,7.5,7,"",""]
["RODRIGUES","MARS","Semaine (01-04/03)",0,null,0,null,0,null,0,null,0,null,0,null,0,null,2,null,0,null,0,null,0,null,0,null,12,null,9.75,null,0,null,0,null,6.75,null,0,null,1.5,null,0,0,1,null,30,32,31,"",""]
["RODRIGUES","MARS","Semaine (07-11/03)",0,null,0,null,0,null,0,null,0,null,0,null,0,null,9.5,null,0,null,0,null,0,null,0,null,0,null,5.5,null,0,null,0,null,0,null,0,null,24,null,0,0,0,null,29.5,39,39,"",""]
["RODRIGUES","MARS","Semaine (14-18/03)",0,null,0,null,0,null,0,null,0,null,0,null,0,null,7,null,0,null,0,null,0,null,0,null,0,null,0.75,null,0,null,0,null,27.75,null,1.75,null,3.25,null,0,0,1.5,null,33.5,40.5,39,"",""]
["RODRIGUES","MARS","Semaine (21-25/03)",0,null,0,null,0,null,0,null,0,null,0,null,0,null,9,null,0,null,0,null,0,null,0,null,0,null,1,null,0,null,0,null,29.75,null,2,null,3.25,null,0,0,6,null,36,45,39,"",""]
["GUEGUEN","AVRIL","30","1","A","2","B","3","C",0,"","4","D",0,"",0,"","5","E","6","F","7","G","8","H","9","I","10","J","11","K","12","L","13","M","14","N","15","O","16","P","17","18","19",null,{"$f":"SUM(Z425+AB425+AD425+AF425+AH425+AJ425+AL425+AN425)","v":100},{"$f":"SUM(D425+F425+H425+L425+R425+T425+V425+X425+AT425)","v":136},{"$f":"SUM(AU425+AP425+AQ425)-AR425","v":152},"",""]
["GUEGUEN","AVRIL","90","1","A","2","B","3","C",0,"","4","D",0,"",0,"","5","E","6","F","7","G","8","H","9","I","10","J","11","K","12","L","13","M","14","N","15","O","16","P","1","2","3",null,{"$f":"SUM(Z426+AB426+AD426+AF426+AH426+AJ426+AL426+AN426)","v":100},{"$f":"SUM(D426+F426+H426+L426+R426+T426+V426+X426+AT426)","v":136},{"$f":"SUM(AU426+AP426+AQ426)-AR426","v":136},"",""]
["BARSACQ","AVRIL","90",0,"","1","A","2","B",0,"","3","C","4","D","5","E","6","F","7","G","8","H","9","I","10","J","11","K","12","L","13","M","14","N","15","O","16","P","17","Q","1","2","3","MJDE",{"$f":"SUM(Z427+AB427+AD427+AF427+AH427+AJ427+AL427+AN427)","v":108},{"$f":"SUM(D427+F427+H427+L427+R427+T427+V427+X427+AT427)","v":144},{"$f":"SUM(AU427+AP427+AQ427)-AR427","v":144},"2016-05-09",42499.576831018516]
["EPRON","AVRIL","58","1","A","2","B","3","C",0,"",0,"","4","D","5","E",0,"","6","F",0,"","7","G",0,"","8","H","9","I","10","J",0,"",0,"","11","K","12","L","1","2","3",null,50,{"$f":"SUM(D428+F428+H428+L428+R428+T428+V428+X428+AT428)","v":69},69,"",""]
["PIQUET","AVRIL","62",0,"",0,"",0,"","1","A",0,"",0,"",0,"",0,"","2","B","3","C",0,"","4","D","5","E","6","F","7","G","8","H",0,"","9","I","10","J","1","2","3",null,49,54,54,"",""]
["RODRIGUES","AVRIL","20",0,"",0,"",0,"",0,"",0,"",0,"",0,"","1","A",0,"",0,"",0,"","2","B","3","C","4","D","5","E",0,"","6","F","7","G","8","H","1","2","3",null,35,36,36,"",""]
["TESTS",null,null,0,null,0,null,0,null,0,null,0,null,0,null,0,null,0,null,0,null,0,null,0,null,0,null,0,null,0,null,0,null,0,null,0,null,0,null,0,null,0,0,0,null,0,0,0,"",""]
["RODRIGUES","AVRIL","55",0,"",0,"",0,"",0,"",0,"",0,"",0,"","33","TEST MODIF",0,"",0,"",0,"","33","A","33","B","33","C","33","D",0,"","33","E","33","F","33","G","999","999","999",null,231,264,1263,"",""]
["BARSACQ","AVRIL","58",0,"",0,"MODIF",0,"MODIF",0,"",0,"MODIF",0,"MODIF",0,"MODIF",0,"MODIF",0,"MODIF",0,"MODIF",0,"MODIF",0,"MODIF",0,"MODIF",0,"MODIF",0,"MODIF",0,"MODIF",0,"MODIF",0,"MODIF",0,"MODIF",0,0,0,"",0,0,0,"",""]
["","","",0,"",0,"",0,"",0,"",0,"",0,"",0,"",0,"",0,"",0,"",0,"",0,"",0,"",0,"",0,"",0,"",0,"",0,"",0,"",0,0,0,null,0,{"$f":"SUM(D434+F434+H434+L434+R434+T434+V434+X434+AT434)","v":0},0,"",""]
["","","",0,"",0,"",0,"",0,"",0,"",0,"",0,"",0,"",0,"",0,"",0,"",0,"",0,"",0,"",0,"",0,"",0,"",0,"",0,"",0,0,0,null,0,0,0,"",""]
["","","",0,"",0,"",0,"",0,"",0,"",0,"",0,"",0,"",0,"",0,"",0,"",0,"",0,"",0,"",0,"",0,"",0,"",0,"",0,"",0,0,0,null,0,0,0,"",""]
["","","",0,"",0,"",0,"",0,"",0,"",0,"",0,"",0,"",0,"",0,"",0,"",0,"",0,"",0,"",0,"",0,"",0,"",0,"",0,"",0,0,0,null,0,0,0,"",""]
["aaa","aaaa","12",0,"",0,"",0,"",0,"",0,"",0,"",0,"",0,"",0,"",0,"",0,"",0,"",0,"",0,"",0,"",0,"",0,"",0,"",0,"",0,0,0,null,0,0,0,"",""]
["aaaa","aaaa","aaaa",0,"",0,"",0,"",0,"",0,"",0,"",0,"",0,"",0,"",0,"",0,"",0,"",0,"",0,"",0,"",0,"",0,"",0,"",0,"",0,0,0,null,0,0,0,"",""]
["dsfsdf","dfsdfsdf","dsfdsfds",0,"",0,"",0,"",0,"",0,"",0,"",0,"",0,"",0,"",0,"",0,"",0,"",0,"",0,"",0,"",0,"",0,"",0,"",0,"",0,0,0,null,0,0,0,"",""]
["sdfsf",null,"12",0,"",0,"",0,"",0,"",0,"",0,"",0,"",0,"",0,"",0,"",0,"",0,"",0,"",0,"",0,"",0,"",0,"",0,"",0,"",0,0,0,null,0,0,0,"",""]
["sfsdf",null,"12",0,"",0,"",0,"",0,"",0,"",0,"",0,"",0,"",0,"",0,"",0,"",0,"",0,"",0,"",0,"",0,"",0,"",0,"",0,"",0,0,0,null,0,0,0,"",""]
["sdfsddsdsf",null,"12",0,"",0,"",0,"",0,"",0,"",0,"",0,"",0,"",0,"",0,"",0,"",0,"",0,"",0,"",0,"",0,"",0,"",0,"",0,"",0,0,0,null,0,0,0,"",""]
["dfgfg","avril","13","0","","0","","0","",0,"","0","",0,"",0,"","0","","0","","0","","0","","0","","0","","0","","0","","0","","0","","0","","0","","0","0","0",null,0,0,0,"",""]
["","","",0,"",0,"",0,"",0,"",0,"",0,"",0,"",0,"",0,"",0,"",0,"",0,"",0,"",0,"",0,"",0,"",0,"",0,"",0,"",0,0,0,null,0,0,0,"",""]
["dazzad","AVRIL","45","777","","0","","0","","","","0","","","","","","0","","0","","0","","0","","0","","0","","0","","0","","0","","0","","0","","0","","0","0","0",null,0,777,777,{"$f":"IF($AS446=\"\",\"\",IF(AW446<>\"\",AW446,TODAY()))","v":""},""]
[null,null,null,null,null,null,null,null,null,null,null,null,null,null,null,null,null,null,null,null,null,null,null,null,null,null,null,null,null,null,null,null,null,null,null,null,null,null,null,null,null,null,null,null,null,0,0,0,"",{"$f":"IF($AS447=\"\",\"\",IF(AX447<>\"\",AX447,NOW()))","v":""}]
[null,null,null,null,null,null,null,null,null,null,null,null,null,null,null,null,null,null,null,null,null,null,null,null,null,null,null,null,null,null,null,null,null,null,null,null,null,null,null,null,null,null,null,null,null,0,0,0,"",""]
[null,null,null,null,null,null,null,null,null,null,null,null,null,null,null,null,null,null,null,null,null,null,null,null,null,null,null,null,null,null,null,null,null,null,null,null,null,null,null,null,null,null,null,null,null,0,0,0,"",""]
[null,null,null,null,null,null,null,null,null,null,null,null,null,null,null,null,null,null,null,null,null,null,null,null,null,null,null,null,null,null,null,null,null,null,null,null,null,null,null,null,null,null,null,null,null,0,0,0,"",""]
[null,null,null,null,null,null,null,null,null,null,null,null,null,null,null,null,null,null,null,null,null,null,null,null,null,null,null,null,null,null,null,null,null,null,null,null,null,null,null,null,null,null,null,null,null,0,0,0,"",""]
[null,null,null,null,null,null,null,null,null,null,null,null,null,null,null,null,null,null,null,null,null,null,null,null,null,null,null,null,null,null,null,null,null,null,null,null,null,null,null,null,null,null,null,null,null,0,0,0,"",""]
[null,null,null,null,null,null,null,null,null,null,null,null,null,null,null,null,null,null,null,null,null,null,null,null,null,null,null,null,null,null,null,null,null,null,null,null,null,null,null,null,null,null,null,null,null,0,0,0,"",""]
[null,null,null,null,null,null,null,null,null,null,null,null,null,null,null,null,null,null,null,null,null,null,null,null,null,null,null,null,null,null,null,null,null,null,null,null,null,null,null,null,null,null,null,null,null,0,0,0,"",""]
[null,null,null,null,null,null,null,null,null,null,null,null,null,null,null,null,null,null,null,null,null,null,null,null,null,null,null,null,null,null,null,null,null,null,null,null,null,null,null,null,null,null,null,null,null,0,0,0,"",""]
[null,null,null,null,null,null,null,null,null,null,null,null,null,null,null,null,null,null,null,null,null,null,null,null,null,null,null,null,null,null,null,null,null,null,null,null,null,null,null,null,null,null,null,null,null,0,0,0,"",""]
[null,null,null,null,null,null,null,null,null,null,null,null,null,null,null,null,null,null,null,null,null,null,null,null,null,null,null,null,null,null,null,null,null,null,null,null,null,null,null,null,null,null,null,null,null,0,0,0,"",""]
[null,null,null,null,null,null,null,null,null,null,null,null,null,null,null,null,null,null,null,null,null,null,null,null,null,null,null,null,null,null,null,null,null,null,null,null,null,null,null,null,null,null,null,null,null,0,0,0,"",""]
[null,null,null,null,null,null,null,null,null,null,null,null,null,null,null,null,null,null,null,null,null,null,null,null,null,null,null,null,null,null,null,null,null,null,null,null,null,null,null,null,null,null,null,null,null,0,0,0,"",""]
[null,null,null,null,null,null,null,null,null,null,null,null,null,null,null,null,null,null,null,null,null,null,null,null,null,null,null,null,null,null,null,null,null,null,null,null,null,null,null,null,null,null,null,null,null,0,0,0,"",""]
[null,null,null,null,null,null,null,null,null,null,null,null,null,null,null,null,null,null,null,null,null,null,null,null,null,null,null,null,null,null,null,null,null,null,null,null,null,null,null,null,null,null,null,null,null,0,0,0,"",""]
[null,null,null,null,null,null,null,null,null,null,null,null,null,null,null,null,null,null,null,null,null,null,null,null,null,null,null,null,null,null,null,null,null,null,null,null,null,null,null,null,null,null,null,null,null,0,0,0,"",""]
[null,null,null,null,null,null,null,null,null,null,null,null,null,null,null,null,null,null,null,null,null,null,null,null,null,null,null,null,null,null,null,null,null,null,null,null,null,null,null,null,null,null,null,null,null,0,0,0,"",""]
[null,null,null,null,null,null,null,null,null,null,null,null,null,null,null,null,null,null,null,null,null,null,null,null,null,null,null,null,null,null,null,null,null,null,null,null,null,null,null,null,null,null,null,null,null,0,0,0,"",""]
[null,null,null,null,null,null,null,null,null,null,null,null,null,null,null,null,null,null,null,null,null,null,null,null,null,null,null,null,null,null,null,null,null,null,null,null,null,null,null,null,null,null,null,null,null,0,0,0,"",""]
[null,null,null,null,null,null,null,null,null,null,null,null,null,null,null,null,null,null,null,null,null,null,null,null,null,null,null,null,null,null,null,null,null,null,null,null,null,null,null,null,null,null,null,null,null,0,0,0,"",""]
[null,null,null,null,null,null,null,null,null,null,null,null,null,null,null,null,null,null,null,null,null,null,null,null,null,null,null,null,null,null,null,null,null,null,null,null,null,null,null,null,null,null,null,null,null,0,0,0,"",""]
[null,null,null,null,null,null,null,null,null,null,null,null,null,null,null,null,null,null,null,null,null,null,null,null,null,null,null,null,null,null,null,null,null,null,null,null,null,null,null,null,null,null,null,null,null,0,0,0,"",""]
[null,null,null,null,null,null,null,null,null,null,null,null,null,null,null,null,null,null,null,null,null,null,null,null,null,null,null,null,null,null,null,null,null,null,null,null,null,null,null,null,null,null,null,null,null,0,0,0,"",""]
[null,null,null,null,null,null,null,null,null,null,null,null,null,null,null,null,null,null,null,null,null,null,null,null,null,null,null,null,null,null,null,null,null,null,null,null,null,null,null,null,null,null,null,null,null,0,0,0,"",""]
[null,null,null,null,null,null,null,null,null,null,null,null,null,null,null,null,null,null,null,null,null,null,null,null,null,null,null,null,null,null,null,null,null,null,null,null,null,null,null,null,null,null,null,null,null,0,0,0,"",""]
[null,null,null,null,null,null,null,null,null,null,null,null,null,null,null,null,null,null,null,null,null,null,null,null,null,null,null,null,null,null,null,null,null,null,null,null,null,null,null,null,null,null,null,null,null,0,0,0,"",""]
[null,null,null,null,null,null,null,null,null,null,null,null,null,null,null,null,null,null,null,null,null,null,null,null,null,null,null,null,null,null,null,null,null,null,null,null,null,null,null,null,null,null,null,null,null,0,0,0,"",""]
[null,null,null,null,null,null,null,null,null,null,null,null,null,null,null,null,null,null,null,null,null,null,null,null,null,null,null,null,null,null,null,null,null,null,null,null,null,null,null,null,null,null,null,null,null,0,0,0,"",""]
[null,null,null,null,null,null,null,null,null,null,null,null,null,null,null,null,null,null,null,null,null,null,null,null,null,null,null,null,null,null,null,null,null,null,null,null,null,null,null,null,null,null,null,null,null,0,0,0,"",""]
[null,null,null,null,null,null,null,null,null,null,null,null,null,null,null,null,null,null,null,null,null,null,null,null,null,null,null,null,null,null,null,null,null,null,null,null,null,null,null,null,null,null,null,null,null,0,0,0,"",""]
[null,null,null,null,null,null,null,null,null,null,null,null,null,null,null,null,null,null,null,null,null,null,null,null,null,null,null,null,null,null,null,null,null,null,null,null,null,null,null,null,null,null,null,null,null,0,0,0,"",""]
[null,null,null,null,null,null,null,null,null,null,null,null,null,null,null,null,null,null,null,null,null,null,null,null,null,null,null,null,null,null,null,null,null,null,null,null,null,null,null,null,null,null,null,null,null,0,0,0,"",""]
[null,null,null,null,null,null,null,null,null,null,null,null,null,null,null,null,null,null,null,null,null,null,null,null,null,null,null,null,null,null,null,null,null,null,null,null,null,null,null,null,null,null,null,null,null,0,0,0,"",""]
[null,null,null,null,null,null,null,null,null,null,null,null,null,null,null,null,null,null,null,null,null,null,null,null,null,null,null,null,null,null,null,null,null,null,null,null,null,null,null,null,null,null,null,null,null,0,0,0,"",""]
[null,null,null,null,null,null,null,null,null,null,null,null,null,null,null,null,null,null,null,null,null,null,null,null,null,null,null,null,null,null,null,null,null,null,null,null,null,null,null,null,null,null,null,null,null,0,0,0,"",""]
[null,null,null,null,null,null,null,null,null,null,null,null,null,null,null,null,null,null,null,null,null,null,null,null,null,null,null,null,null,null,null,null,null,null,null,null,null,null,null,null,null,null,null,null,null,0,0,0,"",""]
[null,null,null,null,null,null,null,null,null,null,null,null,null,null,null,null,null,null,null,null,null,null,null,null,null,null,null,null,null,null,null,null,null,null,null,null,null,null,null,null,null,null,null,null,null,0,{"$f":"SUM(D483+F483+H483+L483+R483+T483+V483+X483+AT483)","v":0},{"$f":"SUM(AU483+AP483+AQ483)-AR483","v":0},"",""]
[null,null,null,null,null,null,null,null,null,null,null,null,null,null,null,null,null,null,null,null,null,null,null,null,null,null,null,null,null,null,null,null,null,null,null,null,null,null,null,null,null,null,null,null,null,{"$f":"SUM(Z484+AB484+AD484+AF484+AH484+AJ484+AL484+AN484)","v":0},0,0,"",""]
[null,null,null,null,null,null,null,null,null,null,null,null,null,null,null,null,null,null,null,null,null,null,null,null,null,null,null,null,null,null,null,null,null,null,null,null,null,null,null,null,null,null,null,null,null,0,0,0,"",""]
[null,null,null,null,null,null,null,null,null,null,null,null,null,null,null,null,null,null,null,null,null,null,null,null,null,null,null,null,null,null,null,null,null,null,null,null,null,null,null,null,null,null,null,null,null,0,0,0,"",""]
[null,null,null,null,null,null,null,null,null,null,null,null,null,null,null,null,null,null,null,null,null,null,null,null,null,null,null,null,null,null,null,null,null,null,null,null,null,null,null,null,null,null,null,null,null,0,0,0,"",""]
[null,null,null,null,null,null,null,null,null,null,null,null,null,null,null,null,null,null,null,null,null,null,null,null,null,null,null,null,null,null,null,null,null,null,null,null,null,null,null,null,null,null,null,null,null,0,0,0,"",""]
[null,null,null,null,null,null,null,null,null,null,null,null,null,null,null,null,null,null,null,null,null,null,null,null,null,null,null,null,null,null,null,null,null,null,null,null,null,null,null,null,null,null,null,null,null,0,0,0,"",""]
[null,null,null,null,null,null,null,null,null,null,null,null,null,null,null,null,null,null,null,null,null,null,null,null,null,null,null,null,null,null,null,null,null,null,null,null,null,null,null,null,null,null,null,null,null,0,0,0,"",""]
[null,null,null,null,null,null,null,null,null,null,null,null,null,null,null,null,null,null,null,null,null,null,null,null,null,null,null,null,null,null,null,null,null,null,null,null,null,null,null,null,null,null,null,null,null,0,0,0,"",""]
[null,null,null,null,null,null,null,null,null,null,null,null,null,null,null,null,null,null,null,null,null,null,null,null,null,null,null,null,null,null,null,null,null,null,null,null,null,null,null,null,null,null,null,null,null,0,0,0,"",""]
[null,null,null,null,null,null,null,null,null,null,null,null,null,null,null,null,null,null,null,null,null,null,null,null,null,null,null,null,null,null,null,null,null,null,null,null,null,null,null,null,null,null,null,null,null,0,0,0,"",""]
[null,null,null,null,null,null,null,null,null,null,null,null,null,null,null,null,null,null,null,null,null,null,null,null,null,null,null,null,null,null,null,null,null,null,null,null,null,null,null,null,null,null,null,null,null,0,0,0,"",""]
[null,null,null,null,null,null,null,null,null,null,null,null,null,null,null,null,null,null,null,null,null,null,null,null,null,null,null,null,null,null,null,null,null,null,null,null,null,null,null,null,null,null,null,null,null,0,0,0,"",""]
[null,null,null,null,null,null,null,null,null,null,null,null,null,null,null,null,null,null,null,null,null,null,null,null,null,null,null,null,null,null,null,null,null,null,null,null,null,null,null,null,null,null,null,null,null,0,0,0,"",""]
[null,null,null,null,null,null,null,null,null,null,null,null,null,null,null,null,null,null,null,null,null,null,null,null,null,null,null,null,null,null,null,null,null,null,null,null,null,null,null,null,null,null,null,null,null,0,0,0,"",""]
[null,null,null,null,null,null,null,null,null,null,null,null,null,null,null,null,null,null,null,null,null,null,null,null,null,null,null,null,null,null,null,null,null,null,null,null,null,null,null,null,null,null,null,null,null,0,0,0,"",""]
[null,null,null,null,null,null,null,null,null,null,null,null,null,null,null,null,null,null,null,null,null,null,null,null,null,null,null,null,null,null,null,null,null,null,null,null,null,null,null,null,null,null,null,null,null,0,0,0,"",""]
[null,null,null,null,null,null,null,null,null,null,null,null,null,null,null,null,null,null,null,null,null,null,null,null,null,null,null,null,null,null,null,null,null,null,null,null,null,null,null,null,null,null,null,null,null,0,0,0,"",""]
[null,null,null,null,null,null,null,null,null,null,null,null,null,null,null,null,null,null,null,null,null,null,null,null,null,null,null,null,null,null,null,null,null,null,null,null,null,null,null,null,null,null,null,null,null,0,0,0,"",""]
[null,null,null,null,null,null,null,null,null,null,null,null,null,null,null,null,null,null,null,null,null,null,null,null,null,null,null,null,null,null,null,null,null,null,null,null,null,null,null,null,null,null,null,null,null,0,0,0,"",""]
[null,null,null,null,null,null,null,null,null,null,null,null,null,null,null,null,null,null,null,null,null,null,null,null,null,null,null,null,null,null,null,null,null,null,null,null,null,null,null,null,null,null,null,null,null,0,0,0,"",""]
[null,null,null,null,null,null,null,null,null,null,null,null,null,null,null,null,null,null,null,null,null,null,null,null,null,null,null,null,null,null,null,null,null,null,null,null,null,null,null,null,null,null,null,null,null,0,0,0,"",""]
[null,null,null,null,null,null,null,null,null,null,null,null,null,null,null,null,null,null,null,null,null,null,null,null,null,null,null,null,null,null,null,null,null,null,null,null,null,null,null,null,null,null,null,null,null,0,0,0,"",""]
[null,null,null,null,null,null,null,null,null,null,null,null,null,null,null,null,null,null,null,null,null,null,null,null,null,null,null,null,null,null,null,null,null,null,null,null,null,null,null,null,null,null,null,null,null,0,0,0,"",""]
[null,null,null,null,null,null,null,null,null,null,null,null,null,null,null,null,null,null,null,null,null,null,null,null,null,null,null,null,null,null,null,null,null,null,null,null,null,null,null,null,null,null,null,null,null,0,0,0,"",""]
[null,null,null,null,null,null,null,null,null,null,null,null,null,null,null,null,null,null,null,null,null,null,null,null,null,null,null,null,null,null,null,null,null,null,null,null,null,null,null,null,null,null,null,null,null,0,0,0,"",""]
[null,null,null,null,null,null,null,null,null,null,null,null,null,null,null,null,null,null,null,null,null,null,null,null,null,null,null,null,null,null,null,null,null,null,null,null,null,null,null,null,null,null,null,null,null,0,0,0,"",""]
[null,null,null,null,null,null,null,null,null,null,null,null,null,null,null,null,null,null,null,null,null,null,null,null,null,null,null,null,null,null,null,null,null,null,null,null,null,null,null,null,null,null,null,null,null,0,0,0,{"$f":"IF($AS510=\"\",\"\",IF(AW510<>\"\",AW510,TODAY()))","v":""},""]
[null,null,null,null,null,null,null,null,null,null,null,null,null,null,null,null,null,null,null,null,null,null,null,null,null,null,null,null,null,null,null,null,null,null,null,null,null,null,null,null,null,null,null,null,null,0,0,0,"",{"$f":"IF($AS511=\"\",\"\",IF(AX511<>\"\",AX511,NOW()))","v":""}]
[null,null,null,null,null,null,null,null,null,null,null,null,null,null,null,null,null,null,null,null,null,null,null,null,null,null,null,null,null,null,null,null,null,null,null,null,null,null,null,null,null,null,null,null,null,0,0,0,"",""]
[null,null,null,null,null,null,null,null,null,null,null,null,null,null,null,null,null,null,null,null,null,null,null,null,null,null,null,null,null,null,null,null,null,null,null,null,null,null,null,null,null,null,null,null,null,0,0,0,"",""]
[null,null,null,null,null,null,null,null,null,null,null,null,null,null,null,null,null,null,null,null,null,null,null,null,null,null,null,null,null,null,null,null,null,null,null,null,null,null,null,null,null,null,null,null,null,0,0,0,"",""]
[null,null,null,null,null,null,null,null,null,null,null,null,null,null,null,null,null,null,null,null,null,null,null,null,null,null,null,null,null,null,null,null,null,null,null,null,null,null,null,null,null,null,null,null,null,0,0,0,"",""]
[null,null,null,null,null,null,null,null,null,null,null,null,null,null,null,null,null,null,null,null,null,null,null,null,null,null,null,null,null,null,null,null,null,null,null,null,null,null,null,null,null,null,null,null,null,0,0,0,"",""]
[null,null,null,null,null,null,null,null,null,null,null,null,null,null,null,null,null,null,null,null,null,null,null,null,null,null,null,null,null,null,null,null,null,null,null,null,null,null,null,null,null,null,null,null,null,0,0,0,"",""]
[null,null,null,null,null,null,null,null,null,null,null,null,null,null,null,null,null,null,null,null,null,null,null,null,null,null,null,null,null,null,null,null,null,null,null,null,null,null,null,null,null,null,null,null,null,0,0,0,"",""]
[null,null,null,null,null,null,null,null,null,null,null,null,null,null,null,null,null,null,null,null,null,null,null,null,null,null,null,null,null,null,null,null,null,null,null,null,null,null,null,null,null,null,null,null,null,0,0,0,"",""]
[null,null,null,null,null,null,null,null,null,null,null,null,null,null,null,null,null,null,null,null,null,null,null,null,null,null,null,null,null,null,null,null,null,null,null,null,null,null,null,null,null,null,null,null,null,0,0,0,"",""]
[null,null,null,null,null,null,null,null,null,null,null,null,null,null,null,null,null,null,null,null,null,null,null,null,null,null,null,null,null,null,null,null,null,null,null,null,null,null,null,null,null,null,null,null,null,0,0,0,"",""]
[null,null,null,null,null,null,null,null,null,null,null,null,null,null,null,null,null,null,null,null,null,null,null,null,null,null,null,null,null,null,null,null,null,null,null,null,null,null,null,null,null,null,null,null,null,0,0,0,"",""]
[null,null,null,null,null,null,null,null,null,null,null,null,null,null,null,null,null,null,null,null,null,null,null,null,null,null,null,null,null,null,null,null,null,null,null,null,null,null,null,null,null,null,null,null,null,0,0,0,"",""]
[null,null,null,null,null,null,null,null,null,null,null,null,null,null,null,null,null,null,null,null,null,null,null,null,null,null,null,null,null,null,null,null,null,null,null,null,null,null,null,null,null,null,null,null,null,0,0,0,"",""]
[null,null,null,null,null,null,null,null,null,null,null,null,null,null,null,null,null,null,null,null,null,null,null,null,null,null,null,null,null,null,null,null,null,null,null,null,null,null,null,null,null,null,null,null,null,0,0,0,"",""]
[null,null,null,null,null,null,null,null,null,null,null,null,null,null,null,null,null,null,null,null,null,null,null,null,null,null,null,null,null,null,null,null,null,null,null,null,null,null,null,null,null,null,null,null,null,0,0,0,"",""]
[null,null,null,null,null,null,null,null,null,null,null,null,null,null,null,null,null,null,null,null,null,null,null,null,null,null,null,null,null,null,null,null,null,null,null,null,null,null,null,null,null,null,null,null,null,0,0,0,"",""]
[null,null,null,null,null,null,null,null,null,null,null,null,null,null,null,null,null,null,null,null,null,null,null,null,null,null,null,null,null,null,null,null,null,null,null,null,null,null,null,null,null,null,null,null,null,0,0,0,"",""]
[null,null,null,null,null,null,null,null,null,null,null,null,null,null,null,null,null,null,null,null,null,null,null,null,null,null,null,null,null,null,null,null,null,null,null,null,null,null,null,null,null,null,null,null,null,0,0,0,"",""]
[null,null,null,null,null,null,null,null,null,null,null,null,null,null,null,null,null,null,null,null,null,null,null,null,null,null,null,null,null,null,null,null,null,null,null,null,null,null,null,null,null,null,null,null,null,0,0,0,"",""]
[null,null,null,null,null,null,null,null,null,null,null,null,null,null,null,null,null,null,null,null,null,null,null,null,null,null,null,null,null,null,null,null,null,null,null,null,null,null,null,null,null,null,null,null,null,0,0,0,"",""]
[null,null,null,null,null,null,null,null,null,null,null,null,null,null,null,null,null,null,null,null,null,null,null,null,null,null,null,null,null,null,null,null,null,null,null,null,null,null,null,null,null,null,null,null,null,0,0,0,"",""]
[null,null,null,null,null,null,null,null,null,null,null,null,null,null,null,null,null,null,null,null,null,null,null,null,null,null,null,null,null,null,null,null,null,null,null,null,null,null,null,null,null,null,null,null,null,0,0,0,"",""]
[null,null,null,null,null,null,null,null,null,null,null,null,null,null,null,null,null,null,null,null,null,null,null,null,null,null,null,null,null,null,null,null,null,null,null,null,null,null,null,null,null,null,null,null,null,0,0,0,"",""]
[null,null,null,null,null,null,null,null,null,null,null,null,null,null,null,null,null,null,null,null,null,null,null,null,null,null,null,null,null,null,null,null,null,null,null,null,null,null,null,null,null,null,null,null,null,0,0,0,"",""]
[null,null,null,null,null,null,null,null,null,null,null,null,null,null,null,null,null,null,null,null,null,null,null,null,null,null,null,null,null,null,null,null,null,null,null,null,null,null,null,null,null,null,null,null,null,0,0,0,"",""]
[null,null,null,null,null,null,null,null,null,null,null,null,null,null,null,null,null,null,null,null,null,null,null,null,null,null,null,null,null,null,null,null,null,null,null,null,null,null,null,null,null,null,null,null,null,0,0,0,"",""]
[null,null,null,null,null,null,null,null,null,null,null,null,null,null,null,null,null,null,null,null,null,null,null,null,null,null,null,null,null,null,null,null,null,null,null,null,null,null,null,null,null,null,null,null,null,0,0,0,"",""]
[null,null,null,null,null,null,null,null,null,null,null,null,null,null,null,null,null,null,null,null,null,null,null,null,null,null,null,null,null,null,null,null,null,null,null,null,null,null,null,null,null,null,null,null,null,0,0,0,"",""]
[null,null,null,null,null,null,null,null,null,null,null,null,null,null,null,null,null,null,null,null,null,null,null,null,null,null,null,null,null,null,null,null,null,null,null,null,null,null,null,null,null,null,null,null,null,0,0,0,"",""]
[null,null,null,null,null,null,null,null,null,null,null,null,null,null,null,null,null,null,null,null,null,null,null,null,null,null,null,null,null,null,null,null,null,null,null,null,null,null,null,null,null,null,null,null,null,0,0,0,"",""]
[null,null,null,null,null,null,null,null,null,null,null,null,null,null,null,null,null,null,null,null,null,null,null,null,null,null,null,null,null,null,null,null,null,null,null,null,null,null,null,null,null,null,null,null,null,0,0,0,"",""]
[null,null,null,null,null,null,null,null,null,null,null,null,null,null,null,null,null,null,null,null,null,null,null,null,null,null,null,null,null,null,null,null,null,null,null,null,null,null,null,null,null,null,null,null,null,0,0,0,"",""]
[null,null,null,null,null,null,null,null,null,null,null,null,null,null,null,null,null,null,null,null,null,null,null,null,null,null,null,null,null,null,null,null,null,null,null,null,null,null,null,null,null,null,null,null,null,0,0,0,"",""]
[null,null,null,null,null,null,null,null,null,null,null,null,null,null,null,null,null,null,null,null,null,null,null,null,null,null,null,null,null,null,null,null,null,null,null,null,null,null,null,null,null,null,null,null,null,0,0,0,"",""]
[null,null,null,null,null,null,null,null,null,null,null,null,null,null,null,null,null,null,null,null,null,null,null,null,null,null,null,null,null,null,null,null,null,null,null,null,null,null,null,null,null,null,null,null,null,0,0,0,"",""]
[null,null,null,null,null,null,null,null,null,null,null,null,null,null,null,null,null,null,null,null,null,null,null,null,null,null,null,null,null,null,null,null,null,null,null,null,null,null,null,null,null,null,null,null,null,0,{"$f":"SUM(D547+F547+H547+L547+R547+T547+V547+X547+AT547)","v":0},{"$f":"SUM(AU547+AP547+AQ547)-AR547","v":0},"",""]
[null,null,null,null,null,null,null,null,null,null,null,null,null,null,null,null,null,null,null,null,null,null,null,null,null,null,null,null,null,null,null,null,null,null,null,null,null,null,null,null,null,null,null,null,null,{"$f":"SUM(Z548+AB548+AD548+AF548+AH548+AJ548+AL548+AN548)","v":0},0,0,"",""]
[null,null,null,null,null,null,null,null,null,null,null,null,null,null,null,null,null,null,null,null,null,null,null,null,null,null,null,null,null,null,null,null,null,null,null,null,null,null,null,null,null,null,null,null,null,0,0,0,"",""]
[null,null,null,null,null,null,null,null,null,null,null,null,null,null,null,null,null,null,null,null,null,null,null,null,null,null,null,null,null,null,null,null,null,null,null,null,null,null,null,null,null,null,null,null,null,0,0,0,"",""]
[null,null,null,null,null,null,null,null,null,null,null,null,null,null,null,null,null,null,null,null,null,null,null,null,null,null,null,null,null,null,null,null,null,null,null,null,null,null,null,null,null,null,null,null,null,0,0,0,"",""]
[null,null,null,null,null,null,null,null,null,null,null,null,null,null,null,null,null,null,null,null,null,null,null,null,null,null,null,null,null,null,null,null,null,null,null,null,null,null,null,null,null,null,null,null,null,0,0,0,"",""]
[null,null,null,null,null,null,null,null,null,null,null,null,null,null,null,null,null,null,null,null,null,null,null,null,null,null,null,null,null,null,null,null,null,null,null,null,null,null,null,null,null,null,null,null,null,0,0,0,"",""]
[null,null,null,null,null,null,null,null,null,null,null,null,null,null,null,null,null,null,null,null,null,null,null,null,null,null,null,null,null,null,null,null,null,null,null,null,null,null,null,null,null,null,null,null,null,0,0,0,"",""]
[null,null,null,null,null,null,null,null,null,null,null,null,null,null,null,null,null,null,null,null,null,null,null,null,null,null,null,null,null,null,null,null,null,null,null,null,null,null,null,null,null,null,null,null,null,0,0,0,"",""]
[null,null,null,null,null,null,null,null,null,null,null,null,null,null,null,null,null,null,null,null,null,null,null,null,null,null,null,null,null,null,null,null,null,null,null,null,null,null,null,null,null,null,null,null,null,0,0,0,"",""]
[null,null,null,null,null,null,null,null,null,null,null,null,null,null,null,null,null,null,null,null,null,null,null,null,null,null,null,null,null,null,null,null,null,null,null,null,null,null,null,null,null,null,null,null,null,0,0,0,"",""]
[null,null,null,null,null,null,null,null,null,null,null,null,null,null,null,null,null,null,null,null,null,null,null,null,null,null,null,null,null,null,null,null,null,null,null,null,null,null,null,null,null,null,null,null,null,0,0,0,"",""]
[null,null,null,null,null,null,null,null,null,null,null,null,null,null,null,null,null,null,null,null,null,null,null,null,null,null,null,null,null,null,null,null,null,null,null,null,null,null,null,null,null,null,null,null,null,0,0,0,"",""]
[null,null,null,null,null,null,null,null,null,null,null,null,null,null,null,null,null,null,null,null,null,null,null,null,null,null,null,null,null,null,null,null,null,null,null,null,null,null,null,null,null,null,null,null,null,0,0,0,"",""]
[null,null,null,null,null,null,null,null,null,null,null,null,null,null,null,null,null,null,null,null,null,null,null,null,null,null,null,null,null,null,null,null,null,null,null,null,null,null,null,null,null,null,null,null,null,0,0,0,"",""]
[null,null,null,null,null,null,null,null,null,null,null,null,null,null,null,null,null,null,null,null,null,null,null,null,null,null,null,null,null,null,null,null,null,null,null,null,null,null,null,null,null,null,null,null,null,0,0,0,"",""]
[null,null,null,null,null,null,null,null,null,null,null,null,null,null,null,null,null,null,null,null,null,null,null,null,null,null,null,null,null,null,null,null,null,null,null,null,null,null,null,null,null,null,null,null,null,0,0,0,"",""]
[null,null,null,null,null,null,null,null,null,null,null,null,null,null,null,null,null,null,null,null,null,null,null,null,null,null,null,null,null,null,null,null,null,null,null,null,null,null,null,null,null,null,null,null,null,0,0,0,"",""]
[null,null,null,null,null,null,null,null,null,null,null,null,null,null,null,null,null,null,null,null,null,null,null,null,null,null,null,null,null,null,null,null,null,null,null,null,null,null,null,null,null,null,null,null,null,0,0,0,"",""]
[null,null,null,null,null,null,null,null,null,null,null,null,null,null,null,null,null,null,null,null,null,null,null,null,null,null,null,null,null,null,null,null,null,null,null,null,null,null,null,null,null,null,null,null,null,0,0,0,"",""]
[null,null,null,null,null,null,null,null,null,null,null,null,null,null,null,null,null,null,null,null,null,null,null,null,null,null,null,null,null,null,null,null,null,null,null,null,null,null,null,null,null,null,null,null,null,0,0,0,"",""]
[null,null,null,null,null,null,null,null,null,null,null,null,null,null,null,null,null,null,null,null,null,null,null,null,null,null,null,null,null,null,null,null,null,null,null,null,null,null,null,null,null,null,null,null,null,0,0,0,"",""]
[null,null,null,null,null,null,null,null,null,null,null,null,null,null,null,null,null,null,null,null,null,null,null,null,null,null,null,null,null,null,null,null,null,null,null,null,null,null,null,null,null,null,null,null,null,0,0,0,"",""]
[null,null,null,null,null,null,null,null,null,null,null,null,null,null,null,null,null,null,null,null,null,null,null,null,null,null,null,null,null,null,null,null,null,null,null,null,null,null,null,null,null,null,null,null,null,0,0,0,"",""]
[null,null,null,null,null,null,null,null,null,null,null,null,null,null,null,null,null,null,null,null,null,null,null,null,null,null,null,null,null,null,null,null,null,null,null,null,null,null,null,null,null,null,null,null,null,0,0,0,"",""]
[null,null,null,null,null,null,null,null,null,null,null,null,null,null,null,null,null,null,null,null,null,null,null,null,null,null,null,null,null,null,null,null,null,null,null,null,null,null,null,null,null,null,null,null,null,0,0,0,"",""]
[null,null,null,null,null,null,null,null,null,null,null,null,null,null,null,null,null,null,null,null,null,null,null,null,null,null,null,null,null,null,null,null,null,null,null,null,null,null,null,null,null,null,null,null,null,0,0,0,"",""]
[null,null,null,null,null,null,null,null,null,null,null,null,null,null,null,null,null,null,null,null,null,null,null,null,null,null,null,null,null,null,null,null,null,null,null,null,null,null,null,null,null,null,null,null,null,0,0,0,{"$f":"IF($AS574=\"\",\"\",IF(AW574<>\"\",AW574,TODAY()))","v":""},""]
[null,null,null,null,null,null,null,null,null,null,null,null,null,null,null,null,null,null,null,null,null,null,null,null,null,null,null,null,null,null,null,null,null,null,null,null,null,null,null,null,null,null,null,null,null,0,0,0,"",{"$f":"IF($AS575=\"\",\"\",IF(AX575<>\"\",AX575,NOW()))","v":""}]
[null,null,null,null,null,null,null,null,null,null,null,null,null,null,null,null,null,null,null,null,null,null,null,null,null,null,null,null,null,null,null,null,null,null,null,null,null,null,null,null,null,null,null,null,null,0,0,0,"",""]
[null,null,null,null,null,null,null,null,null,null,null,null,null,null,null,null,null,null,null,null,null,null,null,null,null,null,null,null,null,null,null,null,null,null,null,null,null,null,null,null,null,null,null,null,null,0,0,0,"",""]
[null,null,null,null,null,null,null,null,null,null,null,null,null,null,null,null,null,null,null,null,null,null,null,null,null,null,null,null,null,null,null,null,null,null,null,null,null,null,null,null,null,null,null,null,null,0,0,0,"",""]
[null,null,null,null,null,null,null,null,null,null,null,null,null,null,null,null,null,null,null,null,null,null,null,null,null,null,null,null,null,null,null,null,null,null,null,null,null,null,null,null,null,null,null,null,null,0,0,0,"",""]
[null,null,null,null,null,null,null,null,null,null,null,null,null,null,null,null,null,null,null,null,null,null,null,null,null,null,null,null,null,null,null,null,null,null,null,null,null,null,null,null,null,null,null,null,null,0,0,0,"",""]
[null,null,null,null,null,null,null,null,null,null,null,null,null,null,null,null,null,null,null,null,null,null,null,null,null,null,null,null,null,null,null,null,null,null,null,null,null,null,null,null,null,null,null,null,null,0,0,0,"",""]
[null,null,null,null,null,null,null,null,null,null,null,null,null,null,null,null,null,null,null,null,null,null,null,null,null,null,null,null,null,null,null,null,null,null,null,null,null,null,null,null,null,null,null,null,null,0,0,0,"",""]
[null,null,null,null,null,null,null,null,null,null,null,null,null,null,null,null,null,null,null,null,null,null,null,null,null,null,null,null,null,null,null,null,null,null,null,null,null,null,null,null,null,null,null,null,null,0,0,0,"",""]
[null,null,null,null,null,null,null,null,null,null,null,null,null,null,null,null,null,null,null,null,null,null,null,null,null,null,null,null,null,null,null,null,null,null,null,null,null,null,null,null,null,null,null,null,null,0,0,0,"",""]
[null,null,null,null,null,null,null,null,null,null,null,null,null,null,null,null,null,null,null,null,null,null,null,null,null,null,null,null,null,null,null,null,null,null,null,null,null,null,null,null,null,null,null,null,null,0,0,0,"",""]
[null,null,null,null,null,null,null,null,null,null,null,null,null,null,null,null,null,null,null,null,null,null,null,null,null,null,null,null,null,null,null,null,null,null,null,null,null,null,null,null,null,null,null,null,null,0,0,0,"",""]
[null,null,null,null,null,null,null,null,null,null,null,null,null,null,null,null,null,null,null,null,null,null,null,null,null,null,null,null,null,null,null,null,null,null,null,null,null,null,null,null,null,null,null,null,null,0,0,0,"",""]
[null,null,null,null,null,null,null,null,null,null,null,null,null,null,null,null,null,null,null,null,null,null,null,null,null,null,null,null,null,null,null,null,null,null,null,null,null,null,null,null,null,null,null,null,null,0,0,0,"",""]
[null,null,null,null,null,null,null,null,null,null,null,null,null,null,null,null,null,null,null,null,null,null,null,null,null,null,null,null,null,null,null,null,null,null,null,null,null,null,null,null,null,null,null,null,null,0,0,0,"",""]
[null,null,null,null,null,null,null,null,null,null,null,null,null,null,null,null,null,null,null,null,null,null,null,null,null,null,null,null,null,null,null,null,null,null,null,null,null,null,null,null,null,null,null,null,null,0,0,0,"",""]
[null,null,null,null,null,null,null,null,null,null,null,null,null,null,null,null,null,null,null,null,null,null,null,null,null,null,null,null,null,null,null,null,null,null,null,null,null,null,null,null,null,null,null,null,null,0,0,0,"",""]
[null,null,null,null,null,null,null,null,null,null,null,null,null,null,null,null,null,null,null,null,null,null,null,null,null,null,null,null,null,null,null,null,null,null,null,null,null,null,null,null,null,null,null,null,null,0,0,0,"",""]
[null,null,null,null,null,null,null,null,null,null,null,null,null,null,null,null,null,null,null,null,null,null,null,null,null,null,null,null,null,null,null,null,null,null,null,null,null,null,null,null,null,null,null,null,null,0,0,0,"",""]
[null,null,null,null,null,null,null,null,null,null,null,null,null,null,null,null,null,null,null,null,null,null,null,null,null,null,null,null,null,null,null,null,null,null,null,null,null,null,null,null,null,null,null,null,null,0,0,0,"",""]
[null,null,null,null,null,null,null,null,null,null,null,null,null,null,null,null,null,null,null,null,null,null,null,null,null,null,null,null,null,null,null,null,null,null,null,null,null,null,null,null,null,null,null,null,null,0,0,0,"",""]
[null,null,null,null,null,null,null,null,null,null,null,null,null,null,null,null,null,null,null,null,null,null,null,null,null,null,null,null,null,null,null,null,null,null,null,null,null,null,null,null,null,null,null,null,null,0,0,0,"",""]
[null,null,null,null,null,null,null,null,null,null,null,null,null,null,null,null,null,null,null,null,null,null,null,null,null,null,null,null,null,null,null,null,null,null,null,null,null,null,null,null,null,null,null,null,null,0,0,0,"",""]
[null,null,null,null,null,null,null,null,null,null,null,null,null,null,null,null,null,null,null,null,null,null,null,null,null,null,null,null,null,null,null,null,null,null,null,null,null,null,null,null,null,null,null,null,null,0,0,0,"",""]
[null,null,null,null,null,null,null,null,null,null,null,null,null,null,null,null,null,null,null,null,null,null,null,null,null,null,null,null,null,null,null,null,null,null,null,null,null,null,null,null,null,null,null,null,null,0,0,0,"",""]
[null,null,null,null,null,null,null,null,null,null,null,null,null,null,null,null,null,null,null,null,null,null,null,null,null,null,null,null,null,null,null,null,null,null,null,null,null,null,null,null,null,null,null,null,null,0,0,0,"",""]
[null,null,null,null,null,null,null,null,null,null,null,null,null,null,null,null,null,null,null,null,null,null,null,null,null,null,null,null,null,null,null,null,null,null,null,null,null,null,null,null,null,null,null,null,null,0,0,0,"",""]
[null,null,null,null,null,null,null,null,null,null,null,null,null,null,null,null,null,null,null,null,null,null,null,null,null,null,null,null,null,null,null,null,null,null,null,null,null,null,null,null,null,null,null,null,null,0,0,0,"",""]
[null,null,null,null,null,null,null,null,null,null,null,null,null,null,null,null,null,null,null,null,null,null,null,null,null,null,null,null,null,null,null,null,null,null,null,null,null,null,null,null,null,null,null,null,null,0,0,0,"",""]
[null,null,null,null,null,null,null,null,null,null,null,null,null,null,null,null,null,null,null,null,null,null,null,null,null,null,null,null,null,null,null,null,null,null,null,null,null,null,null,null,null,null,null,null,null,0,0,0,"",""]
[null,null,null,null,null,null,null,null,null,null,null,null,null,null,null,null,null,null,null,null,null,null,null,null,null,null,null,null,null,null,null,null,null,null,null,null,null,null,null,null,null,null,null,null,null,0,0,0,"",""]
[null,null,null,null,null,null,null,null,null,null,null,null,null,null,null,null,null,null,null,null,null,null,null,null,null,null,null,null,null,null,null,null,null,null,null,null,null,null,null,null,null,null,null,null,null,0,0,0,"",""]
[null,null,null,null,null,null,null,null,null,null,null,null,null,null,null,null,null,null,null,null,null,null,null,null,null,null,null,null,null,null,null,null,null,null,null,null,null,null,null,null,null,null,null,null,null,0,0,0,"",""]
[null,null,null,null,null,null,null,null,null,null,null,null,null,null,null,null,null,null,null,null,null,null,null,null,null,null,null,null,null,null,null,null,null,null,null,null,null,null,null,null,null,null,null,null,null,0,0,0,"",""]
[null,null,null,null,null,null,null,null,null,null,null,null,null,null,null,null,null,null,null,null,null,null,null,null,null,null,null,null,null,null,null,null,null,null,null,null,null,null,null,null,null,null,null,null,null,0,0,0,"",""]
[null,null,null,null,null,null,null,null,null,null,null,null,null,null,null,null,null,null,null,null,null,null,null,null,null,null,null,null,null,null,null,null,null,null,null,null,null,null,null,null,null,null,null,null,null,0,0,0,"",""]
[null,null,null,null,null,null,null,null,null,null,null,null,null,null,null,null,null,null,null,null,null,null,null,null,null,null,null,null,null,null,null,null,null,null,null,null,null,null,null,null,null,null,null,null,null,0,{"$f":"SUM(D611+F611+H611+L611+R611+T611+V611+X611+AT611)","v":0},{"$f":"SUM(AU611+AP611+AQ611)-AR611","v":0},"",""]
[null,null,null,null,null,null,null,null,null,null,null,null,null,null,null,null,null,null,null,null,null,null,null,null,null,null,null,null,null,null,null,null,null,null,null,null,null,null,null,null,null,null,null,null,null,{"$f":"SUM(Z612+AB612+AD612+AF612+AH612+AJ612+AL612+AN612)","v":0},0,0,"",""]
[null,null,null,null,null,null,null,null,null,null,null,null,null,null,null,null,null,null,null,null,null,null,null,null,null,null,null,null,null,null,null,null,null,null,null,null,null,null,null,null,null,null,null,null,null,0,0,0,"",""]
[null,null,null,null,null,null,null,null,null,null,null,null,null,null,null,null,null,null,null,null,null,null,null,null,null,null,null,null,null,null,null,null,null,null,null,null,null,null,null,null,null,null,null,null,null,0,0,0,"",""]
[null,null,null,null,null,null,null,null,null,null,null,null,null,null,null,null,null,null,null,null,null,null,null,null,null,null,null,null,null,null,null,null,null,null,null,null,null,null,null,null,null,null,null,null,null,0,0,0,"",""]
[null,null,null,null,null,null,null,null,null,null,null,null,null,null,null,null,null,null,null,null,null,null,null,null,null,null,null,null,null,null,null,null,null,null,null,null,null,null,null,null,null,null,null,null,null,0,0,0,"",""]
[null,null,null,null,null,null,null,null,null,null,null,null,null,null,null,null,null,null,null,null,null,null,null,null,null,null,null,null,null,null,null,null,null,null,null,null,null,null,null,null,null,null,null,null,null,0,0,0,"",""]
[null,null,null,null,null,null,null,null,null,null,null,null,null,null,null,null,null,null,null,null,null,null,null,null,null,null,null,null,null,null,null,null,null,null,null,null,null,null,null,null,null,null,null,null,null,0,0,0,"",""]
[null,null,null,null,null,null,null,null,null,null,null,null,null,null,null,null,null,null,null,null,null,null,null,null,null,null,null,null,null,null,null,null,null,null,null,null,null,null,null,null,null,null,null,null,null,0,0,0,"",""]
[null,null,null,null,null,null,null,null,null,null,null,null,null,null,null,null,null,null,null,null,null,null,null,null,null,null,null,null,null,null,null,null,null,null,null,null,null,null,null,null,null,null,null,null,null,0,0,0,"",""]
[null,null,null,null,null,null,null,null,null,null,null,null,null,null,null,null,null,null,null,null,null,null,null,null,null,null,null,null,null,null,null,null,null,null,null,null,null,null,null,null,null,null,null,null,null,0,0,0,"",""]
[null,null,null,null,null,null,null,null,null,null,null,null,null,null,null,null,null,null,null,null,null,null,null,null,null,null,null,null,null,null,null,null,null,null,null,null,null,null,null,null,null,null,null,null,null,0,0,0,"",""]
[null,null,null,null,null,null,null,null,null,null,null,null,null,null,null,null,null,null,null,null,null,null,null,null,null,null,null,null,null,null,null,null,null,null,null,null,null,null,null,null,null,null,null,null,null,0,0,0,"",""]
[null,null,null,null,null,null,null,null,null,null,null,null,null,null,null,null,null,null,null,null,null,null,null,null,null,null,null,null,null,null,null,null,null,null,null,null,null,null,null,null,null,null,null,null,null,0,0,0,"",""]
[null,null,null,null,null,null,null,null,null,null,null,null,null,null,null,null,null,null,null,null,null,null,null,null,null,null,null,null,null,null,null,null,null,null,null,null,null,null,null,null,null,null,null,null,null,0,0,0,"",""]
[null,null,null,null,null,null,null,null,null,null,null,null,null,null,null,null,null,null,null,null,null,null,null,null,null,null,null,null,null,null,null,null,null,null,null,null,null,null,null,null,null,null,null,null,null,0,0,0,"",""]
[null,null,null,null,null,null,null,null,null,null,null,null,null,null,null,null,null,null,null,null,null,null,null,null,null,null,null,null,null,null,null,null,null,null,null,null,null,null,null,null,null,null,null,null,null,0,0,0,"",""]
[null,null,null,null,null,null,null,null,null,null,null,null,null,null,null,null,null,null,null,null,null,null,null,null,null,null,null,null,null,null,null,null,null,null,null,null,null,null,null,null,null,null,null,null,null,0,0,0,"",""]
[null,null,null,null,null,null,null,null,null,null,null,null,null,null,null,null,null,null,null,null,null,null,null,null,null,null,null,null,null,null,null,null,null,null,null,null,null,null,null,null,null,null,null,null,null,0,0,0,"",""]
[null,null,null,null,null,null,null,null,null,null,null,null,null,null,null,null,null,null,null,null,null,null,null,null,null,null,null,null,null,null,null,null,null,null,null,null,null,null,null,null,null,null,null,null,null,0,0,0,"",""]
[null,null,null,null,null,null,null,null,null,null,null,null,null,null,null,null,null,null,null,null,null,null,null,null,null,null,null,null,null,null,null,null,null,null,null,null,null,null,null,null,null,null,null,null,null,0,0,0,"",""]
[null,null,null,null,null,null,null,null,null,null,null,null,null,null,null,null,null,null,null,null,null,null,null,null,null,null,null,null,null,null,null,null,null,null,null,null,null,null,null,null,null,null,null,null,null,0,0,0,"",""]
[null,null,null,null,null,null,null,null,null,null,null,null,null,null,null,null,null,null,null,null,null,null,null,null,null,null,null,null,null,null,null,null,null,null,null,null,null,null,null,null,null,null,null,null,null,0,0,0,"",""]
[null,null,null,null,null,null,null,null,null,null,null,null,null,null,null,null,null,null,null,null,null,null,null,null,null,null,null,null,null,null,null,null,null,null,null,null,null,null,null,null,null,null,null,null,null,0,0,0,"",""]
[null,null,null,null,null,null,null,null,null,null,null,null,null,null,null,null,null,null,null,null,null,null,null,null,null,null,null,null,null,null,null,null,null,null,null,null,null,null,null,null,null,null,null,null,null,0,0,0,"",""]
[null,null,null,null,null,null,null,null,null,null,null,null,null,null,null,null,null,null,null,null,null,null,null,null,null,null,null,null,null,null,null,null,null,null,null,null,null,null,null,null,null,null,null,null,null,0,0,0,"",""]
[null,null,null,null,null,null,null,null,null,null,null,null,null,null,null,null,null,null,null,null,null,null,null,null,null,null,null,null,null,null,null,null,null,null,null,null,null,null,null,null,null,null,null,null,null,0,0,0,"",""]
[null,null,null,null,null,null,null,null,null,null,null,null,null,null,null,null,null,null,null,null,null,null,null,null,null,null,null,null,null,null,null,null,null,null,null,null,null,null,null,null,null,null,null,null,null,0,0,0,{"$f":"IF($AS638=\"\",\"\",IF(AW638<>\"\",AW638,TODAY()))","v":""},""]
[null,null,null,null,null,null,null,null,null,null,null,null,null,null,null,null,null,null,null,null,null,null,null,null,null,null,null,null,null,null,null,null,null,null,null,null,null,null,null,null,null,null,null,null,null,0,0,0,"",{"$f":"IF($AS639=\"\",\"\",IF(AX639<>\"\",AX639,NOW()))","v":""}]
[null,null,null,null,null,null,null,null,null,null,null,null,null,null,null,null,null,null,null,null,null,null,null,null,null,null,null,null,null,null,null,null,null,null,null,null,null,null,null,null,null,null,null,null,null,0,0,0,"",""]
[null,null,null,null,null,null,null,null,null,null,null,null,null,null,null,null,null,null,null,null,null,null,null,null,null,null,null,null,null,null,null,null,null,null,null,null,null,null,null,null,null,null,null,null,null,0,0,0,"",""]
[null,null,null,null,null,null,null,null,null,null,null,null,null,null,null,null,null,null,null,null,null,null,null,null,null,null,null,null,null,null,null,null,null,null,null,null,null,null,null,null,null,null,null,null,null,0,0,0,"",""]
[null,null,null,null,null,null,null,null,null,null,null,null,null,null,null,null,null,null,null,null,null,null,null,null,null,null,null,null,null,null,null,null,null,null,null,null,null,null,null,null,null,null,null,null,null,0,0,0,"",""]
[null,null,null,null,null,null,null,null,null,null,null,null,null,null,null,null,null,null,null,null,null,null,null,null,null,null,null,null,null,null,null,null,null,null,null,null,null,null,null,null,null,null,null,null,null,0,0,0,"",""]
[null,null,null,null,null,null,null,null,null,null,null,null,null,null,null,null,null,null,null,null,null,null,null,null,null,null,null,null,null,null,null,null,null,null,null,null,null,null,null,null,null,null,null,null,null,0,0,0,"",""]

{"sheet":"Generique","index":2,"n_rows":117,"n_cols":27,"rows_kept":117,"cut":false,"hidden":false,"merged":[]}
["RODRIGUES"]
[]
["JANVIER"]
[null,"NOM","AC","MP","PSO","PFC","STA","ECH","ENV","NET","LIMS","PROJET","ESS","AQ","AQ BIL","AQ FORM","AQ INFO","AQ REDAC","AQ VERIF","AQ REACT","AQ LEAN","AQ MET","CAPACITE\nREELLE","CONGE","ABSENCES","CAPACITE\nTHEORIQUE","DONT HS\nindicatif"]
[null,"Semaine (04-08/01)",null,null,null,null,null,null,null,16,null,null,null,{"$f":"SUM(O5:V5)","v":15},null,null,0.5,null,null,12.5,null,2,{"$f":"SUM(C5:N5)","v":31},8,null,{"$f":"SUM(W5:Y5)-AA5","v":39}]
[null,"Semaine (11-15/01)",null,null,null,null,null,null,null,14.75,null,null,null,{"$f":"SUM(O6:V6)","v":24.25},0.25,null,6.25,null,null,14.75,1,2,{"$f":"SUM(C6:N6)","v":39},null,null,{"$f":"SUM(W6:Y6)-AA6","v":39}]
[null,"Semaine (18-22/01)",null,null,null,null,null,null,null,9.5,null,null,null,21.5,null,null,3.25,null,null,12.25,1.5,4.5,{"$f":"SUM(C7:N7)","v":31},8,null,{"$f":"SUM(W7:Y7)-AA7","v":39}]
[null,"Semaine (25-29/01)",null,null,null,null,null,null,null,7.5,null,null,null,{"$f":"SUM(O8:V8)","v":35},1.75,12.5,0.75,null,null,9.5,0.25,10.25,42.5,null,null,39,3.5]
[null,null,null,null,null,null,null,null,null,null,null,null,null,0,null,null,null,null,null,null,null,null,0,null,null,{"$f":"SUM(W9:Y9)-AA9","v":0}]
[null,"TOTAL",{"$f":"SUM(C5:C9)","v":0},{"$f":"SUM(D5:D9)","v":0},0,0,0,0,0,47.75,0,0,0,95.75,2,12.5,10.75,0,0,49,2.75,18.75,143.5,{"$f":"SUM(X5:X9)","v":16},0,156,3.5]
[]
["FEVRIER"]
[null,"NOM","AC","MP","PSO","PFC","STA","ECH","ENV","NET","LIMS","PROJET","ESS","AQ","AQ BIL","AQ FORM","AQ INFO","AQ REDAC","AQ VERIF","AQ REACT","AQ LEAN","AQ MET","CAPACITE\nREELLE","CONGE","ABSENCES","CAPACITE\nTHEORIQUE","DONT HS\nindicatif"]
[null,"Semaine (01-05/02)",null,null,null,null,null,null,null,13,null,null,null,{"$f":"SUM(O14:V14)","v":26},1,null,1,null,null,17.75,null,6.25,{"$f":"SUM(C14:N14)","v":39},null,null,{"$f":"SUM(W14:Y14)-AA14","v":39}]
[null,"Semaine (81-12/02)",null,null,null,null,null,null,null,10,null,null,null,{"$f":"SUM(O15:V15)","v":29},2.5,null,1.25,null,null,22,null,3.25,{"$f":"SUM(C15:N15)","v":39},null,null,{"$f":"SUM(W15:Y15)-AA15","v":39}]
[null,"Semaine (15-19/02)",null,null,null,null,null,null,null,10,null,null,null,{"$f":"SUM(O16:V16)","v":29},5,null,null,1.75,null,18.5,1.75,2,39,null,null,39]
[null,"Semaine (22-26/02)",null,null,null,null,null,null,null,8,null,null,null,{"$f":"SUM(O17:V17)","v":31},13.5,null,null,null,null,11,null,6.5,39,null,null,37.5,1.5]
[null,"Semaine (29/02)",null,null,null,null,null,null,null,0.5,null,null,null,7,2.5,4,null,null,null,0.5,null,null,7.5,null,null,{"$f":"SUM(W18:Y18)-AA18","v":7},0.5]
[null,"TOTAL",{"$f":"SUM(C14:C18)","v":0},{"$f":"SUM(D14:D18)","v":0},0,0,0,0,0,41.5,0,0,0,122,24.5,4,2.25,1.75,0,69.75,1.75,18,163.5,{"$f":"SUM(X14:X18)","v":0},{"$f":"SUM(Y14:Y18)","v":0},161.5,2]
[]
["MARS"]
[null,"NOM","AC","MP","PSO","PFC","STA","ECH","ENV","NET","LIMS","PROJET","ESS","AQ","AQ BIL","AQ FORM","AQ INFO","AQ REDAC","AQ VERIF","AQ REACT","AQ LEAN","AQ MET","CAPACITE\nREELLE","CONGE","ABSENCES","CAPACITE\nTHEORIQUE","DONT HS\nindicatif"]
[null,"Semaine (01-04/03)",null,null,null,null,null,null,null,2,null,null,null,{"$f":"SUM(O23:V23)","v":30},null,12,9.75,null,null,6.75,null,1.5,{"$f":"SUM(C23:N23)","v":32},null,null,{"$f":"SUM(W23:Y23)-AA23","v":31},1]
[null,"Semaine (07-11/03)",null,null,null,null,null,null,null,9.5,null,null,null,{"$f":"SUM(O24:V24)","v":29.5},null,null,5.5,null,null,null,null,24,{"$f":"SUM(C24:N24)","v":39},null,null,{"$f":"SUM(W24:Y24)-AA24","v":39}]
[null,"Semaine (14-18/03)",null,null,null,null,null,null,null,7,null,null,null,{"$f":"SUM(O25:V25)","v":33.5},null,null,0.75,null,null,27.75,1.75,3.25,40.5,null,null,39,1.5]
[null,"Semaine (21-25/03)",null,null,null,null,null,null,null,9,null,null,null,36,null,null,1,null,null,29.75,2,3.25,45,null,null,39,6]
[null,null,null,null,null,null,null,null,null,null,null,null,null,{"$f":"SUM(O27:V27)","v":0},null,null,null,null,null,null,null,null,0,null,null,{"$f":"SUM(W27:Y27)-AA27","v":0}]
[null,"TOTAL",{"$f":"SUM(C23:C27)","v":0},{"$f":"SUM(D23:D27)","v":0},{"$f":"SUM(E23:E27)","v":0},{"$f":"SUM(F23:F27)","v":0},0,0,0,27.5,0,0,0,129,0,12,17,0,0,{"$f":"SUM(T23:T27)","v":64.25},{"$f":"SUM(U23:U27)","v":3.75},32,156.5,{"$f":"SUM(X23:X27)","v":0},{"$f":"SUM(Y23:Y27)","v":0},148,8.5]
[]
["AVRIL"]
[null,"NOM","AC","MP","PSO","PFC","STA","ECH","ENV","NET","LIMS","PROJET","ESS","AQ","AQ BIL","AQ FORM","AQ INFO","AQ REDAC","AQ VERIF","AQ REACT","AQ LEAN","AQ MET","CAPACITE\nREELLE","CONGE","ABSENCES","CAPACITE\nTHEORIQUE","DONT HS\nindicatif"]
[null,"S20 (16/05-20/05)",null,null,null,null,null,null,null,1,null,null,null,{"$f":"SUM(O32:V32)","v":35},2,3,4,5,null,6,7,8,{"$f":"SUM(C32:N32)","v":36},17,18,{"$f":"SUM(W32:Y32)-AA32","v":52},19]
[null,"S55 (16/01-20/01)",null,null,null,null,null,null,null,33,null,null,null,{"$f":"SUM(O33:V33)","v":231},33,33,33,33,null,33,33,33,{"$f":"SUM(C33:N33)","v":264},33,33,{"$f":"SUM(W33:Y33)-AA33","v":297},33]
[null,null,null,null,null,null,null,null,null,null,null,null,null,{"$f":"SUM(O34:V34)","v":0},null,null,null,null,null,null,null,null,0,null,null,0]
[null,null,null,null,null,null,null,null,null,null,null,null,null,0,null,null,null,null,null,null,null,null,0,null,null,0]
[null,null,null,null,null,null,null,null,null,null,null,null,null,{"$f":"SUM(O36:V36)","v":0},null,null,null,null,null,null,null,null,0,null,null,{"$f":"SUM(W36:Y36)-AA36","v":0}]
[null,"TOTAL",{"$f":"SUM(C32:C36)","v":0},{"$f":"SUM(D32:D36)","v":0},0,0,0,0,0,34,0,0,0,266,35,36,37,38,0,39,40,41,300,{"$f":"SUM(X32:X36)","v":50},{"$f":"SUM(Y32:Y36)","v":51},349,52]
[]
["MAI"]
[null,"NOM","AC","MP","PSO","PFC","STA","ECH","ENV","NET","LIMS","PROJET","ESS","AQ","AQ BIL","AQ FORM","AQ INFO","AQ REDAC","AQ VERIF","AQ REACT","AQ LEAN","AQ MET","CAPACITE\nREELLE","CONGE","ABSENCES","CAPACITE\nTHEORIQUE","DONT HS\nindicatif"]
[null,null,null,null,null,null,null,null,null,null,null,null,null,{"$f":"SUM(O41:V41)","v":0},null,null,null,null,null,null,null,null,{"$f":"SUM(C41:N41)","v":0},null,null,{"$f":"SUM(W41:Y41)-AA41","v":0}]
[null,null,null,null,null,null,null,null,null,null,null,null,null,{"$f":"SUM(O42:V42)","v":0},null,null,null,null,null,null,null,null,{"$f":"SUM(C42:N42)","v":0},null,null,{"$f":"SUM(W42:Y42)-AA42","v":0}]
[null,null,null,null,null,null,null,null,null,null,null,null,null,{"$f":"SUM(O43:V43)","v":0},null,null,null,null,null,null,null,null,0,null,null,0]
[null,null,null,null,null,null,null,null,null,null,null,null,null,{"$f":"SUM(O44:V44)","v":0},null,null,null,null,null,null,null,null,0,null,null,0]
[null,null,null,null,null,null,null,null,null,null,null,null,null,{"$f":"SUM(O45:V45)","v":0},null,null,null,null,null,null,null,null,0,null,null,{"$f":"SUM(W45:Y45)-AA45","v":0}]
[null,"TOTAL",{"$f":"SUM(C41:C45)","v":0},{"$f":"SUM(D41:D45)","v":0},0,{"$f":"SUM(F41:F45)","v":0},{"$f":"SUM(G41:G45)","v":0},0,0,0,0,0,0,0,0,0,0,0,0,0,0,0,0,{"$f":"SUM(X41:X45)","v":0},{"$f":"SUM(Y41:Y45)","v":0},0,0]
[]
["JUIN"]
[null,"NOM","AC","MP","PSO","PFC","STA","ECH","ENV","NET","LIMS","PROJET","ESS","AQ","AQ BIL","AQ FORM","AQ INFO","AQ REDAC","AQ VERIF","AQ REACT","AQ LEAN","AQ MET","CAPACITE\nREELLE","CONGE","ABSENCES","CAPACITE\nTHEORIQUE","DONT HS\nindicatif"]
[null,null,null,null,null,null,null,null,null,null,null,null,null,{"$f":"SUM(O50:V50)","v":0},null,null,null,null,null,null,null,null,{"$f":"SUM(C50:N50)","v":0},null,null,{"$f":"SUM(W50:Y50)-AA50","v":0}]
[null,null,null,null,null,null,null,null,null,null,null,null,null,{"$f":"SUM(O51:V51)","v":0},null,null,null,null,null,null,null,null,{"$f":"SUM(C51:N51)","v":0},null,null,{"$f":"SUM(W51:Y51)-AA51","v":0}]
[null,null,null,null,null,null,null,null,null,null,null,null,null,{"$f":"SUM(O52:V52)","v":0},null,null,null,null,null,null,null,null,0,null,null,0]
[null,null,null,null,null,null,null,null,null,null,null,null,null,{"$f":"SUM(O53:V53)","v":0},null,null,null,null,null,null,null,null,0,null,null,0]
[null,null,null,null,null,null,null,null,null,null,null,null,null,{"$f":"SUM(O54:V54)","v":0},null,null,null,null,null,null,null,null,0,null,null,{"$f":"SUM(W54:Y54)-AA54","v":0}]
[null,"TOTAL",{"$f":"SUM(C50:C54)","v":0},{"$f":"SUM(D50:D54)","v":0},0,0,0,0,0,0,0,0,0,0,0,0,0,0,0,0,0,0,0,{"$f":"SUM(X50:X54)","v":0},{"$f":"SUM(Y50:Y54)","v":0},0,0]
[]
["JUILLET"]
[null,"NOM","AC","MP","PSO","PFC","STA","ECH","ENV","NET","LIMS","PROJET","ESS","AQ","AQ BIL","AQ FORM","AQ INFO","AQ REDAC","AQ VERIF","AQ REACT","AQ LEAN","AQ MET","CAPACITE\nREELLE","CONGE","ABSENCES","CAPACITE\nTHEORIQUE","DONT HS\nindicatif"]
[null,null,null,null,null,null,null,null,null,null,null,null,null,{"$f":"SUM(O59:V59)","v":0},null,null,null,null,null,null,null,null,{"$f":"SUM(C59:N59)","v":0},null,null,{"$f":"SUM(W59:Y59)-AA59","v":0}]
[null,null,null,null,null,null,null,null,null,null,null,null,null,{"$f":"SUM(O60:V60)","v":0},null,null,null,null,null,null,null,null,{"$f":"SUM(C60:N60)","v":0},null,null,{"$f":"SUM(W60:Y60)-AA60","v":0}]
[null,null,null,null,null,null,null,null,null,null,null,null,null,{"$f":"SUM(O61:V61)","v":0},null,null,null,null,null,null,null,null,0,null,null,0]
[null,null,null,null,null,null,null,null,null,null,null,null,null,{"$f":"SUM(O62:V62)","v":0},null,null,null,null,null,null,null,null,0,null,null,0]
[null,null,null,null,null,null,null,null,null,null,null,null,null,{"$f":"SUM(O63:V63)","v":0},null,null,null,null,null,null,null,null,0,null,null,{"$f":"SUM(W63:Y63)-AA63","v":0}]
[null,"TOTAL",{"$f":"SUM(C59:C63)","v":0},{"$f":"SUM(D59:D63)","v":0},0,0,0,{"$f":"SUM(H59:H63)","v":0},{"$f":"SUM(I59:I63)","v":0},0,0,0,0,0,0,0,0,0,0,0,0,0,0,{"$f":"SUM(X59:X63)","v":0},{"$f":"SUM(Y59:Y63)","v":0},0,0]
[]
["AOUT"]
[null,"NOM","AC","MP","PSO","PFC","STA","ECH","ENV","NET","LIMS","PROJET","ESS","AQ","AQ BIL","AQ FORM","AQ INFO","AQ REDAC","AQ VERIF","AQ REACT","AQ LEAN","AQ MET","CAPACITE\nREELLE","CONGE","ABSENCES","CAPACITE\nTHEORIQUE","DONT HS\nindicatif"]
[null,null,null,null,null,null,null,null,null,null,null,null,null,{"$f":"SUM(O68:V68)","v":0},null,null,null,null,null,null,null,null,{"$f":"SUM(C68:N68)","v":0},null,null,{"$f":"SUM(W68:Y68)-AA68","v":0}]
[null,null,null,null,null,null,null,null,null,null,null,null,null,{"$f":"SUM(O69:V69)","v":0},null,null,null,null,null,null,null,null,{"$f":"SUM(C69:N69)","v":0},null,null,{"$f":"SUM(W69:Y69)-AA69","v":0}]
[null,null,null,null,null,null,null,null,null,null,null,null,null,{"$f":"SUM(O70:V70)","v":0},null,null,null,null,null,null,null,null,0,null,null,0]
[null,null,null,null,null,null,null,null,null,null,null,null,null,{"$f":"SUM(O71:V71)","v":0},null,null,null,null,null,null,null,null,0,null,null,0]
[null,null,null,null,null,null,null,null,null,null,null,null,null,{"$f":"SUM(O72:V72)","v":0},null,null,null,null,null,null,null,null,0,null,null,{"$f":"SUM(W72:Y72)-AA72","v":0}]
[null,"TOTAL",{"$f":"SUM(C68:C72)","v":0},{"$f":"SUM(D68:D72)","v":0},0,0,0,0,0,0,{"$f":"SUM(K68:K72)","v":0},{"$f":"SUM(L68:L72)","v":0},0,0,0,0,0,0,0,0,0,0,0,{"$f":"SUM(X68:X72)","v":0},{"$f":"SUM(Y68:Y72)","v":0},0,0]
[]
["SEPTEMBRE"]
[null,"NOM","AC","MP","PSO","PFC","STA","ECH","ENV","NET","LIMS","PROJET","ESS","AQ","AQ BIL","AQ FORM","AQ INFO","AQ REDAC","AQ VERIF","AQ REACT","AQ LEAN","AQ MET","CAPACITE\nREELLE","CONGE","ABSENCES","CAPACITE\nTHEORIQUE","DONT HS\nindicatif"]
[null,null,null,null,null,null,null,null,null,null,null,null,null,{"$f":"SUM(O77:V77)","v":0},null,null,null,null,null,null,null,null,{"$f":"SUM(C77:N77)","v":0},null,null,{"$f":"SUM(W77:Y77)-AA77","v":0}]
[null,null,null,null,null,null,null,null,null,null,null,null,null,{"$f":"SUM(O78:V78)","v":0},null,null,null,null,null,null,null,null,{"$f":"SUM(C78:N78)","v":0},null,null,{"$f":"SUM(W78:Y78)-AA78","v":0}]
[null,null,null,null,null,null,null,null,null,null,null,null,null,{"$f":"SUM(O79:V79)","v":0},null,null,null,null,null,null,null,null,0,null,null,0]
[null,null,null,null,null,null,null,null,null,null,null,null,null,{"$f":"SUM(O80:V80)","v":0},null,null,null,null,null,null,null,null,0,null,null,0]
[null,null,null,null,null,null,null,null,null,null,null,null,null,{"$f":"SUM(O81:V81)","v":0},null,null,null,null,null,null,null,null,0,null,null,{"$f":"SUM(W81:Y81)-AA81","v":0}]
[null,"TOTAL",{"$f":"SUM(C77:C81)","v":0},{"$f":"SUM(D77:D81)","v":0},0,0,0,0,0,0,0,0,0,0,0,0,0,0,0,0,0,0,0,{"$f":"SUM(X77:X81)","v":0},{"$f":"SUM(Y77:Y81)","v":0},0,0]
[]
["OCTOBRE"]
[null,"NOM","AC","MP","PSO","PFC","STA","ECH","ENV","NET","LIMS","PROJET","ESS","AQ","AQ BIL","AQ FORM","AQ INFO","AQ REDAC","AQ VERIF","AQ REACT","AQ LEAN","AQ MET","CAPACITE\nREELLE","CONGE","ABSENCES","CAPACITE\nTHEORIQUE","DONT HS\nindicatif"]
[null,null,null,null,null,null,null,null,null,null,null,null,null,{"$f":"SUM(O86:V86)","v":0},null,null,null,null,null,null,null,null,{"$f":"SUM(C86:N86)","v":0},null,null,{"$f":"SUM(W86:Y86)-AA86","v":0}]
[null,null,null,null,null,null,null,null,null,null,null,null,null,{"$f":"SUM(O87:V87)","v":0},null,null,null,null,null,null,null,null,{"$f":"SUM(C87:N87)","v":0},null,null,{"$f":"SUM(W87:Y87)-AA87","v":0}]
[null,null,null,null,null,null,null,null,null,null,null,null,null,{"$f":"SUM(O88:V88)","v":0},null,null,null,null,null,null,null,null,0,null,null,0]
[null,null,null,null,null,null,null,null,null,null,null,null,null,{"$f":"SUM(O89:V89)","v":0},null,null,null,null,null,null,null,null,0,null,null,0]
[null,null,null,null,null,null,null,null,null,null,null,null,null,{"$f":"SUM(O90:V90)","v":0},null,null,null,null,null,null,null,null,0,null,null,{"$f":"SUM(W90:Y90)-AA90","v":0}]
[null,"TOTAL",{"$f":"SUM(C86:C90)","v":0},{"$f":"SUM(D86:D90)","v":0},0,0,0,0,0,0,0,{"$f":"SUM(L86:L90)","v":0},{"$f":"SUM(M86:M90)","v":0},0,0,0,0,0,0,0,0,0,0,{"$f":"SUM(X86:X90)","v":0},{"$f":"SUM(Y86:Y90)","v":0},0,0]
[]
["NOVEMBRE"]
[null,"NOM","AC","MP","PSO","PFC","STA","ECH","ENV","NET","LIMS","PROJET","ESS","AQ","AQ BIL","AQ FORM","AQ INFO","AQ REDAC","AQ VERIF","AQ REACT","AQ LEAN","AQ MET","CAPACITE\nREELLE","CONGE","ABSENCES","CAPACITE\nTHEORIQUE","DONT HS\nindicatif"]
[null,null,null,null,null,null,null,null,null,null,null,null,null,{"$f":"SUM(O95:V95)","v":0},null,null,null,null,null,null,null,null,{"$f":"SUM(C95:N95)","v":0},null,null,{"$f":"SUM(W95:Y95)-AA95","v":0}]
[null,null,null,null,null,null,null,null,null,null,null,null,null,{"$f":"SUM(O96:V96)","v":0},null,null,null,null,null,null,null,null,{"$f":"SUM(C96:N96)","v":0},null,null,{"$f":"SUM(W96:Y96)-AA96","v":0}]
[null,null,null,null,null,null,null,null,null,null,null,null,null,{"$f":"SUM(O97:V97)","v":0},null,null,null,null,null,null,null,null,0,null,null,0]
[null,null,null,null,null,null,null,null,null,null,null,null,null,{"$f":"SUM(O98:V98)","v":0},null,null,null,null,null,null,null,null,0,null,null,0]
[null,null,null,null,null,null,null,null,null,null,null,null,null,{"$f":"SUM(O99:V99)","v":0},null,null,null,null,null,null,null,null,0,null,null,{"$f":"SUM(W99:Y99)-AA99","v":0}]
[null,"TOTAL",{"$f":"SUM(C95:C99)","v":0},{"$f":"SUM(D95:D99)","v":0},0,0,0,0,0,0,0,0,0,0,0,0,0,0,0,0,0,0,0,{"$f":"SUM(X95:X99)","v":0},{"$f":"SUM(Y95:Y99)","v":0},0,0]
[]
["DECEMBRE"]
[null,"NOM","AC","MP","PSO","PFC","STA","ECH","ENV","NET","LIMS","PROJET","ESS","AQ","AQ BIL","AQ FORM","AQ INFO","AQ REDAC","AQ VERIF","AQ REACT","AQ LEAN","AQ MET","CAPACITE\nREELLE","CONGE","ABSENCES","CAPACITE\nTHEORIQUE","DONT HS\nindicatif"]
[null,null,null,null,null,null,null,null,null,null,null,null,null,{"$f":"SUM(O104:V104)","v":0},null,null,null,null,null,null,null,null,{"$f":"SUM(C104:N104)","v":0},null,null,{"$f":"SUM(W104:Y104)-AA104","v":0}]
[null,null,null,null,null,null,null,null,null,null,null,null,null,{"$f":"SUM(O105:V105)","v":0},null,null,null,null,null,null,null,null,{"$f":"SUM(C105:N105)","v":0},null,null,{"$f":"SUM(W105:Y105)-AA105","v":0}]
[null,null,null,null,null,null,null,null,null,null,null,null,null,{"$f":"SUM(O106:V106)","v":0},null,null,null,null,null,null,null,null,0,null,null,{"$f":"SUM(W106:Y106)-AA106","v":0}]
[null,null,null,null,null,null,null,null,null,null,null,null,null,{"$f":"SUM(O107:V107)","v":0},null,null,null,null,null,null,null,null,0,null,null,0]
[null,null,null,null,null,null,null,null,null,null,null,null,null,{"$f":"SUM(O108:V108)","v":0},null,null,null,null,null,null,null,null,{"$f":"SUM(C108:N108)","v":0},null,null,{"$f":"SUM(W108:Y108)-AA108","v":0}]
[null,"TOTAL",{"$f":"SUM(C104:C108)","v":0},{"$f":"SUM(D104:D108)","v":0},0,0,0,0,0,0,{"$f":"SUM(K104:K108)","v":0},{"$f":"SUM(L104:L108)","v":0},0,0,0,0,0,0,0,0,0,0,0,{"$f":"SUM(X104:X108)","v":0},{"$f":"SUM(Y104:Y108)","v":0},0,0]
[]
[]
[]
[]
[null,"Etat global 2016"]
[]
[null,"AC","MP","PSO","PFC","STA","ECH","ENV","NET","LIMS","PROJET","ESS","AQ","AQ BIL","AQ FORM","AQ INFO","AQ REDAC","AQ VERIF","AQ REACT","AQ LEAN","AQ MET"]
[null,{"$f":"SUM(C10+C19+C28+C37+C46+C55+C64+C73+C82+C91+C100+C109)","v":0},{"$f":"SUM(D10+D19+D28+D37+D46+D55+D64+D73+D82+D91+D100+D109)","v":0},{"$f":"SUM(E10+E19+E28+E37+E46+E55+E64+E73+E82+E91+E100+E109)","v":0},{"$f":"SUM(F10+F19+F28+F37+F46+F55+F64+F73+F82+F91+F100+F109)","v":0},0,0,0,150.75,0,0,0,612.75,61.5,64.5,67,39.75,0,222,48.25,109.75]

{"sheet":"VIERGE","index":3,"n_rows":109,"n_cols":27,"rows_kept":109,"cut":false,"hidden":false,"merged":[]}
["…"]
[]
["JANVIER"]
[null,"NOM","AC","MP","PSO","PFC","STA","ECH","ENV/MAN DIV","NET","LIMS","PROJET","ESS","AQ","AQ BIL","AQ FORM","AQ INFO","AQ REDAC","AQ VERIF","AQ REACT","AQ LEAN","AQ MET","CAPACITE\nREELLE","CONGE","ABSENCES","CAPACITE\nTHEORIQUE","DONT HS\nindicatif"]
[null,"Semaine (../..)",null,null,null,null,null,null,null,null,null,null,null,{"$f":"SUM(O5:V5)","v":0},null,null,null,null,null,null,null,null,{"$f":"SUM(C5:N5)","v":0},null,null,{"$f":"SUM(W5:Y5)-AA5","v":0}]
[null,"Semaine (../..)",null,null,null,null,null,null,null,null,null,null,null,{"$f":"SUM(O6:V6)","v":0},null,null,null,null,null,null,null,null,{"$f":"SUM(C6:N6)","v":0},null,null,{"$f":"SUM(W6:Y6)-AA6","v":0}]
[null,"Semaine (../..)",null,null,null,null,null,null,null,null,null,null,null,0,null,null,null,null,null,null,null,null,{"$f":"SUM(C7:N7)","v":0},null,null,{"$f":"SUM(W7:Y7)-AA7","v":0}]
[null,"Semaine (../..)",null,null,null,null,null,null,null,null,null,null,null,{"$f":"SUM(O8:V8)","v":0},null,null,null,null,null,null,null,null,0,null,null,0]
[null,"Semaine (../..)",null,null,null,null,null,null,null,null,null,null,null,0,null,null,null,null,null,null,null,null,0,null,null,{"$f":"SUM(W9:Y9)-AA9","v":0}]
[null,"TOTAL",{"$f":"SUM(C5:C9)","v":0},{"$f":"SUM(D5:D9)","v":0},0,0,0,0,0,0,0,0,0,0,0,0,0,0,0,0,0,0,0,{"$f":"SUM(X5:X9)","v":0},0,0,0]
[]
["FEVRIER"]
[null,"NOM","AC","MP","PSO","PFC","STA","ECH","ENV/MAN DIV","NET","LIMS","PROJET","ESS","AQ","AQ BIL","AQ FORM","AQ INFO","AQ REDAC","AQ VERIF","AQ REACT","AQ LEAN","AQ MET","CAPACITE\nREELLE","CONGE","ABSENCES","CAPACITE\nTHEORIQUE","DONT HS\nindicatif"]
[null,"Semaine (../..)",null,null,null,null,null,null,null,null,null,null,null,{"$f":"SUM(O14:V14)","v":0},null,null,null,null,null,null,null,null,{"$f":"SUM(C14:N14)","v":0},null,null,{"$f":"SUM(W14:Y14)-AA14","v":0}]
[null,"Semaine (../..)",null,null,null,null,null,null,null,null,null,null,null,{"$f":"SUM(O15:V15)","v":0},null,null,null,null,null,null,null,null,{"$f":"SUM(C15:N15)","v":0},null,null,{"$f":"SUM(W15:Y15)-AA15","v":0}]
[null,"Semaine (../..)",null,null,null,null,null,null,null,null,null,null,null,{"$f":"SUM(O16:V16)","v":0},null,null,null,null,null,null,null,null,0,null,null,0]
[null,"Semaine (../..)",null,null,null,null,null,null,null,null,null,null,null,{"$f":"SUM(O17:V17)","v":0},null,null,null,null,null,null,null,null,0,null,null,0]
[null,"Semaine (../..)",null,null,null,null,null,null,null,null,null,null,null,0,null,null,null,null,null,null,null,null,0,null,null,{"$f":"SUM(W18:Y18)-AA18","v":0}]
[null,"TOTAL",{"$f":"SUM(C14:C18)","v":0},{"$f":"SUM(D14:D18)","v":0},0,0,0,0,0,0,0,0,0,0,0,0,0,0,0,0,0,0,0,{"$f":"SUM(X14:X18)","v":0},0,0,0]
[]
["MARS"]
[null,"NOM","AC","MP","PSO","PFC","STA","ECH","ENV/MAN DIV","NET","LIMS","PROJET","ESS","AQ","AQ BIL","AQ FORM","AQ INFO","AQ REDAC","AQ VERIF","AQ REACT","AQ LEAN","AQ MET","CAPACITE\nREELLE","CONGE","ABSENCES","CAPACITE\nTHEORIQUE","DONT HS\nindicatif"]
[null,"Semaine (../..)",null,null,null,null,null,null,null,null,null,null,null,{"$f":"SUM(O23:V23)","v":0},null,null,null,null,null,null,null,null,{"$f":"SUM(C23:N23)","v":0},null,null,{"$f":"SUM(W23:Y23)-AA23","v":0}]
[null,"Semaine (../..)",null,null,null,null,null,null,null,null,null,null,null,{"$f":"SUM(O24:V24)","v":0},null,null,null,null,null,null,null,null,{"$f":"SUM(C24:N24)","v":0},null,null,{"$f":"SUM(W24:Y24)-AA24","v":0}]
[null,"Semaine (../..)",null,null,null,null,null,null,null,null,null,null,null,{"$f":"SUM(O25:V25)","v":0},null,null,null,null,null,null,null,null,0,null,null,0]
[null,"Semaine (../..)",null,null,null,null,null,null,null,null,null,null,null,0,null,null,null,null,null,null,null,null,0,null,null,0]
[null,"Semaine (../..)",null,null,null,null,null,null,null,null,null,null,null,{"$f":"SUM(O27:V27)","v":0},null,null,null,null,null,null,null,null,0,null,null,{"$f":"SUM(W27:Y27)-AA27","v":0}]
[null,"TOTAL",{"$f":"SUM(C23:C27)","v":0},{"$f":"SUM(D23:D27)","v":0},{"$f":"SUM(E23:E27)","v":0},{"$f":"SUM(F23:F27)","v":0},0,0,0,0,0,0,0,0,0,0,0,0,0,0,0,0,0,{"$f":"SUM(X23:X27)","v":0},0,0,0]
[]
["AVRIL"]
[null,"NOM","AC","MP","PSO","PFC","STA","ECH","ENV/MAN DIV","NET","LIMS","PROJET","ESS","AQ","AQ BIL","AQ FORM","AQ INFO","AQ REDAC","AQ VERIF","AQ REACT","AQ LEAN","AQ MET","CAPACITE\nREELLE","CONGE","ABSENCES","CAPACITE\nTHEORIQUE","DONT HS\nindicatif"]
[null,"Semaine (../..)",null,null,null,null,null,null,null,null,null,null,null,{"$f":"SUM(O32:V32)","v":0},null,null,null,null,null,null,null,null,{"$f":"SUM(C32:N32)","v":0},null,null,{"$f":"SUM(W32:Y32)-AA32","v":0}]
[null,"Semaine (../..)",null,null,null,null,null,null,null,null,null,null,null,{"$f":"SUM(O33:V33)","v":0},null,null,null,null,null,null,null,null,{"$f":"SUM(C33:N33)","v":0},null,null,{"$f":"SUM(W33:Y33)-AA33","v":0}]
[null,"Semaine (../..)",null,null,null,null,null,null,null,null,null,null,null,{"$f":"SUM(O34:V34)","v":0},null,null,null,null,null,null,null,null,0,null,null,0]
[null,"Semaine (../..)",null,null,null,null,null,null,null,null,null,null,null,0,null,null,null,null,null,null,null,null,0,null,null,0]
[null,"Semaine (../..)",null,null,null,null,null,null,null,null,null,null,null,{"$f":"SUM(O36:V36)","v":0},null,null,null,null,null,null,null,null,0,null,null,{"$f":"SUM(W36:Y36)-AA36","v":0}]
[null,"TOTAL",{"$f":"SUM(C32:C36)","v":0},{"$f":"SUM(D32:D36)","v":0},0,0,0,0,0,0,0,0,0,0,0,0,0,0,0,0,0,0,0,{"$f":"SUM(X32:X36)","v":0},0,0,0]
[]
["MAI"]
[null,"NOM","AC","MP","PSO","PFC","STA","ECH","ENV/MAN DIV","NET","LIMS","PROJET","ESS","AQ","AQ BIL","AQ FORM","AQ INFO","AQ REDAC","AQ VERIF","AQ REACT","AQ LEAN","AQ MET","CAPACITE\nREELLE","CONGE","ABSENCES","CAPACITE\nTHEORIQUE","DONT HS\nindicatif"]
[null,"Semaine (../..)",null,null,null,null,null,null,null,null,null,null,null,{"$f":"SUM(O41:V41)","v":0},null,null,null,null,null,null,null,null,{"$f":"SUM(C41:N41)","v":0},null,null,{"$f":"SUM(W41:Y41)-AA41","v":0}]
[null,"Semaine (../..)",null,null,null,null,null,null,null,null,null,null,null,{"$f":"SUM(O42:V42)","v":0},null,null,null,null,null,null,null,null,{"$f":"SUM(C42:N42)","v":0},null,null,{"$f":"SUM(W42:Y42)-AA42","v":0}]
[null,"Semaine (../..)",null,null,null,null,null,null,null,null,null,null,null,{"$f":"SUM(O43:V43)","v":0},null,null,null,null,null,null,null,null,0,null,null,0]
[null,"Semaine (../..)",null,null,null,null,null,null,null,null,null,null,null,{"$f":"SUM(O44:V44)","v":0},null,null,null,null,null,null,null,null,0,null,null,0]
[null,"Semaine (../..)",null,null,null,null,null,null,null,null,null,null,null,{"$f":"SUM(O45:V45)","v":0},null,null,null,null,null,null,null,null,0,null,null,{"$f":"SUM(W45:Y45)-AA45","v":0}]
[null,"TOTAL",{"$f":"SUM(C41:C45)","v":0},{"$f":"SUM(D41:D45)","v":0},0,{"$f":"SUM(F41:F45)","v":0},{"$f":"SUM(G41:G45)","v":0},0,0,0,0,0,0,0,0,0,0,0,0,0,0,0,0,{"$f":"SUM(X41:X45)","v":0},0,0,0]
[]
["JUIN"]
[null,"NOM","AC","MP","PSO","PFC","STA","ECH","ENV/MAN DIV","NET","LIMS","PROJET","ESS","AQ","AQ BIL","AQ FORM","AQ INFO","AQ REDAC","AQ VERIF","AQ REACT","AQ LEAN","AQ MET","CAPACITE\nREELLE","CONGE","ABSENCES","CAPACITE\nTHEORIQUE","DONT HS\nindicatif"]
[null,"Semaine (../..)",null,null,null,null,null,null,null,null,null,null,null,{"$f":"SUM(O50:V50)","v":0},null,null,null,null,null,null,null,null,{"$f":"SUM(C50:N50)","v":0},null,null,{"$f":"SUM(W50:Y50)-AA50","v":0}]
[null,"Semaine (../..)",null,null,null,null,null,null,null,null,null,null,null,{"$f":"SUM(O51:V51)","v":0},null,null,null,null,null,null,null,null,{"$f":"SUM(C51:N51)","v":0},null,null,{"$f":"SUM(W51:Y51)-AA51","v":0}]
[null,"Semaine (../..)",null,null,null,null,null,null,null,null,null,null,null,{"$f":"SUM(O52:V52)","v":0},null,null,null,null,null,null,null,null,0,null,null,0]
[null,"Semaine (../..)",null,null,null,null,null,null,null,null,null,null,null,{"$f":"SUM(O53:V53)","v":0},null,null,null,null,null,null,null,null,0,null,null,0]
[null,"Semaine (../..)",null,null,null,null,null,null,null,null,null,null,null,{"$f":"SUM(O54:V54)","v":0},null,null,null,null,null,null,null,null,0,null,null,{"$f":"SUM(W54:Y54)-AA54","v":0}]
[null,"TOTAL",{"$f":"SUM(C50:C54)","v":0},{"$f":"SUM(D50:D54)","v":0},0,0,0,0,0,0,0,0,0,0,0,0,0,0,0,0,0,0,0,{"$f":"SUM(X50:X54)","v":0},0,0,0]
[]
["JUILLET"]
[null,"NOM","AC","MP","PSO","PFC","STA","ECH","ENV/MAN DIV","NET","LIMS","PROJET","ESS","AQ","AQ BIL","AQ FORM","AQ INFO","AQ REDAC","AQ VERIF","AQ REACT","AQ LEAN","AQ MET","CAPACITE\nREELLE","CONGE","ABSENCES","CAPACITE\nTHEORIQUE","DONT HS\nindicatif"]
[null,"Semaine (../..)",null,null,null,null,null,null,null,null,null,null,null,{"$f":"SUM(O59:V59)","v":0},null,null,null,null,null,null,null,null,{"$f":"SUM(C59:N59)","v":0},null,null,{"$f":"SUM(W59:Y59)-AA59","v":0}]
[null,"Semaine (../..)",null,null,null,null,null,null,null,null,null,null,null,{"$f":"SUM(O60:V60)","v":0},null,null,null,null,null,null,null,null,{"$f":"SUM(C60:N60)","v":0},null,null,{"$f":"SUM(W60:Y60)-AA60","v":0}]
[null,"Semaine (../..)",null,null,null,null,null,null,null,null,null,null,null,{"$f":"SUM(O61:V61)","v":0},null,null,null,null,null,null,null,null,0,null,null,0]
[null,"Semaine (../..)",null,null,null,null,null,null,null,null,null,null,null,{"$f":"SUM(O62:V62)","v":0},null,null,null,null,null,null,null,null,0,null,null,0]
[null,"Semaine (../..)",null,null,null,null,null,null,null,null,null,null,null,{"$f":"SUM(O63:V63)","v":0},null,null,null,null,null,null,null,null,0,null,null,{"$f":"SUM(W63:Y63)-AA63","v":0}]
[null,"TOTAL",{"$f":"SUM(C59:C63)","v":0},{"$f":"SUM(D59:D63)","v":0},0,0,0,{"$f":"SUM(H59:H63)","v":0},{"$f":"SUM(I59:I63)","v":0},0,0,0,0,0,0,0,0,0,0,0,0,0,0,{"$f":"SUM(X59:X63)","v":0},0,0,0]
[]
["AOUT"]
[null,"NOM","AC","MP","PSO","PFC","STA","ECH","ENV/MAN DIV","NET","LIMS","PROJET","ESS","AQ","AQ BIL","AQ FORM","AQ INFO","AQ REDAC","AQ VERIF","AQ REACT","AQ LEAN","AQ MET","CAPACITE\nREELLE","CONGE","ABSENCES","CAPACITE\nTHEORIQUE","DONT HS\nindicatif"]
[null,"Semaine (../..)",null,null,null,null,null,null,null,null,null,null,null,{"$f":"SUM(O68:V68)","v":0},null,null,null,null,null,null,null,null,{"$f":"SUM(C68:N68)","v":0},null,null,{"$f":"SUM(W68:Y68)-AA68","v":0}]
[null,"Semaine (../..)",null,null,null,null,null,null,null,null,null,null,null,{"$f":"SUM(O69:V69)","v":0},null,null,null,null,null,null,null,null,{"$f":"SUM(C69:N69)","v":0},null,null,{"$f":"SUM(W69:Y69)-AA69","v":0}]
[null,"Semaine (../..)",null,null,null,null,null,null,null,null,null,null,null,{"$f":"SUM(O70:V70)","v":0},null,null,null,null,null,null,null,null,0,null,null,0]
[null,"Semaine (../..)",null,null,null,null,null,null,null,null,null,null,null,{"$f":"SUM(O71:V71)","v":0},null,null,null,null,null,null,null,null,0,null,null,0]
[null,"Semaine (../..)",null,null,null,null,null,null,null,null,null,null,null,{"$f":"SUM(O72:V72)","v":0},null,null,null,null,null,null,null,null,0,null,null,{"$f":"SUM(W72:Y72)-AA72","v":0}]
[null,"TOTAL",{"$f":"SUM(C68:C72)","v":0},{"$f":"SUM(D68:D72)","v":0},0,0,0,0,0,0,{"$f":"SUM(K68:K72)","v":0},{"$f":"SUM(L68:L72)","v":0},0,0,0,0,0,0,0,0,0,0,0,{"$f":"SUM(X68:X72)","v":0},0,0,0]
[]
["SEPTEMBRE"]
[null,"NOM","AC","MP","PSO","PFC","STA","ECH","ENV/MAN DIV","NET","LIMS","PROJET","ESS","AQ","AQ BIL","AQ FORM","AQ INFO","AQ REDAC","AQ VERIF","AQ REACT","AQ LEAN","AQ MET","CAPACITE\nREELLE","CONGE","ABSENCES","CAPACITE\nTHEORIQUE","DONT HS\nindicatif"]
[null,"Semaine (../..)",null,null,null,null,null,null,null,null,null,null,null,{"$f":"SUM(O77:V77)","v":0},null,null,null,null,null,null,null,null,{"$f":"SUM(C77:N77)","v":0},null,null,{"$f":"SUM(W77:Y77)-AA77","v":0}]
[null,"Semaine (../..)",null,null,null,null,null,null,null,null,null,null,null,{"$f":"SUM(O78:V78)","v":0},null,null,null,null,null,null,null,null,{"$f":"SUM(C78:N78)","v":0},null,null,{"$f":"SUM(W78:Y78)-AA78","v":0}]
[null,"Semaine (../..)",null,null,null,null,null,null,null,null,null,null,null,{"$f":"SUM(O79:V79)","v":0},null,null,null,null,null,null,null,null,0,null,null,0]
[null,"Semaine (../..)",null,null,null,null,null,null,null,null,null,null,null,{"$f":"SUM(O80:V80)","v":0},null,null,null,null,null,null,null,null,0,null,null,0]
[null,"Semaine (../..)",null,null,null,null,null,null,null,null,null,null,null,{"$f":"SUM(O81:V81)","v":0},null,null,null,null,null,null,null,null,0,null,null,{"$f":"SUM(W81:Y81)-AA81","v":0}]
[null,"TOTAL",{"$f":"SUM(C77:C81)","v":0},{"$f":"SUM(D77:D81)","v":0},0,0,0,0,0,0,0,0,0,0,0,0,0,0,0,0,0,0,0,{"$f":"SUM(X77:X81)","v":0},0,0,0]
[]
["OCTOBRE"]
[null,"NOM","AC","MP","PSO","PFC","STA","ECH","ENV/MAN DIV","NET","LIMS","PROJET","ESS","AQ","AQ BIL","AQ FORM","AQ INFO","AQ REDAC","AQ VERIF","AQ REACT","AQ LEAN","AQ MET","CAPACITE\nREELLE","CONGE","ABSENCES","CAPACITE\nTHEORIQUE","DONT HS\nindicatif"]
[null,"Semaine (../..)",null,null,null,null,null,null,null,null,null,null,null,{"$f":"SUM(O86:V86)","v":0},null,null,null,null,null,null,null,null,{"$f":"SUM(C86:N86)","v":0},null,null,{"$f":"SUM(W86:Y86)-AA86","v":0}]
[null,"Semaine (../..)",null,null,null,null,null,null,null,null,null,null,null,{"$f":"SUM(O87:V87)","v":0},null,null,null,null,null,null,null,null,{"$f":"SUM(C87:N87)","v":0},null,null,{"$f":"SUM(W87:Y87)-AA87","v":0}]
[null,"Semaine (../..)",null,null,null,null,null,null,null,null,null,null,null,{"$f":"SUM(O88:V88)","v":0},null,null,null,null,null,null,null,null,0,null,null,0]
[null,"Semaine (../..)",null,null,null,null,null,null,null,null,null,null,null,{"$f":"SUM(O89:V89)","v":0},null,null,null,null,null,null,null,null,0,null,null,0]
[null,"Semaine (../..)",null,null,null,null,null,null,null,null,null,null,null,{"$f":"SUM(O90:V90)","v":0},null,null,null,null,null,null,null,null,0,null,null,{"$f":"SUM(W90:Y90)-AA90","v":0}]
[null,"TOTAL",{"$f":"SUM(C86:C90)","v":0},{"$f":"SUM(D86:D90)","v":0},0,0,0,0,0,0,0,{"$f":"SUM(L86:L90)","v":0},{"$f":"SUM(M86:M90)","v":0},0,0,0,0,0,0,0,0,0,0,{"$f":"SUM(X86:X90)","v":0},0,0,0]
[]
["NOVEMBRE"]
[null,"NOM","AC","MP","PSO","PFC","STA","ECH","ENV/MAN DIV","NET","LIMS","PROJET","ESS","AQ","AQ BIL","AQ FORM","AQ INFO","AQ REDAC","AQ VERIF","AQ REACT","AQ LEAN","AQ MET","CAPACITE\nREELLE","CONGE","ABSENCES","CAPACITE\nTHEORIQUE","DONT HS\nindicatif"]
[null,"Semaine (../..)",null,null,null,null,null,null,null,null,null,null,null,{"$f":"SUM(O95:V95)","v":0},null,null,null,null,null,null,null,null,{"$f":"SUM(C95:N95)","v":0},null,null,{"$f":"SUM(W95:Y95)-AA95","v":0}]
[null,"Semaine (../..)",null,null,null,null,null,null,null,null,null,null,null,{"$f":"SUM(O96:V96)","v":0},null,null,null,null,null,null,null,null,{"$f":"SUM(C96:N96)","v":0},null,null,{"$f":"SUM(W96:Y96)-AA96","v":0}]
[null,"Semaine (../..)",null,null,null,null,null,null,null,null,null,null,null,{"$f":"SUM(O97:V97)","v":0},null,null,null,null,null,null,null,null,0,null,null,0]
[null,"Semaine (../..)",null,null,null,null,null,null,null,null,null,null,null,{"$f":"SUM(O98:V98)","v":0},null,null,null,null,null,null,null,null,0,null,null,0]
[null,"Semaine (../..)",null,null,null,null,null,null,null,null,null,null,null,{"$f":"SUM(O99:V99)","v":0},null,null,null,null,null,null,null,null,0,null,null,{"$f":"SUM(W99:Y99)-AA99","v":0}]
[null,"TOTAL",{"$f":"SUM(C95:C99)","v":0},{"$f":"SUM(D95:D99)","v":0},0,0,0,0,0,0,0,0,0,0,0,0,0,0,0,0,0,0,0,{"$f":"SUM(X95:X99)","v":0},0,0,0]
[]
["DECEMBRE"]
[null,"NOM","AC","MP","PSO","PFC","STA","ECH","ENV/MAN DIV","NET","LIMS","PROJET","ESS","AQ","AQ BIL","AQ FORM","AQ INFO","AQ REDAC","AQ VERIF","AQ REACT","AQ LEAN","AQ MET","CAPACITE\nREELLE","CONGE","ABSENCES","CAPACITE\nTHEORIQUE","DONT HS\nindicatif"]
[null,"Semaine (../..)",null,null,null,null,null,null,null,null,null,null,null,{"$f":"SUM(O104:V104)","v":0},null,null,null,null,null,null,null,null,{"$f":"SUM(C104:N104)","v":0},null,null,{"$f":"SUM(W104:Y104)-AA104","v":0}]
[null,"Semaine (../..)",null,null,null,null,null,null,null,null,null,null,null,{"$f":"SUM(O105:V105)","v":0},null,null,null,null,null,null,null,null,{"$f":"SUM(C105:N105)","v":0},null,null,{"$f":"SUM(W105:Y105)-AA105","v":0}]
[null,"Semaine (../..)",null,null,null,null,null,null,null,null,null,null,null,{"$f":"SUM(O106:V106)","v":0},null,null,null,null,null,null,null,null,0,null,null,0]
[null,"Semaine (../..)",null,null,null,null,null,null,null,null,null,null,null,{"$f":"SUM(O107:V107)","v":0},null,null,null,null,null,null,null,null,0,null,null,0]
[null,"Semaine (../..)",null,null,null,null,null,null,null,null,null,null,null,{"$f":"SUM(O108:V108)","v":0},null,null,null,null,null,null,null,null,{"$f":"SUM(C108:N108)","v":0},null,null,{"$f":"SUM(W108:Y108)-AA108","v":0}]
[null,"TOTAL",{"$f":"SUM(C104:C108)","v":0},{"$f":"SUM(D104:D108)","v":0},0,0,0,0,0,0,{"$f":"SUM(K104:K108)","v":0},{"$f":"SUM(L104:L108)","v":0},0,0,0,0,0,0,0,0,0,0,0,{"$f":"SUM(X104:X108)","v":0},0,0,0]

{"sheet":"BILAN PC","index":4,"n_rows":61,"n_cols":26,"rows_kept":61,"cut":false,"hidden":false,"merged":[[12,0,12,2],[39,0,39,2],[45,4,58,7]]}
["Bilan Physico-Chimie"]
["(Sans JH / Sga / HG / SM / VM et CCE (CDD))"]
[null,null,"10 Titulaires + 2 Intérimaires + 1CDD= 13 personnes soit une capacité théorique de 2028 h"]
[null,null,"Capacité réelle: 1951h"]
[]
[null,"AC","MP","PSO","PFC","STA","ECH","ENV","NET","LIMS","PROJET","ESS","AQ","AQ BIL","AQ FORM","AQ INFO","AQ REDAC","AQ VERIF","AQ REACT","AQ LEAN","AQ MET","CAP REELLE","CONGE","ABSENCES","CAP. THEO.","HS"]
["JANVIER",{"$f":"SUM(#REF!+#REF!+#REF!+#REF!+#REF!+#REF!+#REF!+#REF!+#REF!+#REF!+#REF!+#REF!)","v":{"$error":"#REF!"}},{"$f":"SUM(#REF!+#REF!+#REF!+#REF!+#REF!+#REF!+#REF!+#REF!+#REF!+#REF!+#REF!+#REF!)","v":{"$error":"#REF!"}},{"$f":"SUM(#REF!+#REF!+#REF!+#REF!+#REF!+#REF!+#REF!+#REF!+#REF!+#REF!+#REF!+#REF!)","v":{"$error":"#REF!"}},{"$f":"SUM(#REF!+#REF!+#REF!+#REF!+#REF!+#REF!+#REF!+#REF!+#REF!+#REF!+#REF!+#REF!)","v":{"$error":"#REF!"}},{"$f":"SUM(#REF!+#REF!+#REF!+#REF!+#REF!+#REF!+#REF!+#REF!+#REF!+#REF!+#REF!+#REF!)","v":{"$error":"#REF!"}},{"$f":"SUM(#REF!+#REF!+#REF!+#REF!+#REF!+#REF!+#REF!+#REF!+#REF!+#REF!+#REF!+#REF!)","v":{"$error":"#REF!"}},{"$f":"SUM(#REF!+#REF!+#REF!+#REF!+#REF!+#REF!+#REF!+#REF!+#REF!+#REF!+#REF!+#REF!)","v":{"$error":"#REF!"}},{"$f":"SUM(#REF!+#REF!+#REF!+#REF!+#REF!+#REF!+#REF!+#REF!+#REF!+#REF!+#REF!+#REF!)","v":{"$error":"#REF!"}},{"$f":"SUM(#REF!+#REF!+#REF!+#REF!+#REF!+#REF!+#REF!+#REF!+#REF!+#REF!+#REF!+#REF!)","v":{"$error":"#REF!"}},{"$f":"SUM(#REF!+#REF!+#REF!+#REF!+#REF!+#REF!+#REF!+#REF!+#REF!+#REF!+#REF!+#REF!)","v":{"$error":"#REF!"}},{"$f":"SUM(#REF!+#REF!+#REF!+#REF!+#REF!+#REF!+#REF!+#REF!+#REF!+#REF!+#REF!+#REF!)","v":{"$error":"#REF!"}},{"$f":"SUM(#REF!+#REF!+#REF!+#REF!+#REF!+#REF!+#REF!+#REF!+#REF!+#REF!+#REF!+#REF!)","v":{"$error":"#REF!"}},{"$f":"SUM(#REF!+#REF!+#REF!+#REF!+#REF!+#REF!+#REF!+#REF!+#REF!+#REF!+#REF!+#REF!)","v":{"$error":"#REF!"}},{"$f":"SUM(#REF!+#REF!+#REF!+#REF!+#REF!+#REF!+#REF!+#REF!+#REF!+#REF!+#REF!+#REF!)","v":{"$error":"#REF!"}},{"$f":"SUM(#REF!+#REF!+#REF!+#REF!+#REF!+#REF!+#REF!+#REF!+#REF!+#REF!+#REF!+#REF!)","v":{"$error":"#REF!"}},{"$f":"SUM(#REF!+#REF!+#REF!+#REF!+#REF!+#REF!+#REF!+#REF!+#REF!+#REF!+#REF!+#REF!)","v":{"$error":"#REF!"}},{"$f":"SUM(#REF!+#REF!+#REF!+#REF!+#REF!+#REF!+#REF!+#REF!+#REF!+#REF!+#REF!+#REF!)","v":{"$error":"#REF!"}},{"$f":"SUM(#REF!+#REF!+#REF!+#REF!+#REF!+#REF!+#REF!+#REF!+#REF!+#REF!+#REF!+#REF!)","v":{"$error":"#REF!"}},{"$f":"SUM(#REF!+#REF!+#REF!+#REF!+#REF!+#REF!+#REF!+#REF!+#REF!+#REF!+#REF!+#REF!)","v":{"$error":"#REF!"}},{"$f":"SUM(#REF!+#REF!+#REF!+#REF!+#REF!+#REF!+#REF!+#REF!+#REF!+#REF!+#REF!+#REF!)","v":{"$error":"#REF!"}},{"$f":"SUM(#REF!+#REF!+#REF!+#REF!+#REF!+#REF!+#REF!+#REF!+#REF!+#REF!+#REF!+#REF!)","v":{"$error":"#REF!"}},{"$f":"SUM(#REF!+#REF!+#REF!+#REF!+#REF!+#REF!+#REF!+#REF!+#REF!+#REF!+#REF!+#REF!)","v":{"$error":"#REF!"}},{"$f":"SUM(#REF!+#REF!+#REF!+#REF!+#REF!+#REF!+#REF!+#REF!+#REF!+#REF!+#REF!+#REF!)","v":{"$error":"#REF!"}},{"$f":"SUM(#REF!+#REF!+#REF!+#REF!+#REF!+#REF!+#REF!+#REF!+#REF!+#REF!+#REF!+#REF!)","v":{"$error":"#REF!"}},{"$f":"SUM(#REF!+#REF!+#REF!+#REF!+#REF!+#REF!+#REF!+#REF!+#REF!+#REF!+#REF!+#REF!)","v":{"$error":"#REF!"}}]
["FEVRIER",{"$f":"#REF!+#REF!+#REF!+#REF!+#REF!+#REF!+#REF!+#REF!+#REF!+#REF!+#REF!+#REF!","v":{"$error":"#REF!"}},{"$f":"#REF!+#REF!+#REF!+#REF!+#REF!+#REF!+#REF!+#REF!+#REF!+#REF!+#REF!+#REF!","v":{"$error":"#REF!"}},{"$f":"#REF!+#REF!+#REF!+#REF!+#REF!+#REF!+#REF!+#REF!+#REF!+#REF!+#REF!+#REF!","v":{"$error":"#REF!"}},{"$f":"#REF!+#REF!+#REF!+#REF!+#REF!+#REF!+#REF!+#REF!+#REF!+#REF!+#REF!+#REF!","v":{"$error":"#REF!"}},{"$f":"#REF!+#REF!+#REF!+#REF!+#REF!+#REF!+#REF!+#REF!+#REF!+#REF!+#REF!+#REF!","v":{"$error":"#REF!"}},{"$f":"#REF!+#REF!+#REF!+#REF!+#REF!+#REF!+#REF!+#REF!+#REF!+#REF!+#REF!+#REF!","v":{"$error":"#REF!"}},{"$f":"#REF!+#REF!+#REF!+#REF!+#REF!+#REF!+#REF!+#REF!+#REF!+#REF!+#REF!+#REF!","v":{"$error":"#REF!"}},{"$f":"#REF!+#REF!+#REF!+#REF!+#REF!+#REF!+#REF!+#REF!+#REF!+#REF!+#REF!+#REF!","v":{"$error":"#REF!"}},{"$f":"#REF!+#REF!+#REF!+#REF!+#REF!+#REF!+#REF!+#REF!+#REF!+#REF!+#REF!+#REF!","v":{"$error":"#REF!"}},null,192.25,{"$f":"#REF!+#REF!+#REF!+#REF!+#REF!+#REF!+#REF!+#REF!+#REF!+#REF!+#REF!+#REF!","v":{"$error":"#REF!"}},{"$f":"#REF!+#REF!+#REF!+#REF!+#REF!+#REF!+#REF!+#REF!+#REF!+#REF!+#REF!+#REF!","v":{"$error":"#REF!"}},{"$f":"#REF!+#REF!+#REF!+#REF!+#REF!+#REF!+#REF!+#REF!+#REF!+#REF!+#REF!+#REF!","v":{"$error":"#REF!"}},{"$f":"#REF!+#REF!+#REF!+#REF!+#REF!+#REF!+#REF!+#REF!+#REF!+#REF!+#REF!+#REF!","v":{"$error":"#REF!"}},{"$f":"#REF!+#REF!+#REF!+#REF!+#REF!+#REF!+#REF!+#REF!+#REF!+#REF!+#REF!+#REF!","v":{"$error":"#REF!"}},{"$f":"#REF!+#REF!+#REF!+#REF!+#REF!+#REF!+#REF!+#REF!+#REF!+#REF!+#REF!+#REF!","v":{"$error":"#REF!"}},{"$f":"#REF!+#REF!+#REF!+#REF!+#REF!+#REF!+#REF!+#REF!+#REF!+#REF!+#REF!+#REF!","v":{"$error":"#REF!"}},{"$f":"#REF!+#REF!+#REF!+#REF!+#REF!+#REF!+#REF!+#REF!+#REF!+#REF!+#REF!+#REF!","v":{"$error":"#REF!"}},{"$f":"#REF!+#REF!+#REF!+#REF!+#REF!+#REF!+#REF!+#REF!+#REF!+#REF!+#REF!+#REF!","v":{"$error":"#REF!"}},{"$f":"#REF!+#REF!+#REF!+#REF!+#REF!+#REF!+#REF!+#REF!+#REF!+#REF!+#REF!+#REF!","v":{"$error":"#REF!"}},{"$f":"#REF!+#REF!+#REF!+#REF!+#REF!+#REF!+#REF!+#REF!+#REF!+#REF!+#REF!+#REF!","v":{"$error":"#REF!"}},{"$f":"#REF!+#REF!+#REF!+#REF!+#REF!+#REF!+#REF!+#REF!+#REF!+#REF!+#REF!+#REF!","v":{"$error":"#REF!"}},{"$f":"#REF!+#REF!+#REF!+#REF!+#REF!+#REF!+#REF!+#REF!+#REF!+#REF!+#REF!+#REF!","v":{"$error":"#REF!"}},{"$f":"#REF!+#REF!+#REF!+#REF!+#REF!+#REF!+#REF!+#REF!+#REF!+#REF!+#REF!+#REF!","v":{"$error":"#REF!"}}]
[]
[]
[]
[]
["BILAN ACTIVITE PHYSICO-CHIMIE JANVIER 2016"]
[]
["10 Titulaires + 2 Intérimaires = 12 techniciens"]
["soit une capacité théorique de 1872 h"]
["Capacité réelle: 1803 h"]
[]
[null,"Temps standards","Temps réels "]
["Matières Premières",569.5,476]
["Produits Finis",845,487]
["Assurance Qualité","600 (1806 × 0.333)",483]
["Articles de conditionnement",null,11.75]
["Nettoyage (aide laverie)",null,2.75]
["LIMS",null,55.25]
[null,null,{"$f":"SUM(C20:C25)","v":1515.75}]
[]
[null,"Ressources supplémentaires (Capacité réelle)",306]
["ESSAI",null,149]
["PROJ",null,58.75]
["STAB Elidel",null,79.5]
[null,"Activité hors routine (Fichier joint)",{"$f":"SUM(C29:C31)","v":287.25}]
[]
[]
[]
[null,"Somme des heures",{"$f":"SUM(C20:C25,C29:C31)","v":1803}]
[]
["SGA et JH le 08/02/2016"]
[]
["BILAN ACTIVITE PHYSICO-CHIMIE FEVRIER 2016"]
[]
["10 Titulaires + 2 Intérimaires = 12 techniciens"]
["soit une capacité théorique en H",1897]
["Capacité réelle: ",1647]
[]
[null,"Temps standards","Temps réels ",null,"Remarques:\nLes temps réels sont issus du déclaratif des feuilles d'imputation.\nLes différences observables entre les temps standards et les temps déclarés sont dus:\n-Au regroupement de lots pour les MP et pour les PF.\n-Aux sous traitances, les analyses au CQ sont faites sur un mois, la sous-traitance le mois suivant, la libération dans le mois de la réception de la sous traitance.\n-Les matières analysées  en fin de mois sont très souvent libérées sur le mois suivant.\n\nConclusion: Ce mois ci les ressources supplémentaires ont permis d'absorber le travail en dehors de la routine et à pallier aux heures de CP de l'équipe, ce qui nous a permis de pouvoir répondre à tous nos clients dans les délais.\n\n"]
["Matières Premières",458,350.75]
["Produits Finis",1141,667.75]
["Assurance Qualité","548.5 (1647 × 0.333)",390]
["Articles de conditionnement",null,9.75]
["Nettoyage (aide laverie)",null,0]
["LIMS",null,13]
[null,null,{"$f":"SUM(C47:C52)","v":1431.25}]
[]
[null,"Ressources supplémentaires (Capacité réelle)",306]
["ESSAI",null,192]
["STAB Elidel",null,24.25]
[null,"Activité hors routine (Fichier joint)",{"$f":"SUM(C56:C57)","v":216.25}]
[]
[null,null,{"$f":"C53+C58","v":1647.5}]
["SGA et JH le 03/03/2016"]

{"sheet":"Noms","index":5,"n_rows":32,"n_cols":4,"rows_kept":32,"cut":false,"hidden":false,"merged":[]}
["Nom","Activité",null,"Activites"]
["ABAD","PHYSICO-CHIMIE",null,"PRELEV. AC"]
["BAH","PHYSICO-CHIMIE",null,"PHYSICO-CHIMIE"]
["BARSACQ","MICROBIOLOGIE",null,"AGENT DE LAVERIE"]
["BERNADOU","PHYSICO-CHIMIE",null,"MICROBIOLOGIE"]
["BONNEMORE","PRELEV. AC",null,"CONT FINAL"]
["BOUGHIDAH","MICROBIOLOGIE"]
["BOULESTIN","PHYSICO-CHIMIE"]
["CAVAILLE","PHYSICO-CHIMIE"]
["CERVEAUX ","PHYSICO-CHIMIE"]
["CRON","PHYSICO-CHIMIE"]
["EPRON","PRELEV. AC"]
["GASNIER","PHYSICO-CHIMIE"]
["GROUT","MICROBIOLOGIE"]
["GUEGUEN","PHYSICO-CHIMIE"]
["HERVE","PHYSICO-CHIMIE"]
["LABEQUE","PHYSICO-CHIMIE"]
["LAFAYE","PHYSICO-CHIMIE"]
["MARCHETTI","MICROBIOLOGIE"]
["MARRON ","PHYSICO-CHIMIE"]
["MASSY","PHYSICO-CHIMIE"]
["MAUPEU","MICROBIOLOGIE"]
["MERCIER","PHYSICO-CHIMIE"]
["MICHELET","PHYSICO-CHIMIE"]
["MONGIE ","PHYSICO-CHIMIE"]
["MORNET","MICROBIOLOGIE"]
["PANATIER","MICROBIOLOGIE"]
["PIQUET","CONT FINAL"]
["QUESADA","PHYSICO-CHIMIE"]
["RODRIGUES","AGENT DE LAVERIE"]
["SAVINOT","MICROBIOLOGIE"]
["VEYSSIERE","PRELEV. AC"]